BODY,BODY NAME,Service Label,SERVICE CODE,ORGANISATIONAL UNIT,ORGANISATIONAL UNIT CODE,EXPENDITURE CATEGORY,EXPENDITURE CODE,DATE (POSTING DATE),TRANSACTION NUMBER,AMOUNT,SUPPLIER NAME,SUPPLIER ID
WARRINGTON BOROUGH COUNCIL,http://statistics.data.gov.uk/id/local-authority/00EU,Neighbourhood & Community Services,NCS,Care Purchase - Learning Disability,54450,CP-Domicil.External,440950,02-Sep-13,1900127183,"6,926.00",Autism Initiatives,104503
WARRINGTON BOROUGH COUNCIL,http://statistics.data.gov.uk/id/local-authority/00EU,Children & Young People,CHL,Child Disability,32212,CP-Domicil.External,440950,02-Sep-13,1900127184,"2,105.00",Castlerock Recruitment Group,105279
WARRINGTON BOROUGH COUNCIL,http://statistics.data.gov.uk/id/local-authority/00EU,Neighbourhood & Community Services,NCS,Care Purchase - Mental Health Team 1,54230,CP-LongStayExternal,441150,02-Sep-13,1900127185,"6,381.00",HWCGS Care Ltd,108619
WARRINGTON BOROUGH COUNCIL,http://statistics.data.gov.uk/id/local-authority/00EU,Neighbourhood & Community Services,NCS,Care Purchase - Learning Disability,54450,CP-Domicil.External,440950,02-Sep-13,1900127186,"49,877.00",Future Directions Community Interes,111498
WARRINGTON BOROUGH COUNCIL,http://statistics.data.gov.uk/id/local-authority/00EU,Neighbourhood & Community Services,NCS,Care Purchase - Learning Disability,54450,Supporting People - External,441250,02-Sep-13,1900127186,"7,097.00",Future Directions Community Interes,111498
WARRINGTON BOROUGH COUNCIL,http://statistics.data.gov.uk/id/local-authority/00EU,Neighbourhood & Community Services,NCS,Care Purchase - Learning Disability,54450,CP-LongStayExternal,441150,02-Sep-13,1900127187,"6,649.00",HWCGS Care Ltd,108619
WARRINGTON BOROUGH COUNCIL,http://statistics.data.gov.uk/id/local-authority/00EU,Neighbourhood & Community Services,NCS,Care Purchase - Learning Disability,54450,CP-Domicil.External,440950,02-Sep-13,1900127188,"6,851.00",Autism Initiatives,104503
WARRINGTON BOROUGH COUNCIL,http://statistics.data.gov.uk/id/local-authority/00EU,Neighbourhood & Community Services,NCS,Care Purchase - Learning Disability,54450,CP-Domicil.External,440950,02-Sep-13,1900127189,644.00,Autism Initiatives,104503
WARRINGTON BOROUGH COUNCIL,http://statistics.data.gov.uk/id/local-authority/00EU,Neighbourhood & Community Services,NCS,Care Purchase - Learning Disability,54450,CP-Domicil.External,440950,02-Sep-13,1900127192,"5,524.00",Carewatch North Cheshire,104573
WARRINGTON BOROUGH COUNCIL,http://statistics.data.gov.uk/id/local-authority/00EU,Neighbourhood & Community Services,NCS,Care Purchase - Mental Health Team 2,54240,CP-Domicil.External,440950,02-Sep-13,1900127192,502.00,Carewatch North Cheshire,104573
WARRINGTON BOROUGH COUNCIL,http://statistics.data.gov.uk/id/local-authority/00EU,Neighbourhood & Community Services,NCS,Care Purchase -OP & OT East,54430,CP-Domicil.External,440950,02-Sep-13,1900127192,"10,418.00",Carewatch North Cheshire,104573
WARRINGTON BOROUGH COUNCIL,http://statistics.data.gov.uk/id/local-authority/00EU,Neighbourhood & Community Services,NCS,Care Purchase - PD,54440,CP-Domicil.External,440950,02-Sep-13,1900127192,"1,227.00",Carewatch North Cheshire,104573
WARRINGTON BOROUGH COUNCIL,http://statistics.data.gov.uk/id/local-authority/00EU,Children & Young People,CHL,Child Disability,32212,CP-Domicil.External,440950,02-Sep-13,1900127193,"1,782.00",Icare Service Limited,110435
WARRINGTON BOROUGH COUNCIL,http://statistics.data.gov.uk/id/local-authority/00EU,Neighbourhood & Community Services,NCS,Care Purchase - Learning Disability,54450,CP-Domicil.External,440950,02-Sep-13,1900127194,"102,106.00",Macintyre Care,104907
WARRINGTON BOROUGH COUNCIL,http://statistics.data.gov.uk/id/local-authority/00EU,Neighbourhood & Community Services,NCS,Care Purchase - Learning Disability,54450,Supporting People - External,441250,02-Sep-13,1900127194,"25,832.00",Macintyre Care,104907
WARRINGTON BOROUGH COUNCIL,http://statistics.data.gov.uk/id/local-authority/00EU,Neighbourhood & Community Services,NCS,Care Purchase Budget,54490,Voids,515150,02-Sep-13,1900127194,"1,103.00",Macintyre Care,104907
WARRINGTON BOROUGH COUNCIL,http://statistics.data.gov.uk/id/local-authority/00EU,Neighbourhood & Community Services,NCS,Care Purchase - Mental Health Team 2,54240,CP-Domicil.External,440950,02-Sep-13,1900127196,"1,053.00",Next Stage A Way Forward Ltd,101217
WARRINGTON BOROUGH COUNCIL,http://statistics.data.gov.uk/id/local-authority/00EU,Neighbourhood & Community Services,NCS,Care Purchase Budget,54490,CP Free Nursing Care External,443500,02-Sep-13,1900127198,957.00,Barchester Healthcare Cheshire Gran,111378
WARRINGTON BOROUGH COUNCIL,http://statistics.data.gov.uk/id/local-authority/00EU,Neighbourhood & Community Services,NCS,Care Purchase - Learning Disability,54450,CP-Domicil.External,440950,02-Sep-13,1900127200,"9,200.00",Creative Support Ltd,100902
WARRINGTON BOROUGH COUNCIL,http://statistics.data.gov.uk/id/local-authority/00EU,Neighbourhood & Community Services,NCS,Care Purchase - OP & OT West,54470,CP-Domicil.External,440950,02-Sep-13,1900127202,"14,104.00",Safehands Network Ltd,103226
WARRINGTON BOROUGH COUNCIL,http://statistics.data.gov.uk/id/local-authority/00EU,Neighbourhood & Community Services,NCS,Care Purchase -OP & OT East,54430,CP-Domicil.External,440950,02-Sep-13,1900127202,"10,052.00",Safehands Network Ltd,103226
WARRINGTON BOROUGH COUNCIL,http://statistics.data.gov.uk/id/local-authority/00EU,Neighbourhood & Community Services,NCS,Care Purchase - OP & OT Central,54420,CP-Domicil.External,440950,02-Sep-13,1900127202,"8,167.00",Safehands Network Ltd,103226
WARRINGTON BOROUGH COUNCIL,http://statistics.data.gov.uk/id/local-authority/00EU,Neighbourhood & Community Services,NCS,Care Purchase - OP & OT South,54480,CP-Domicil.External,440950,02-Sep-13,1900127202,"6,346.00",Safehands Network Ltd,103226
WARRINGTON BOROUGH COUNCIL,http://statistics.data.gov.uk/id/local-authority/00EU,Neighbourhood & Community Services,NCS,Care Purchase - PD,54440,CP-Domicil.External,440950,02-Sep-13,1900127202,"2,458.00",Safehands Network Ltd,103226
WARRINGTON BOROUGH COUNCIL,http://statistics.data.gov.uk/id/local-authority/00EU,Neighbourhood & Community Services,NCS,Care Purchase Budget,54490,CP - Cont Care - External,441350,02-Sep-13,1900127202,693.00,Safehands Network Ltd,103226
WARRINGTON BOROUGH COUNCIL,http://statistics.data.gov.uk/id/local-authority/00EU,Neighbourhood & Community Services,NCS,Care Purchase - Learning Disability,54450,CP-Domicil.External,440950,02-Sep-13,1900127203,"2,515.00",Mayfield Home Care Agency,104928
WARRINGTON BOROUGH COUNCIL,http://statistics.data.gov.uk/id/local-authority/00EU,Neighbourhood & Community Services,NCS,Care Purchase - OP & OT South,54480,CP-Domicil.External,440950,02-Sep-13,1900127203,"3,442.00",Mayfield Home Care Agency,104928
WARRINGTON BOROUGH COUNCIL,http://statistics.data.gov.uk/id/local-authority/00EU,Neighbourhood & Community Services,NCS,Care Purchase - OP & OT West,54470,CP-Domicil.External,440950,02-Sep-13,1900127203,812.00,Mayfield Home Care Agency,104928
WARRINGTON BOROUGH COUNCIL,http://statistics.data.gov.uk/id/local-authority/00EU,Neighbourhood & Community Services,NCS,Care Purchase - PD,54440,CP-Domicil.External,440950,02-Sep-13,1900127203,736.00,Mayfield Home Care Agency,104928
WARRINGTON BOROUGH COUNCIL,http://statistics.data.gov.uk/id/local-authority/00EU,Neighbourhood & Community Services,NCS,Care Purchase Budget,54490,CP - Cont Care - External,441350,02-Sep-13,1900127203,"11,422.00",Mayfield Home Care Agency,104928
WARRINGTON BOROUGH COUNCIL,http://statistics.data.gov.uk/id/local-authority/00EU,Neighbourhood & Community Services,NCS,Care Purchase - Learning Disability,54450,CP-Domicil.External,440950,02-Sep-13,1900127205,"1,260.00",Great Opportunities Together CIC,110076
WARRINGTON BOROUGH COUNCIL,http://statistics.data.gov.uk/id/local-authority/00EU,Neighbourhood & Community Services,NCS,Care Purchase - PD,54440,CP-LongStayExternal,441150,02-Sep-13,1900127207,"6,895.00",The David Lewis Centre,104879
WARRINGTON BOROUGH COUNCIL,http://statistics.data.gov.uk/id/local-authority/00EU,Neighbourhood & Community Services,NCS,Care Purchase - Learning Disability,54450,CP-Domicil.External,440950,02-Sep-13,1900127208,"6,942.00",Autism Initiatives,104503
WARRINGTON BOROUGH COUNCIL,http://statistics.data.gov.uk/id/local-authority/00EU,Neighbourhood & Community Services,NCS,Care Purchase Budget,54490,CP ExternalOther Exp,440800,02-Sep-13,1900127209,"3,022.00",Ashberry Healthcare Ltd,101061
WARRINGTON BOROUGH COUNCIL,http://statistics.data.gov.uk/id/local-authority/00EU,Neighbourhood & Community Services,NCS,Care Purchase - OP & OT South,54480,CP-Nursing Care-External,441200,02-Sep-13,1900127210,"1,864.00",Allingham House Care Centre,112069
WARRINGTON BOROUGH COUNCIL,http://statistics.data.gov.uk/id/local-authority/00EU,Neighbourhood & Community Services,NCS,Care Purchase - Learning Disability,54450,CP-Domicil.External,440950,02-Sep-13,1900127212,"1,492.00",Nightingales Homecare Services Agen,104972
WARRINGTON BOROUGH COUNCIL,http://statistics.data.gov.uk/id/local-authority/00EU,Neighbourhood & Community Services,NCS,Care Purchase - OP & OT South,54480,CP-Domicil.External,440950,02-Sep-13,1900127212,"17,535.00",Nightingales Homecare Services Agen,104972
WARRINGTON BOROUGH COUNCIL,http://statistics.data.gov.uk/id/local-authority/00EU,Neighbourhood & Community Services,NCS,Care Purchase -OP & OT East,54430,CP-Domicil.External,440950,02-Sep-13,1900127212,"9,900.00",Nightingales Homecare Services Agen,104972
WARRINGTON BOROUGH COUNCIL,http://statistics.data.gov.uk/id/local-authority/00EU,Neighbourhood & Community Services,NCS,Care Purchase - OP & OT West,54470,CP-Domicil.External,440950,02-Sep-13,1900127212,"6,394.00",Nightingales Homecare Services Agen,104972
WARRINGTON BOROUGH COUNCIL,http://statistics.data.gov.uk/id/local-authority/00EU,Neighbourhood & Community Services,NCS,Care Purchase - OP & OT Central,54420,CP-Domicil.External,440950,02-Sep-13,1900127212,"5,587.00",Nightingales Homecare Services Agen,104972
WARRINGTON BOROUGH COUNCIL,http://statistics.data.gov.uk/id/local-authority/00EU,Neighbourhood & Community Services,NCS,Care Purchase - PD,54440,CP-Domicil.External,440950,02-Sep-13,1900127212,"7,449.00",Nightingales Homecare Services Agen,104972
WARRINGTON BOROUGH COUNCIL,http://statistics.data.gov.uk/id/local-authority/00EU,Neighbourhood & Community Services,NCS,Care Purchase - PD,54440,Supporting People - External,441250,02-Sep-13,1900127212,711.00,Nightingales Homecare Services Agen,104972
WARRINGTON BOROUGH COUNCIL,http://statistics.data.gov.uk/id/local-authority/00EU,Neighbourhood & Community Services,NCS,Care Purchase - Learning Disability,54450,CP-Domicil.External,440950,02-Sep-13,1900127213,"6,997.00",WCL - Warrington Community Living,105230
WARRINGTON BOROUGH COUNCIL,http://statistics.data.gov.uk/id/local-authority/00EU,Neighbourhood & Community Services,NCS,Care Purchase - Mental Health Team 2,54240,CP-Domicil.External,440950,02-Sep-13,1900127214,"1,908.00",Premier Care Cheshire Ltd,105142
WARRINGTON BOROUGH COUNCIL,http://statistics.data.gov.uk/id/local-authority/00EU,Neighbourhood & Community Services,NCS,Care Purchase - Learning Disability,54450,CP-Domicil.External,440950,02-Sep-13,1900127214,"1,845.00",Premier Care Cheshire Ltd,105142
WARRINGTON BOROUGH COUNCIL,http://statistics.data.gov.uk/id/local-authority/00EU,Neighbourhood & Community Services,NCS,Care Purchase - Mental Health Team 1,54230,CP-Domicil.External,440950,02-Sep-13,1900127214,862.00,Premier Care Cheshire Ltd,105142
WARRINGTON BOROUGH COUNCIL,http://statistics.data.gov.uk/id/local-authority/00EU,Neighbourhood & Community Services,NCS,Care Purchase - OP & OT West,54470,CP-Domicil.External,440950,02-Sep-13,1900127214,"16,492.00",Premier Care Cheshire Ltd,105142
WARRINGTON BOROUGH COUNCIL,http://statistics.data.gov.uk/id/local-authority/00EU,Neighbourhood & Community Services,NCS,Care Purchase - OP & OT Central,54420,CP-Domicil.External,440950,02-Sep-13,1900127214,"13,605.00",Premier Care Cheshire Ltd,105142
WARRINGTON BOROUGH COUNCIL,http://statistics.data.gov.uk/id/local-authority/00EU,Neighbourhood & Community Services,NCS,Care Purchase -OP & OT East,54430,CP-Domicil.External,440950,02-Sep-13,1900127214,"13,074.00",Premier Care Cheshire Ltd,105142
WARRINGTON BOROUGH COUNCIL,http://statistics.data.gov.uk/id/local-authority/00EU,Neighbourhood & Community Services,NCS,Care Purchase - OP & OT South,54480,CP-Domicil.External,440950,02-Sep-13,1900127214,"8,212.00",Premier Care Cheshire Ltd,105142
WARRINGTON BOROUGH COUNCIL,http://statistics.data.gov.uk/id/local-authority/00EU,Neighbourhood & Community Services,NCS,Care Purchase - PD,54440,CP-Domicil.External,440950,02-Sep-13,1900127214,"9,426.00",Premier Care Cheshire Ltd,105142
WARRINGTON BOROUGH COUNCIL,http://statistics.data.gov.uk/id/local-authority/00EU,Neighbourhood & Community Services,NCS,Care Purchase Budget,54490,CP - Cont Care - External,441350,02-Sep-13,1900127214,"2,459.00",Premier Care Cheshire Ltd,105142
WARRINGTON BOROUGH COUNCIL,http://statistics.data.gov.uk/id/local-authority/00EU,Neighbourhood & Community Services,NCS,Care Purchase - Learning Disability,54450,CP-Nursing Care-External,441200,02-Sep-13,1900127215,"53,143.00",WCL - Warrington Community Living,105230
WARRINGTON BOROUGH COUNCIL,http://statistics.data.gov.uk/id/local-authority/00EU,Neighbourhood & Community Services,NCS,Care Purchase Budget,54490,CP Free Nursing Care External,443500,02-Sep-13,1900127215,"3,131.00",WCL - Warrington Community Living,105230
WARRINGTON BOROUGH COUNCIL,http://statistics.data.gov.uk/id/local-authority/00EU,Neighbourhood & Community Services,NCS,Care Purchase Budget,54490,Voids,515150,02-Sep-13,1900127215,"3,112.00",WCL - Warrington Community Living,105230
WARRINGTON BOROUGH COUNCIL,http://statistics.data.gov.uk/id/local-authority/00EU,Neighbourhood & Community Services,NCS,Care Purchase - IC,54290,CP - Intermediate Care - External,441300,02-Sep-13,1900127216,"35,202.00",CareConcepts (Appleton) Ltd,105804
WARRINGTON BOROUGH COUNCIL,http://statistics.data.gov.uk/id/local-authority/00EU,Neighbourhood & Community Services,NCS,Care Purchase Budget,54490,CP - Cont Care - External,441350,02-Sep-13,1900127218,"1,089.00",Home Instead Senior Care,103236
WARRINGTON BOROUGH COUNCIL,http://statistics.data.gov.uk/id/local-authority/00EU,Neighbourhood & Community Services,NCS,Care Purchase - OP & OT West,54470,CP-LongStayExternal,441150,02-Sep-13,1900127220,"1,713.00",Ennerdale Nursing & Residential Hom,108529
WARRINGTON BOROUGH COUNCIL,http://statistics.data.gov.uk/id/local-authority/00EU,Neighbourhood & Community Services,NCS,Care Purchase - Learning Disability,54450,CP-Domicil.External,440950,02-Sep-13,1900127222,"37,701.00",WCL - Warrington Community Living,105230
WARRINGTON BOROUGH COUNCIL,http://statistics.data.gov.uk/id/local-authority/00EU,Environment & Regeneration,ER0,Statutory Homeless Properties,43652,Furniture & Fittings,400150,02-Sep-13,1900127226,"5,892.00",The Furnishing Service,107402
WARRINGTON BOROUGH COUNCIL,http://statistics.data.gov.uk/id/local-authority/00EU,Environment & Regeneration,ER0,Statutory Homeless Properties,43652,Furniture & Fittings,400150,02-Sep-13,1900127227,"1,254.00",The Furnishing Service,107402
WARRINGTON BOROUGH COUNCIL,http://statistics.data.gov.uk/id/local-authority/00EU,Assistant Chief Executive,CEX,Legal Services,11200,Training,190150,02-Sep-13,1900127230,690.00,CILEx Law School,100935
WARRINGTON BOROUGH COUNCIL,http://statistics.data.gov.uk/id/local-authority/00EU,Children & Young People,CHL,Other Grant Income,32418,Payment of Grants,470050,02-Sep-13,1900127231,"3,167.00",Chaigeley Educational Foundation,400123
WARRINGTON BOROUGH COUNCIL,http://statistics.data.gov.uk/id/local-authority/00EU,Children & Young People,CHL,Adoption Team,31107,Consult.& Prof. Serv,440000,02-Sep-13,1900127252,"3,200.00",Redacted Personal Data,111105
WARRINGTON BOROUGH COUNCIL,http://statistics.data.gov.uk/id/local-authority/00EU,Neighbourhood & Community Services,NCS,Oakwood Family Centre,51234,Security Systems,250000,03-Sep-13,1900127253,621.00,Adt Fire And Security Plc,100549
WARRINGTON BOROUGH COUNCIL,http://statistics.data.gov.uk/id/local-authority/00EU,Neighbourhood & Community Services,NCS,Contracts - SM Commissioning Team 1,55910,Public Health Contract Payments,540000,03-Sep-13,1900127254,"4,167.00",Bridgewater Community Healthcare,108932
WARRINGTON BOROUGH COUNCIL,http://statistics.data.gov.uk/id/local-authority/00EU,Environment & Regeneration,ER0,Homelessness,43650,Photocopier Curriculum,430050,03-Sep-13,1900127262,995.00,Ricoh Uk Ltd,104986
WARRINGTON BOROUGH COUNCIL,http://statistics.data.gov.uk/id/local-authority/00EU,Assistant Chief Executive,CEX,PSA Reward Monies,22260,"Campaigns,  Projects and Events",491950,03-Sep-13,1900127263,"8,640.00",Warrington Disability Partnership,440066
WARRINGTON BOROUGH COUNCIL,http://statistics.data.gov.uk/id/local-authority/00EU,Environment & Regeneration,ER0,Quattro-New Town House Admin Building,43125,Water & Sewerage Chg,240000,03-Sep-13,1900127266,"6,246.00",United Utilities Water Limited,104982
WARRINGTON BOROUGH COUNCIL,http://statistics.data.gov.uk/id/local-authority/00EU,Environment & Regeneration,ER0,Quattro-New Town House Admin Building,43125,Water & Sewerage Chg,240000,03-Sep-13,1900127266,"4,169.00",United Utilities Water Limited,104982
WARRINGTON BOROUGH COUNCIL,http://statistics.data.gov.uk/id/local-authority/00EU,Environment & Regeneration,ER0,Estates & Valuation,43520,Gen. Personal Needs,490850,03-Sep-13,1900127267,"1,395.00",CIPFA Business Limited,103650
WARRINGTON BOROUGH COUNCIL,http://statistics.data.gov.uk/id/local-authority/00EU,Environment & Regeneration,ER0,New Town House,43119,Trade Refuse Charges,440700,03-Sep-13,1900127268,683.00,B & M Waste,102293
WARRINGTON BOROUGH COUNCIL,http://statistics.data.gov.uk/id/local-authority/00EU,Environment & Regeneration,ER0,New Town House,43119,Trade Refuse Charges,440700,03-Sep-13,1900127269,607.00,B & M Waste,102293
WARRINGTON BOROUGH COUNCIL,http://statistics.data.gov.uk/id/local-authority/00EU,Neighbourhood & Community Services,NCS,Care Purchase - Learning Disability,54450,CP-Day Care-External,441100,03-Sep-13,1900127273,"1,000.00",Metropolitan Borough Of Wigan,440073
WARRINGTON BOROUGH COUNCIL,http://statistics.data.gov.uk/id/local-authority/00EU,Environment & Regeneration,ER0,Quattro-New Town House Admin Building,43125,Service Charges,220050,03-Sep-13,1900127278,"3,616.00",Goldmile Holdings Limited,101035
WARRINGTON BOROUGH COUNCIL,http://statistics.data.gov.uk/id/local-authority/00EU,Environment & Regeneration,ER0,Alder Lodge Supporting People,43651,Servicing Contracts,200150,03-Sep-13,1900127287,"4,402.00",Cumbria Security Services (North) L,110006
WARRINGTON BOROUGH COUNCIL,http://statistics.data.gov.uk/id/local-authority/00EU,Environment & Regeneration,ER0,Statutory Homeless Properties,43652,Servicing Contracts,200150,03-Sep-13,1900127288,"4,997.00",Cumbria Security Services (North) L,110006
WARRINGTON BOROUGH COUNCIL,http://statistics.data.gov.uk/id/local-authority/00EU,Children & Young People,CHL,Foster Allowances,31106,Provisions-Purchase,410000,03-Sep-13,1900127293,"1,455.00",Ofsted,102038
WARRINGTON BOROUGH COUNCIL,http://statistics.data.gov.uk/id/local-authority/00EU,Environment & Regeneration,ER0,Markets,43711,Resaleables,400600,03-Sep-13,1900127294,"5,642.00",National Express Ltd,104957
WARRINGTON BOROUGH COUNCIL,http://statistics.data.gov.uk/id/local-authority/00EU,Children & Young People,CHL,Other Grant Income,32418,Payment of Grants,470050,03-Sep-13,1900127295,"3,167.00",Chaigeley Educational Foundation,400123
WARRINGTON BOROUGH COUNCIL,http://statistics.data.gov.uk/id/local-authority/00EU,Assistant Chief Executive,CEX,Legal Services,11200,Training,190150,03-Sep-13,1900127296,575.00,CILEx Law School,100935
WARRINGTON BOROUGH COUNCIL,http://statistics.data.gov.uk/id/local-authority/00EU,Children & Young People,CHL,Other Grant Income,32418,Payment of Grants,470050,03-Sep-13,1900127297,"6,230.00",Great Sankey High Academy School,400206
WARRINGTON BOROUGH COUNCIL,http://statistics.data.gov.uk/id/local-authority/00EU,Children & Young People,CHL,Other Grant Income,32418,Payment of Grants,470050,03-Sep-13,1900127298,"3,115.00",Lymm High Academy,400221
WARRINGTON BOROUGH COUNCIL,http://statistics.data.gov.uk/id/local-authority/00EU,Children & Young People,CHL,Other Grant Income,32418,Payment of Grants,470050,03-Sep-13,1900127299,"6,230.00",Beamont Collegiate Academy,111598
WARRINGTON BOROUGH COUNCIL,http://statistics.data.gov.uk/id/local-authority/00EU,Children & Young People,CHL,Other Grant Income,32418,Payment of Grants,470050,03-Sep-13,1900127299,"3,167.00",Beamont Collegiate Academy,111598
WARRINGTON BOROUGH COUNCIL,http://statistics.data.gov.uk/id/local-authority/00EU,Children & Young People,CHL,DSG Delegated Funds Secondary,32402,School Delegated Budget,492750,03-Sep-13,1900127299,"2,094.00",Beamont Collegiate Academy,111598
WARRINGTON BOROUGH COUNCIL,http://statistics.data.gov.uk/id/local-authority/00EU,Children & Young People,CHL,Other Grant Income,32418,Payment of Grants,470050,03-Sep-13,1900127300,"2,492.00",Penketh High School Academy,400216
WARRINGTON BOROUGH COUNCIL,http://statistics.data.gov.uk/id/local-authority/00EU,Children & Young People,CHL,DSG Delegated Funds Secondary,32402,School Delegated Budget,492750,03-Sep-13,1900127300,"2,094.00",Penketh High School Academy,400216
WARRINGTON BOROUGH COUNCIL,http://statistics.data.gov.uk/id/local-authority/00EU,Children & Young People,CHL,Fostering Team,31105,Personal Needs Allowance,550400,03-Sep-13,1900127301,"3,001.00",Smart Storage Ltd,102745
WARRINGTON BOROUGH COUNCIL,http://statistics.data.gov.uk/id/local-authority/00EU,Neighbourhood & Community Services,NCS,Care Purchase - PD,54440,CP Adult Placement,443450,03-Sep-13,1900127304,"1,510.00",Redacted Personal Data,102249
WARRINGTON BOROUGH COUNCIL,http://statistics.data.gov.uk/id/local-authority/00EU,Children & Young People,CHL,Other Grant Income,32418,Payment of Grants,470050,04-Sep-13,1900127306,"5,607.00",University Academy Warrington,111431
WARRINGTON BOROUGH COUNCIL,http://statistics.data.gov.uk/id/local-authority/00EU,Children & Young People,CHL,Other Grant Income,32418,Payment of Grants,470050,04-Sep-13,1900127306,"3,167.00",University Academy Warrington,111431
WARRINGTON BOROUGH COUNCIL,http://statistics.data.gov.uk/id/local-authority/00EU,Holding Accounts,HOL,Single Billing Holding Account,91130,Specific Work,200200,04-Sep-13,1900127314,"23,218.00",Manchester Working Limited,105646
WARRINGTON BOROUGH COUNCIL,http://statistics.data.gov.uk/id/local-authority/00EU,Assistant Chief Executive,CEX,Coroners Service,11100,Post Mortem Fees-Rep,440250,04-Sep-13,1900127315,"1,217.00",Central Manchester University Hospi,440097
WARRINGTON BOROUGH COUNCIL,http://statistics.data.gov.uk/id/local-authority/00EU,Assistant Chief Executive,CEX,Coroners Service,11100,Consult.& Prof. Serv,440000,04-Sep-13,1900127316,"1,782.00",Meridian Law Ltd,106560
WARRINGTON BOROUGH COUNCIL,http://statistics.data.gov.uk/id/local-authority/00EU,Assistant Chief Executive,CEX,Coroners Service,11100,Analysts Fees,440300,04-Sep-13,1900127318,"5,360.00",Roar Forensics Ltd,105295
WARRINGTON BOROUGH COUNCIL,http://statistics.data.gov.uk/id/local-authority/00EU,Holding Accounts,HOL,Single Billing Holding Account,91130,Specific Work,200200,04-Sep-13,1900127324,"4,010.00",Manchester Working Limited,105646
WARRINGTON BOROUGH COUNCIL,http://statistics.data.gov.uk/id/local-authority/00EU,Holding Accounts,HOL,Single Billing Holding Account,91130,Specific Work,200200,04-Sep-13,1900127325,"8,916.00",Manchester Working Limited,105646
WARRINGTON BOROUGH COUNCIL,http://statistics.data.gov.uk/id/local-authority/00EU,Holding Accounts,HOL,Single Billing Holding Account,91130,Asbestos Surveys & Remedial Works,200500,04-Sep-13,1900127328,"8,636.00",Manchester Working Limited,105646
WARRINGTON BOROUGH COUNCIL,http://statistics.data.gov.uk/id/local-authority/00EU,Environment & Regeneration,ER0,Estates & Valuation,43520,Agency Supply - GF,180000,04-Sep-13,1900127353,"1,138.00",Nuttallroberts Ltd,102450
WARRINGTON BOROUGH COUNCIL,http://statistics.data.gov.uk/id/local-authority/00EU,Neighbourhood & Community Services,NCS,Care Purchase - OP & OT South,54480,CP-LongStayExternal,441150,04-Sep-13,1900127363,"1,540.00",Barchester Healthcare Brookfield,104548
WARRINGTON BOROUGH COUNCIL,http://statistics.data.gov.uk/id/local-authority/00EU,Neighbourhood & Community Services,NCS,Care Purchase - OP & OT South,54480,CP-Nursing Care-External,441200,04-Sep-13,1900127365,"1,816.00",Barchester Healthcare Cheshire Gran,111378
WARRINGTON BOROUGH COUNCIL,http://statistics.data.gov.uk/id/local-authority/00EU,Neighbourhood & Community Services,NCS,Care Purchase - OP & OT West,54470,CP-LongStayExternal,441150,04-Sep-13,1900127367,"1,772.00",Barchester Healthcare Cheshire Gran,111378
WARRINGTON BOROUGH COUNCIL,http://statistics.data.gov.uk/id/local-authority/00EU,Neighbourhood & Community Services,NCS,Care Purchase Budget,54490,CP - Cont Care - External,441350,04-Sep-13,1900127368,"2,560.00",Barchester Healthcare Cheshire Gran,111378
WARRINGTON BOROUGH COUNCIL,http://statistics.data.gov.uk/id/local-authority/00EU,Neighbourhood & Community Services,NCS,Care Purchase Budget,54490,CP - Cont Care - External,441350,04-Sep-13,1900127370,"2,560.00",Barchester Healthcare Cheshire Gran,111378
WARRINGTON BOROUGH COUNCIL,http://statistics.data.gov.uk/id/local-authority/00EU,Neighbourhood & Community Services,NCS,Care Purchase - OP & OT South,54480,CP-LongStayExternal,441150,04-Sep-13,1900127372,"1,540.00",Barchester Healthcare Brookfield,104548
WARRINGTON BOROUGH COUNCIL,http://statistics.data.gov.uk/id/local-authority/00EU,Neighbourhood & Community Services,NCS,Care Purchase - OP & OT South,54480,CP-LongStayExternal,441150,04-Sep-13,1900127373,"1,540.00",Barchester Healthcare Brookfield,104548
WARRINGTON BOROUGH COUNCIL,http://statistics.data.gov.uk/id/local-authority/00EU,Neighbourhood & Community Services,NCS,Care Purchase - OP & OT South,54480,CP-LongStayExternal,441150,04-Sep-13,1900127374,"1,540.00",Barchester Healthcare Brookfield,104548
WARRINGTON BOROUGH COUNCIL,http://statistics.data.gov.uk/id/local-authority/00EU,Neighbourhood & Community Services,NCS,Care Purchase - OP & OT Central,54420,CP-LongStayExternal,441150,04-Sep-13,1900127375,"1,764.00",Bupa Care Homes - Broadoak Manor,104546
WARRINGTON BOROUGH COUNCIL,http://statistics.data.gov.uk/id/local-authority/00EU,Neighbourhood & Community Services,NCS,Care Purchase - OP & OT South,54480,CP-LongStayExternal,441150,04-Sep-13,1900127376,"1,540.00",Barchester Healthcare Brookfield,104548
WARRINGTON BOROUGH COUNCIL,http://statistics.data.gov.uk/id/local-authority/00EU,Neighbourhood & Community Services,NCS,Care Purchase - OP & OT South,54480,CP-LongStayExternal,441150,04-Sep-13,1900127377,"1,540.00",Barchester Healthcare Brookfield,104548
WARRINGTON BOROUGH COUNCIL,http://statistics.data.gov.uk/id/local-authority/00EU,Neighbourhood & Community Services,NCS,Care Purchase - OP & OT South,54480,CP-LongStayExternal,441150,04-Sep-13,1900127378,"1,100.00",Barchester Healthcare Brookfield,104548
WARRINGTON BOROUGH COUNCIL,http://statistics.data.gov.uk/id/local-authority/00EU,Neighbourhood & Community Services,NCS,Care Purchase - OP & OT South,54480,CP-LongStayExternal,441150,04-Sep-13,1900127379,"1,540.00",Barchester Healthcare Brookfield,104548
WARRINGTON BOROUGH COUNCIL,http://statistics.data.gov.uk/id/local-authority/00EU,Neighbourhood & Community Services,NCS,Care Purchase - Mental Health Team 1,54230,CP-Domicil.External,440950,04-Sep-13,1900127380,996.00,Alternative Futures Group,104468
WARRINGTON BOROUGH COUNCIL,http://statistics.data.gov.uk/id/local-authority/00EU,Neighbourhood & Community Services,NCS,Care Purchase - Learning Disability,54450,CP-LongStayExternal,441150,04-Sep-13,1900127384,"11,896.00",Progress Care and Education Ltd,108888
WARRINGTON BOROUGH COUNCIL,http://statistics.data.gov.uk/id/local-authority/00EU,Neighbourhood & Community Services,NCS,Care Purchase - Learning Disability,54450,CP-Domicil.External,440950,04-Sep-13,1900127386,687.00,Progress Adult Services Ltd,101817
WARRINGTON BOROUGH COUNCIL,http://statistics.data.gov.uk/id/local-authority/00EU,Neighbourhood & Community Services,NCS,Care Purchase - Learning Disability,54450,CP-LongStayExternal,441150,04-Sep-13,1900127386,"11,238.00",Progress Adult Services Ltd,101817
WARRINGTON BOROUGH COUNCIL,http://statistics.data.gov.uk/id/local-authority/00EU,Neighbourhood & Community Services,NCS,Care Purchase -OP & OT East,54430,CP-Nursing Care-External,441200,04-Sep-13,1900127388,"1,679.00",BUPA - Bedford Res,104569
WARRINGTON BOROUGH COUNCIL,http://statistics.data.gov.uk/id/local-authority/00EU,Neighbourhood & Community Services,NCS,Care Purchase - OP & OT South,54480,CP-LongStayExternal,441150,04-Sep-13,1900127389,"1,615.00",Burrswood House Nursing & Residenti,109619
WARRINGTON BOROUGH COUNCIL,http://statistics.data.gov.uk/id/local-authority/00EU,Neighbourhood & Community Services,NCS,Care Purchase - OP & OT South,54480,CP-LongStayExternal,441150,04-Sep-13,1900127390,"1,575.00",Barchester Healthcare Brookfield,104548
WARRINGTON BOROUGH COUNCIL,http://statistics.data.gov.uk/id/local-authority/00EU,Neighbourhood & Community Services,NCS,Care Purchase - Learning Disability,54450,CP-LongStayExternal,441150,04-Sep-13,1900127391,"11,238.00",Progress Adult Services Ltd,101817
WARRINGTON BOROUGH COUNCIL,http://statistics.data.gov.uk/id/local-authority/00EU,Neighbourhood & Community Services,NCS,Care Purchase - OP & OT Central,54420,CP-Nursing Care-External,441200,04-Sep-13,1900127392,"1,628.00",BUPA - Bedford Res,104569
WARRINGTON BOROUGH COUNCIL,http://statistics.data.gov.uk/id/local-authority/00EU,Neighbourhood & Community Services,NCS,Care Purchase - Learning Disability,54450,CP-LongStayExternal,441150,04-Sep-13,1900127393,"10,471.00",Pendleton Care Limited,101213
WARRINGTON BOROUGH COUNCIL,http://statistics.data.gov.uk/id/local-authority/00EU,Neighbourhood & Community Services,NCS,Care Purchase -OP & OT East,54430,CP-Day Care-External,441100,04-Sep-13,1900127394,"4,801.00",CareConcepts (Appleton) Ltd,105804
WARRINGTON BOROUGH COUNCIL,http://statistics.data.gov.uk/id/local-authority/00EU,Neighbourhood & Community Services,NCS,Care Purchase - OP & OT South,54480,CP-Day Care-External,441100,04-Sep-13,1900127394,"4,242.00",CareConcepts (Appleton) Ltd,105804
WARRINGTON BOROUGH COUNCIL,http://statistics.data.gov.uk/id/local-authority/00EU,Neighbourhood & Community Services,NCS,Care Purchase - OP & OT Central,54420,CP-Day Care-External,441100,04-Sep-13,1900127394,"2,770.00",CareConcepts (Appleton) Ltd,105804
WARRINGTON BOROUGH COUNCIL,http://statistics.data.gov.uk/id/local-authority/00EU,Neighbourhood & Community Services,NCS,Care Purchase - OP & OT West,54470,CP-Day Care-External,441100,04-Sep-13,1900127394,"2,384.00",CareConcepts (Appleton) Ltd,105804
WARRINGTON BOROUGH COUNCIL,http://statistics.data.gov.uk/id/local-authority/00EU,Neighbourhood & Community Services,NCS,Care Purchase Budget,54490,CP - Cont Care - External,441350,04-Sep-13,1900127394,672.00,CareConcepts (Appleton) Ltd,105804
WARRINGTON BOROUGH COUNCIL,http://statistics.data.gov.uk/id/local-authority/00EU,Neighbourhood & Community Services,NCS,Care Purchase Budget,54490,Voids,515150,04-Sep-13,1900127394,"4,731.00",CareConcepts (Appleton) Ltd,105804
WARRINGTON BOROUGH COUNCIL,http://statistics.data.gov.uk/id/local-authority/00EU,Neighbourhood & Community Services,NCS,Care Purchase - PD,54440,Supporting People - External,441250,04-Sep-13,1900127395,"5,079.00",Creative Support Ltd,100902
WARRINGTON BOROUGH COUNCIL,http://statistics.data.gov.uk/id/local-authority/00EU,Neighbourhood & Community Services,NCS,Care Purchase Budget,54490,Voids,515150,04-Sep-13,1900127395,"1,952.00",Creative Support Ltd,100902
WARRINGTON BOROUGH COUNCIL,http://statistics.data.gov.uk/id/local-authority/00EU,Neighbourhood & Community Services,NCS,Care Purchase - Learning Disability,54450,CP-Domicil.External,440950,04-Sep-13,1900127396,"1,695.00",Creative Support Ltd,100902
WARRINGTON BOROUGH COUNCIL,http://statistics.data.gov.uk/id/local-authority/00EU,Neighbourhood & Community Services,NCS,Care Purchase - Learning Disability,54450,Supporting People - External,441250,04-Sep-13,1900127396,"6,478.00",Creative Support Ltd,100902
WARRINGTON BOROUGH COUNCIL,http://statistics.data.gov.uk/id/local-authority/00EU,Neighbourhood & Community Services,NCS,Care Purchase - Learning Disability,54450,CP-Domicil.External,440950,04-Sep-13,1900127397,574.00,Creative Support Ltd,100902
WARRINGTON BOROUGH COUNCIL,http://statistics.data.gov.uk/id/local-authority/00EU,Neighbourhood & Community Services,NCS,Care Purchase - Mental Health Team 1,54230,CP-Domicil.External,440950,04-Sep-13,1900127397,562.00,Creative Support Ltd,100902
WARRINGTON BOROUGH COUNCIL,http://statistics.data.gov.uk/id/local-authority/00EU,Neighbourhood & Community Services,NCS,Care Purchase - Learning Disability,54450,Supporting People - External,441250,04-Sep-13,1900127397,"8,160.00",Creative Support Ltd,100902
WARRINGTON BOROUGH COUNCIL,http://statistics.data.gov.uk/id/local-authority/00EU,Neighbourhood & Community Services,NCS,Care Purchase - Learning Disability,54450,CP-Domicil.External,440950,04-Sep-13,1900127398,"37,834.00",Creative Support Ltd,100902
WARRINGTON BOROUGH COUNCIL,http://statistics.data.gov.uk/id/local-authority/00EU,Neighbourhood & Community Services,NCS,Care Purchase - Learning Disability,54450,Supporting People - External,441250,04-Sep-13,1900127398,"4,824.00",Creative Support Ltd,100902
WARRINGTON BOROUGH COUNCIL,http://statistics.data.gov.uk/id/local-authority/00EU,Neighbourhood & Community Services,NCS,Care Purchase Budget,54490,Voids,515150,04-Sep-13,1900127398,"1,319.00",Creative Support Ltd,100902
WARRINGTON BOROUGH COUNCIL,http://statistics.data.gov.uk/id/local-authority/00EU,Environment & Regeneration,ER0,Industrial Estates,43570,Rent Gatewarth,220300,04-Sep-13,1900127399,"26,000.00",Combined Property Control,100133
WARRINGTON BOROUGH COUNCIL,http://statistics.data.gov.uk/id/local-authority/00EU,Neighbourhood & Community Services,NCS,Care Purchase - Mental Health Team 2,54240,CP-Domicil.External,440950,04-Sep-13,1900127400,772.00,Creative Support Ltd,100902
WARRINGTON BOROUGH COUNCIL,http://statistics.data.gov.uk/id/local-authority/00EU,Neighbourhood & Community Services,NCS,Care Purchase - Mental Health Team 1,54230,CP-Domicil.External,440950,04-Sep-13,1900127400,557.00,Creative Support Ltd,100902
WARRINGTON BOROUGH COUNCIL,http://statistics.data.gov.uk/id/local-authority/00EU,Neighbourhood & Community Services,NCS,Care Purchase - ABI,54260,CP-Domicil.External,440950,04-Sep-13,1900127401,"2,682.00",Creative Support Ltd,100902
WARRINGTON BOROUGH COUNCIL,http://statistics.data.gov.uk/id/local-authority/00EU,Neighbourhood & Community Services,NCS,Care Purchase - Mental Health Team 1,54230,CP-Domicil.External,440950,04-Sep-13,1900127401,506.00,Creative Support Ltd,100902
WARRINGTON BOROUGH COUNCIL,http://statistics.data.gov.uk/id/local-authority/00EU,Neighbourhood & Community Services,NCS,Care Purchase - PD,54440,CP-Domicil.External,440950,04-Sep-13,1900127401,"1,316.00",Creative Support Ltd,100902
WARRINGTON BOROUGH COUNCIL,http://statistics.data.gov.uk/id/local-authority/00EU,Neighbourhood & Community Services,NCS,Care Purchase - PD,54440,CP-Domicil.External,440950,04-Sep-13,1900127402,"1,278.00",Creative Support Ltd,100902
WARRINGTON BOROUGH COUNCIL,http://statistics.data.gov.uk/id/local-authority/00EU,Neighbourhood & Community Services,NCS,Care Purchase - ABI,54260,CP-Domicil.External,440950,04-Sep-13,1900127404,"3,031.00",Creative Support Ltd,100902
WARRINGTON BOROUGH COUNCIL,http://statistics.data.gov.uk/id/local-authority/00EU,Neighbourhood & Community Services,NCS,Care Purchase - PD,54440,CP-Domicil.External,440950,04-Sep-13,1900127404,"9,093.00",Creative Support Ltd,100902
WARRINGTON BOROUGH COUNCIL,http://statistics.data.gov.uk/id/local-authority/00EU,Neighbourhood & Community Services,NCS,Care Purchase Budget,54490,CP - Cont Care - External,441350,04-Sep-13,1900127404,"3,031.00",Creative Support Ltd,100902
WARRINGTON BOROUGH COUNCIL,http://statistics.data.gov.uk/id/local-authority/00EU,Neighbourhood & Community Services,NCS,Care Purchase Budget,54490,Voids,515150,04-Sep-13,1900127404,"6,062.00",Creative Support Ltd,100902
WARRINGTON BOROUGH COUNCIL,http://statistics.data.gov.uk/id/local-authority/00EU,Neighbourhood & Community Services,NCS,Care Purchase - ABI,54260,CP-Domicil.External,440950,04-Sep-13,1900127405,"3,370.00",Creative Support Ltd,100902
WARRINGTON BOROUGH COUNCIL,http://statistics.data.gov.uk/id/local-authority/00EU,Neighbourhood & Community Services,NCS,Care Purchase - ABI,54260,CP-Domicil.External,440950,04-Sep-13,1900127405,995.00,Creative Support Ltd,100902
WARRINGTON BOROUGH COUNCIL,http://statistics.data.gov.uk/id/local-authority/00EU,Neighbourhood & Community Services,NCS,Care Purchase - Learning Disability,54450,Supporting People - External,441250,04-Sep-13,1900127405,"6,488.00",Creative Support Ltd,100902
WARRINGTON BOROUGH COUNCIL,http://statistics.data.gov.uk/id/local-authority/00EU,Neighbourhood & Community Services,NCS,Care Purchase - Learning Disability,54450,CP-Day Care-External,441100,04-Sep-13,1900127406,"2,217.00",Deafness Support Network,104657
WARRINGTON BOROUGH COUNCIL,http://statistics.data.gov.uk/id/local-authority/00EU,Neighbourhood & Community Services,NCS,Care Purchase - Learning Disability,54450,CP ExternalOther Exp,440800,04-Sep-13,1900127407,"1,000.00",Derbyshire Healthcare NHS Foundatio,112208
WARRINGTON BOROUGH COUNCIL,http://statistics.data.gov.uk/id/local-authority/00EU,Neighbourhood & Community Services,NCS,Care Purchase - OP & OT South,54480,CP-LongStayExternal,441150,04-Sep-13,1900127408,"1,425.00",East Dunbartonshire Council,410087
WARRINGTON BOROUGH COUNCIL,http://statistics.data.gov.uk/id/local-authority/00EU,Neighbourhood & Community Services,NCS,Care Purchase - Learning Disability,54450,CP-Domicil.External,440950,04-Sep-13,1900127416,"1,771.00",M-Power Activity Services Ltd,102186
WARRINGTON BOROUGH COUNCIL,http://statistics.data.gov.uk/id/local-authority/00EU,Neighbourhood & Community Services,NCS,Care Purchase -OP & OT East,54430,CP-LongStayExternal,441150,04-Sep-13,1900127417,"1,516.00",Mayfield House Care Home Ltd,101862
WARRINGTON BOROUGH COUNCIL,http://statistics.data.gov.uk/id/local-authority/00EU,Neighbourhood & Community Services,NCS,Care Purchase - Mental Health Team 2,54240,CP-LongStayExternal,441150,04-Sep-13,1900127419,"2,214.00",Mimosa Healthcare,111698
WARRINGTON BOROUGH COUNCIL,http://statistics.data.gov.uk/id/local-authority/00EU,Neighbourhood & Community Services,NCS,Care Purchase - Learning Disability,54450,CP-LongStayExternal,441150,04-Sep-13,1900127421,"3,508.00",Potens Ltd TA Heath Lodge,102481
WARRINGTON BOROUGH COUNCIL,http://statistics.data.gov.uk/id/local-authority/00EU,Children & Young People,CHL,Foster Allowances,31106,Fostering Allowance,550050,04-Sep-13,1900127422,674.00,Redacted Personal Data,460813
WARRINGTON BOROUGH COUNCIL,http://statistics.data.gov.uk/id/local-authority/00EU,Neighbourhood & Community Services,NCS,Care Purchase - Learning Disability,54450,Direct Payments,552000,17-Sep-13,1900128221,"1,014.00",Redacted Personal Data,460172
WARRINGTON BOROUGH COUNCIL,http://statistics.data.gov.uk/id/local-authority/00EU,Neighbourhood & Community Services,NCS,Care Purchase - Learning Disability,54450,Direct Payments,552000,17-Sep-13,1900128223,770.00,Redacted Personal Data,460177
WARRINGTON BOROUGH COUNCIL,http://statistics.data.gov.uk/id/local-authority/00EU,Neighbourhood & Community Services,NCS,Care Purchase - Learning Disability,54450,Direct Payments,552000,17-Sep-13,1900128224,"1,387.00",Redacted Personal Data,460182
WARRINGTON BOROUGH COUNCIL,http://statistics.data.gov.uk/id/local-authority/00EU,Neighbourhood & Community Services,NCS,Care Purchase - PD,54440,Direct Payments,552000,17-Sep-13,1900128227,741.00,Redacted Personal Data,460192
WARRINGTON BOROUGH COUNCIL,http://statistics.data.gov.uk/id/local-authority/00EU,Neighbourhood & Community Services,NCS,Care Purchase - ABI,54260,Direct Payments,552000,17-Sep-13,1900128228,942.00,Redacted Personal Data,460193
WARRINGTON BOROUGH COUNCIL,http://statistics.data.gov.uk/id/local-authority/00EU,Neighbourhood & Community Services,NCS,Care Purchase - Learning Disability,54450,Direct Payments,552000,17-Sep-13,1900128229,"1,000.00",Redacted Personal Data,460195
WARRINGTON BOROUGH COUNCIL,http://statistics.data.gov.uk/id/local-authority/00EU,Neighbourhood & Community Services,NCS,Care Purchase - Learning Disability,54450,Direct Payments,552000,17-Sep-13,1900128230,720.00,Redacted Personal Data,460199
WARRINGTON BOROUGH COUNCIL,http://statistics.data.gov.uk/id/local-authority/00EU,Neighbourhood & Community Services,NCS,Care Purchase - Learning Disability,54450,Direct Payments,552000,17-Sep-13,1900128231,520.00,Redacted Personal Data,460202
WARRINGTON BOROUGH COUNCIL,http://statistics.data.gov.uk/id/local-authority/00EU,Children & Young People,CHL,Child Disability,32212,Direct Payments,552000,17-Sep-13,1900128232,600.00,Redacted Personal Data,460206
WARRINGTON BOROUGH COUNCIL,http://statistics.data.gov.uk/id/local-authority/00EU,Neighbourhood & Community Services,NCS,Care Purchase - Learning Disability,54450,Direct Payments,552000,17-Sep-13,1900128233,"7,667.00",Redacted Personal Data,460210
WARRINGTON BOROUGH COUNCIL,http://statistics.data.gov.uk/id/local-authority/00EU,Neighbourhood & Community Services,NCS,Care Purchase - PD,54440,Direct Payments,552000,17-Sep-13,1900128235,915.00,Redacted Personal Data,460214
WARRINGTON BOROUGH COUNCIL,http://statistics.data.gov.uk/id/local-authority/00EU,Neighbourhood & Community Services,NCS,Care Purchase - PD,54440,Direct Payments,552000,17-Sep-13,1900128236,"1,178.00",Redacted Personal Data,460215
WARRINGTON BOROUGH COUNCIL,http://statistics.data.gov.uk/id/local-authority/00EU,Neighbourhood & Community Services,NCS,Care Purchase -OP & OT East,54430,Direct Payments,552000,17-Sep-13,1900128238,"1,455.00",Redacted Personal Data,460218
WARRINGTON BOROUGH COUNCIL,http://statistics.data.gov.uk/id/local-authority/00EU,Neighbourhood & Community Services,NCS,Care Purchase - OP & OT South,54480,Direct Payments,552000,17-Sep-13,1900128239,"1,272.00",Redacted Personal Data,460222
WARRINGTON BOROUGH COUNCIL,http://statistics.data.gov.uk/id/local-authority/00EU,Children & Young People,CHL,Child Disability,32212,Direct Payments,552000,17-Sep-13,1900128240,866.00,Redacted Personal Data,460224
WARRINGTON BOROUGH COUNCIL,http://statistics.data.gov.uk/id/local-authority/00EU,Neighbourhood & Community Services,NCS,Care Purchase - PD,54440,Direct Payments,552000,17-Sep-13,1900128241,891.00,Redacted Personal Data,460226
WARRINGTON BOROUGH COUNCIL,http://statistics.data.gov.uk/id/local-authority/00EU,Neighbourhood & Community Services,NCS,Care Purchase - Learning Disability,54450,Direct Payments,552000,17-Sep-13,1900128242,627.00,Redacted Personal Data,460229
WARRINGTON BOROUGH COUNCIL,http://statistics.data.gov.uk/id/local-authority/00EU,Neighbourhood & Community Services,NCS,Care Purchase - OP & OT Central,54420,Direct Payments,552000,17-Sep-13,1900128245,714.00,Redacted Personal Data,460238
WARRINGTON BOROUGH COUNCIL,http://statistics.data.gov.uk/id/local-authority/00EU,Neighbourhood & Community Services,NCS,Care Purchase - PD,54440,Direct Payments,552000,17-Sep-13,1900128247,914.00,Redacted Personal Data,460243
WARRINGTON BOROUGH COUNCIL,http://statistics.data.gov.uk/id/local-authority/00EU,Neighbourhood & Community Services,NCS,Care Purchase - PD,54440,Direct Payments,552000,17-Sep-13,1900128255,"2,036.00",Redacted Personal Data,460257
WARRINGTON BOROUGH COUNCIL,http://statistics.data.gov.uk/id/local-authority/00EU,Neighbourhood & Community Services,NCS,Care Purchase - PD,54440,Direct Payments,552000,17-Sep-13,1900128257,849.00,Redacted Personal Data,460262
WARRINGTON BOROUGH COUNCIL,http://statistics.data.gov.uk/id/local-authority/00EU,Neighbourhood & Community Services,NCS,Care Purchase - Learning Disability,54450,Direct Payments,552000,17-Sep-13,1900128258,"5,131.00",Redacted Personal Data,460263
WARRINGTON BOROUGH COUNCIL,http://statistics.data.gov.uk/id/local-authority/00EU,Neighbourhood & Community Services,NCS,Care Purchase - OP & OT Central,54420,Direct Payments,552000,17-Sep-13,1900128260,661.00,Redacted Personal Data,460265
WARRINGTON BOROUGH COUNCIL,http://statistics.data.gov.uk/id/local-authority/00EU,Neighbourhood & Community Services,NCS,Care Purchase - OP & OT Central,54420,Direct Payments,552000,17-Sep-13,1900128261,829.00,Redacted Personal Data,460266
WARRINGTON BOROUGH COUNCIL,http://statistics.data.gov.uk/id/local-authority/00EU,Neighbourhood & Community Services,NCS,Care Purchase - PD,54440,Supporting People - External,441250,17-Sep-13,1900128262,637.00,Redacted Personal Data,460267
WARRINGTON BOROUGH COUNCIL,http://statistics.data.gov.uk/id/local-authority/00EU,Children & Young People,CHL,Child Disability,32212,Direct Payments,552000,17-Sep-13,1900128263,895.00,Redacted Personal Data,460268
WARRINGTON BOROUGH COUNCIL,http://statistics.data.gov.uk/id/local-authority/00EU,Neighbourhood & Community Services,NCS,Care Purchase - PD,54440,Direct Payments,552000,17-Sep-13,1900128264,"1,613.00",Redacted Personal Data,460269
WARRINGTON BOROUGH COUNCIL,http://statistics.data.gov.uk/id/local-authority/00EU,Neighbourhood & Community Services,NCS,Care Purchase - PD,54440,Direct Payments,552000,17-Sep-13,1900128265,550.00,Redacted Personal Data,460270
WARRINGTON BOROUGH COUNCIL,http://statistics.data.gov.uk/id/local-authority/00EU,Neighbourhood & Community Services,NCS,Care Purchase - OP & OT West,54470,Direct Payments,552000,17-Sep-13,1900128266,"1,702.00",Redacted Personal Data,460273
WARRINGTON BOROUGH COUNCIL,http://statistics.data.gov.uk/id/local-authority/00EU,Neighbourhood & Community Services,NCS,Care Purchase - Learning Disability,54450,Direct Payments,552000,17-Sep-13,1900128267,849.00,Redacted Personal Data,460275
WARRINGTON BOROUGH COUNCIL,http://statistics.data.gov.uk/id/local-authority/00EU,Neighbourhood & Community Services,NCS,Care Purchase - PD,54440,Direct Payments,552000,17-Sep-13,1900128268,"1,188.00",Redacted Personal Data,460278
WARRINGTON BOROUGH COUNCIL,http://statistics.data.gov.uk/id/local-authority/00EU,Neighbourhood & Community Services,NCS,Care Purchase - Learning Disability,54450,Direct Payments,552000,17-Sep-13,1900128269,520.00,Redacted Personal Data,460279
WARRINGTON BOROUGH COUNCIL,http://statistics.data.gov.uk/id/local-authority/00EU,Neighbourhood & Community Services,NCS,Care Purchase - Learning Disability,54450,Direct Payments,552000,17-Sep-13,1900128270,921.00,Redacted Personal Data,460281
WARRINGTON BOROUGH COUNCIL,http://statistics.data.gov.uk/id/local-authority/00EU,Neighbourhood & Community Services,NCS,Care Purchase - OP & OT South,54480,Direct Payments,552000,17-Sep-13,1900128271,"1,204.00",Redacted Personal Data,460283
WARRINGTON BOROUGH COUNCIL,http://statistics.data.gov.uk/id/local-authority/00EU,Neighbourhood & Community Services,NCS,Care Purchase - Learning Disability,54450,Direct Payments,552000,17-Sep-13,1900128273,"2,744.00",Redacted Personal Data,460286
WARRINGTON BOROUGH COUNCIL,http://statistics.data.gov.uk/id/local-authority/00EU,Neighbourhood & Community Services,NCS,Care Purchase - Learning Disability,54450,Direct Payments,552000,17-Sep-13,1900128274,"1,889.00",Redacted Personal Data,460290
WARRINGTON BOROUGH COUNCIL,http://statistics.data.gov.uk/id/local-authority/00EU,Neighbourhood & Community Services,NCS,Care Purchase - PD,54440,Direct Payments,552000,17-Sep-13,1900128275,637.00,Redacted Personal Data,460291
WARRINGTON BOROUGH COUNCIL,http://statistics.data.gov.uk/id/local-authority/00EU,Neighbourhood & Community Services,NCS,Care Purchase - ABI,54260,Direct Payments,552000,17-Sep-13,1900128277,"1,273.00",Redacted Personal Data,460295
WARRINGTON BOROUGH COUNCIL,http://statistics.data.gov.uk/id/local-authority/00EU,Neighbourhood & Community Services,NCS,Care Purchase - PD,54440,Direct Payments,552000,17-Sep-13,1900128278,"1,120.00",Redacted Personal Data,460297
WARRINGTON BOROUGH COUNCIL,http://statistics.data.gov.uk/id/local-authority/00EU,Neighbourhood & Community Services,NCS,Care Purchase - Learning Disability,54450,Direct Payments,552000,17-Sep-13,1900128284,"1,489.00",Redacted Personal Data,460316
WARRINGTON BOROUGH COUNCIL,http://statistics.data.gov.uk/id/local-authority/00EU,Neighbourhood & Community Services,NCS,Care Purchase - OP & OT West,54470,Direct Payments,552000,17-Sep-13,1900128285,606.00,Redacted Personal Data,460319
WARRINGTON BOROUGH COUNCIL,http://statistics.data.gov.uk/id/local-authority/00EU,Neighbourhood & Community Services,NCS,Care Purchase - PD,54440,Direct Payments,552000,17-Sep-13,1900128288,"1,150.00",Redacted Personal Data,460324
WARRINGTON BOROUGH COUNCIL,http://statistics.data.gov.uk/id/local-authority/00EU,Neighbourhood & Community Services,NCS,Care Purchase - PD,54440,Direct Payments,552000,17-Sep-13,1900128291,"2,736.00",Redacted Personal Data,460329
WARRINGTON BOROUGH COUNCIL,http://statistics.data.gov.uk/id/local-authority/00EU,Neighbourhood & Community Services,NCS,Care Purchase - PD,54440,Direct Payments,552000,17-Sep-13,1900128295,509.00,Redacted Personal Data,460414
WARRINGTON BOROUGH COUNCIL,http://statistics.data.gov.uk/id/local-authority/00EU,Neighbourhood & Community Services,NCS,Care Purchase - Learning Disability,54450,Direct Payments,552000,17-Sep-13,1900128298,"1,202.00",Redacted Personal Data,460425
WARRINGTON BOROUGH COUNCIL,http://statistics.data.gov.uk/id/local-authority/00EU,Neighbourhood & Community Services,NCS,Care Purchase - PD,54440,Direct Payments,552000,17-Sep-13,1900128299,594.00,Redacted Personal Data,460426
WARRINGTON BOROUGH COUNCIL,http://statistics.data.gov.uk/id/local-authority/00EU,Neighbourhood & Community Services,NCS,Care Purchase - PD,54440,Direct Payments,552000,17-Sep-13,1900128301,"1,467.00",Redacted Personal Data,460430
WARRINGTON BOROUGH COUNCIL,http://statistics.data.gov.uk/id/local-authority/00EU,Children & Young People,CHL,Child Disability,32212,Direct Payments,552000,17-Sep-13,1900128307,978.00,Redacted Personal Data,460452
WARRINGTON BOROUGH COUNCIL,http://statistics.data.gov.uk/id/local-authority/00EU,Neighbourhood & Community Services,NCS,Care Purchase - OP & OT West,54470,Direct Payments,552000,17-Sep-13,1900128308,774.00,Redacted Personal Data,460454
WARRINGTON BOROUGH COUNCIL,http://statistics.data.gov.uk/id/local-authority/00EU,Neighbourhood & Community Services,NCS,Care Purchase - OP & OT Central,54420,Direct Payments,552000,17-Sep-13,1900128309,"1,012.00",Redacted Personal Data,460455
WARRINGTON BOROUGH COUNCIL,http://statistics.data.gov.uk/id/local-authority/00EU,Neighbourhood & Community Services,NCS,Care Purchase - PD,54440,Direct Payments,552000,17-Sep-13,1900128313,668.00,Redacted Personal Data,460468
WARRINGTON BOROUGH COUNCIL,http://statistics.data.gov.uk/id/local-authority/00EU,Neighbourhood & Community Services,NCS,Care Purchase - PD,54440,Direct Payments,552000,17-Sep-13,1900128317,637.00,Redacted Personal Data,460482
WARRINGTON BOROUGH COUNCIL,http://statistics.data.gov.uk/id/local-authority/00EU,Neighbourhood & Community Services,NCS,Care Purchase - PD,54440,Direct Payments,552000,17-Sep-13,1900128320,679.00,Redacted Personal Data,460509
WARRINGTON BOROUGH COUNCIL,http://statistics.data.gov.uk/id/local-authority/00EU,Neighbourhood & Community Services,NCS,Care Purchase - Learning Disability,54450,Direct Payments,552000,17-Sep-13,1900128324,"1,616.00",Redacted Personal Data,460514
WARRINGTON BOROUGH COUNCIL,http://statistics.data.gov.uk/id/local-authority/00EU,Neighbourhood & Community Services,NCS,Care Purchase - PD,54440,Direct Payments,552000,17-Sep-13,1900128325,"1,271.00",Redacted Personal Data,460518
WARRINGTON BOROUGH COUNCIL,http://statistics.data.gov.uk/id/local-authority/00EU,Neighbourhood & Community Services,NCS,Care Purchase - Learning Disability,54450,Direct Payments,552000,17-Sep-13,1900128326,"1,188.00",Redacted Personal Data,460519
WARRINGTON BOROUGH COUNCIL,http://statistics.data.gov.uk/id/local-authority/00EU,Neighbourhood & Community Services,NCS,Care Purchase - Mental Health Team 2,54240,Direct Payments,552000,17-Sep-13,1900128327,978.00,Redacted Personal Data,460520
WARRINGTON BOROUGH COUNCIL,http://statistics.data.gov.uk/id/local-authority/00EU,Neighbourhood & Community Services,NCS,Care Purchase - PD,54440,Direct Payments,552000,17-Sep-13,1900128332,659.00,Redacted Personal Data,460545
WARRINGTON BOROUGH COUNCIL,http://statistics.data.gov.uk/id/local-authority/00EU,Neighbourhood & Community Services,NCS,Care Purchase - Learning Disability,54450,Direct Payments,552000,17-Sep-13,1900128335,"2,466.00",Redacted Personal Data,460566
WARRINGTON BOROUGH COUNCIL,http://statistics.data.gov.uk/id/local-authority/00EU,Neighbourhood & Community Services,NCS,Care Purchase - PD,54440,Direct Payments,552000,17-Sep-13,1900128336,615.00,Redacted Personal Data,460568
WARRINGTON BOROUGH COUNCIL,http://statistics.data.gov.uk/id/local-authority/00EU,Neighbourhood & Community Services,NCS,Care Purchase - PD,54440,Direct Payments,552000,17-Sep-13,1900128338,"1,591.00",Redacted Personal Data,460576
WARRINGTON BOROUGH COUNCIL,http://statistics.data.gov.uk/id/local-authority/00EU,Neighbourhood & Community Services,NCS,Care Purchase - PD,54440,Direct Payments,552000,17-Sep-13,1900128341,615.00,Redacted Personal Data,460581
WARRINGTON BOROUGH COUNCIL,http://statistics.data.gov.uk/id/local-authority/00EU,Neighbourhood & Community Services,NCS,Care Purchase -OP & OT East,54430,Direct Payments,552000,17-Sep-13,1900128343,586.00,Redacted Personal Data,460585
WARRINGTON BOROUGH COUNCIL,http://statistics.data.gov.uk/id/local-authority/00EU,Neighbourhood & Community Services,NCS,Care Purchase - PD,54440,Direct Payments,552000,17-Sep-13,1900128345,667.00,Redacted Personal Data,460588
WARRINGTON BOROUGH COUNCIL,http://statistics.data.gov.uk/id/local-authority/00EU,Neighbourhood & Community Services,NCS,Care Purchase - PD,54440,Direct Payments,552000,17-Sep-13,1900128348,"1,188.00",Redacted Personal Data,460598
WARRINGTON BOROUGH COUNCIL,http://statistics.data.gov.uk/id/local-authority/00EU,Neighbourhood & Community Services,NCS,Care Purchase - PD,54440,Direct Payments,552000,17-Sep-13,1900128350,"1,178.00",Redacted Personal Data,460622
WARRINGTON BOROUGH COUNCIL,http://statistics.data.gov.uk/id/local-authority/00EU,Neighbourhood & Community Services,NCS,Care Purchase - PD,54440,Direct Payments,552000,17-Sep-13,1900128351,917.00,Redacted Personal Data,460623
WARRINGTON BOROUGH COUNCIL,http://statistics.data.gov.uk/id/local-authority/00EU,Neighbourhood & Community Services,NCS,Care Purchase - Learning Disability,54450,Direct Payments,552000,17-Sep-13,1900128352,"1,698.00",Redacted Personal Data,460625
WARRINGTON BOROUGH COUNCIL,http://statistics.data.gov.uk/id/local-authority/00EU,Neighbourhood & Community Services,NCS,Care Purchase - PD,54440,Direct Payments,552000,17-Sep-13,1900128354,693.00,Redacted Personal Data,460638
WARRINGTON BOROUGH COUNCIL,http://statistics.data.gov.uk/id/local-authority/00EU,Neighbourhood & Community Services,NCS,Care Purchase - Learning Disability,54450,Direct Payments,552000,17-Sep-13,1900128355,"1,188.00",Redacted Personal Data,460665
WARRINGTON BOROUGH COUNCIL,http://statistics.data.gov.uk/id/local-authority/00EU,Neighbourhood & Community Services,NCS,Care Purchase - Mental Health Team 3,54250,Direct Payments,552000,17-Sep-13,1900128357,679.00,Redacted Personal Data,460671
WARRINGTON BOROUGH COUNCIL,http://statistics.data.gov.uk/id/local-authority/00EU,Neighbourhood & Community Services,NCS,Care Purchase - OP & OT West,54470,Direct Payments,552000,17-Sep-13,1900128359,533.00,Redacted Personal Data,460682
WARRINGTON BOROUGH COUNCIL,http://statistics.data.gov.uk/id/local-authority/00EU,Neighbourhood & Community Services,NCS,Care Purchase - PD,54440,Direct Payments,552000,17-Sep-13,1900128361,552.00,Redacted Personal Data,460684
WARRINGTON BOROUGH COUNCIL,http://statistics.data.gov.uk/id/local-authority/00EU,Neighbourhood & Community Services,NCS,Care Purchase - OP & OT West,54470,Direct Payments,552000,17-Sep-13,1900128363,619.00,Redacted Personal Data,460689
WARRINGTON BOROUGH COUNCIL,http://statistics.data.gov.uk/id/local-authority/00EU,Neighbourhood & Community Services,NCS,Care Purchase - PD,54440,Direct Payments,552000,17-Sep-13,1900128369,"1,174.00",Redacted Personal Data,460703
WARRINGTON BOROUGH COUNCIL,http://statistics.data.gov.uk/id/local-authority/00EU,Neighbourhood & Community Services,NCS,Care Purchase - Learning Disability,54450,Direct Payments,552000,17-Sep-13,1900128372,"11,453.00",Redacted Personal Data,460725
WARRINGTON BOROUGH COUNCIL,http://statistics.data.gov.uk/id/local-authority/00EU,Neighbourhood & Community Services,NCS,Care Purchase - PD,54440,Direct Payments,552000,17-Sep-13,1900128373,797.00,Redacted Personal Data,460726
WARRINGTON BOROUGH COUNCIL,http://statistics.data.gov.uk/id/local-authority/00EU,Neighbourhood & Community Services,NCS,Care Purchase - OP & OT West,54470,Direct Payments,552000,17-Sep-13,1900128374,646.00,Redacted Personal Data,460727
WARRINGTON BOROUGH COUNCIL,http://statistics.data.gov.uk/id/local-authority/00EU,Neighbourhood & Community Services,NCS,Care Purchase - PD,54440,Direct Payments,552000,17-Sep-13,1900128378,552.00,Redacted Personal Data,460733
WARRINGTON BOROUGH COUNCIL,http://statistics.data.gov.uk/id/local-authority/00EU,Neighbourhood & Community Services,NCS,Care Purchase - OP & OT Central,54420,Direct Payments,552000,17-Sep-13,1900128380,676.00,Redacted Personal Data,460735
WARRINGTON BOROUGH COUNCIL,http://statistics.data.gov.uk/id/local-authority/00EU,Neighbourhood & Community Services,NCS,Care Purchase - OP & OT West,54470,CP-Nursing Care-External,441200,04-Sep-13,1900127423,"2,628.00",The Turner Home,102163
WARRINGTON BOROUGH COUNCIL,http://statistics.data.gov.uk/id/local-authority/00EU,Neighbourhood & Community Services,NCS,Care Purchase -OP & OT East,54430,CP-Nursing Care-External,441200,04-Sep-13,1900127424,"2,580.00",The Turner Home,102163
WARRINGTON BOROUGH COUNCIL,http://statistics.data.gov.uk/id/local-authority/00EU,Neighbourhood & Community Services,NCS,Care Purchase - OP & OT West,54470,CP-LongStayExternal,441150,04-Sep-13,1900127425,"2,544.00",The Turner Home,102163
WARRINGTON BOROUGH COUNCIL,http://statistics.data.gov.uk/id/local-authority/00EU,Children & Young People,CYP,Primary,81001,ICT Comms - Equipment Purchase,450100,05-Sep-13,1900127427,725.00,Abtec Computer Solutions Ltd,107132
WARRINGTON BOROUGH COUNCIL,http://statistics.data.gov.uk/id/local-authority/00EU,Children & Young People,CHL,Legal Fees - Safeguarding,30100,Legal Costs Incurred,440200,05-Sep-13,1900127430,"3,320.00",HMCTS,440115
WARRINGTON BOROUGH COUNCIL,http://statistics.data.gov.uk/id/local-authority/00EU,Children & Young People,CYP,Primary,81001,Consult.& Prof. Serv,440000,05-Sep-13,1900127440,"39,000.00",Manchester City Council,410005
WARRINGTON BOROUGH COUNCIL,http://statistics.data.gov.uk/id/local-authority/00EU,Children & Young People,CHL,SCM Newchurch Primary School,33134,Response Maintenance,200000,05-Sep-13,1900127448,"5,324.00",Hoult Group Services,111129
WARRINGTON BOROUGH COUNCIL,http://statistics.data.gov.uk/id/local-authority/00EU,Environment & Regeneration,ENO,Housing Projects,82008,Disabled Persons Grant 1996,554000,05-Sep-13,1900127458,"4,801.00",J Barton Building Plumbing & Electr,111201
WARRINGTON BOROUGH COUNCIL,http://statistics.data.gov.uk/id/local-authority/00EU,Environment & Regeneration,ER0,Postal & Courier Services,52130,Postages,450000,05-Sep-13,1900127459,"1,511.00",Royal Mail,101445
WARRINGTON BOROUGH COUNCIL,http://statistics.data.gov.uk/id/local-authority/00EU,Environment & Regeneration,ENO,Housing Projects,82008,Disabled Persons Grant 1996,554000,05-Sep-13,1900127460,"2,272.00",Total Plumbing Solutions,102587
WARRINGTON BOROUGH COUNCIL,http://statistics.data.gov.uk/id/local-authority/00EU,Environment & Regeneration,ENO,Housing Projects,82008,Disabled Persons Grant 1996,554000,05-Sep-13,1900127462,668.00,Adactus Housing Association Ltd,101634
WARRINGTON BOROUGH COUNCIL,http://statistics.data.gov.uk/id/local-authority/00EU,Environment & Regeneration,ER0,ICT & Business Improvement,23020,ICT Comms - Line Rental,450200,05-Sep-13,1900127464,"10,080.00",Virgin Media Business,106824
WARRINGTON BOROUGH COUNCIL,http://statistics.data.gov.uk/id/local-authority/00EU,Environment & Regeneration,ER0,ICT & Business Improvement,23020,ICT Comms - Line Rental,450200,05-Sep-13,1900127465,"2,400.00",Virgin Media Business,106824
WARRINGTON BOROUGH COUNCIL,http://statistics.data.gov.uk/id/local-authority/00EU,Children & Young People,CYP,Childrens Other,81004,Contract Works,492550,05-Sep-13,1900127467,"7,795.00",Whitespace Consultants Ltd,111969
WARRINGTON BOROUGH COUNCIL,http://statistics.data.gov.uk/id/local-authority/00EU,Children & Young People,CHL,DSG Independent School Fees,32011,Independent School Fees,490200,05-Sep-13,1900127468,"7,215.00",Chaigeley Educational Foundation,400123
WARRINGTON BOROUGH COUNCIL,http://statistics.data.gov.uk/id/local-authority/00EU,Children & Young People,CHL,DSG Independent School Fees,32011,Independent School Fees,490200,05-Sep-13,1900127469,"9,833.00",Chaigeley Educational Foundation,400123
WARRINGTON BOROUGH COUNCIL,http://statistics.data.gov.uk/id/local-authority/00EU,Children & Young People,CHL,Child Disability,32212,CP-Domicil.External,440950,05-Sep-13,1900127472,"3,816.00",Carewatch North Cheshire,104573
WARRINGTON BOROUGH COUNCIL,http://statistics.data.gov.uk/id/local-authority/00EU,Children & Young People,CYP,Childrens Other,81004,Equipment Purchase & Contract,400000,05-Sep-13,1900127474,"2,945.00",Millennium Business Systems Ltd,106320
WARRINGTON BOROUGH COUNCIL,http://statistics.data.gov.uk/id/local-authority/00EU,Children & Young People,CYP,Childrens Other,81004,Equipment Purchase & Contract,400000,05-Sep-13,1900127475,877.00,Millennium Business Systems Ltd,106320
WARRINGTON BOROUGH COUNCIL,http://statistics.data.gov.uk/id/local-authority/00EU,Children & Young People,CYP,Childrens Other,81004,Equipment Purchase & Contract,400000,05-Sep-13,1900127476,740.00,Millennium Business Systems Ltd,106320
WARRINGTON BOROUGH COUNCIL,http://statistics.data.gov.uk/id/local-authority/00EU,Children & Young People,CYP,Childrens Other,81004,Contract Works,492550,06-Sep-13,1900127486,"1,062.00",Spectrum Flooring Ltd,105416
WARRINGTON BOROUGH COUNCIL,http://statistics.data.gov.uk/id/local-authority/00EU,Children & Young People,CYP,Childrens Other,81004,Furniture & Fittings,400150,06-Sep-13,1900127490,"1,008.00",Penketh's,105014
WARRINGTON BOROUGH COUNCIL,http://statistics.data.gov.uk/id/local-authority/00EU,Children & Young People,CYP,Childrens Other,81004,Contract Works,492550,06-Sep-13,1900127494,"31,250.00",Creative Play UK Ltd,111392
WARRINGTON BOROUGH COUNCIL,http://statistics.data.gov.uk/id/local-authority/00EU,Neighbourhood & Community Services,NCS,Care Purchase - Learning Disability,54450,CP-Domicil.External,440950,06-Sep-13,1900127506,"49,877.00",Future Directions Community Interes,111498
WARRINGTON BOROUGH COUNCIL,http://statistics.data.gov.uk/id/local-authority/00EU,Neighbourhood & Community Services,NCS,Care Purchase - Learning Disability,54450,Supporting People - External,441250,06-Sep-13,1900127506,"7,097.00",Future Directions Community Interes,111498
WARRINGTON BOROUGH COUNCIL,http://statistics.data.gov.uk/id/local-authority/00EU,Neighbourhood & Community Services,NCS,Contracts - OM HPHL Team,55940,Public Health Contribution Payments,540010,06-Sep-13,1900127511,750.00,Warrington Collegiate,440101
WARRINGTON BOROUGH COUNCIL,http://statistics.data.gov.uk/id/local-authority/00EU,Neighbourhood & Community Services,NCS,Care Purchase Budget,54490,CP ExternalOther Exp,440800,06-Sep-13,1900127515,"4,441.00",Warrington Community Care,105229
WARRINGTON BOROUGH COUNCIL,http://statistics.data.gov.uk/id/local-authority/00EU,Neighbourhood & Community Services,NCS,Care Purchase Budget,54490,CP ExternalOther Exp,440800,06-Sep-13,1900127516,"3,412.00",Rosevilla Residential Home,105084
WARRINGTON BOROUGH COUNCIL,http://statistics.data.gov.uk/id/local-authority/00EU,Neighbourhood & Community Services,NCS,Care Purchase - Learning Disability,54450,CP-Nursing Care-External,441200,06-Sep-13,1900127518,"3,588.00",Stocks Hall Care Homes Ltd,102512
WARRINGTON BOROUGH COUNCIL,http://statistics.data.gov.uk/id/local-authority/00EU,Children & Young People,CYP,Childrens Other,81004,ICT Comms - Equipment Purchase,450100,06-Sep-13,1900127519,"4,879.00",JP-UK Just Print Ltd,112223
WARRINGTON BOROUGH COUNCIL,http://statistics.data.gov.uk/id/local-authority/00EU,Neighbourhood & Community Services,NCS,Care Purchase Budget,54490,CP ExternalOther Exp,440800,06-Sep-13,1900127520,686.00,Minster Care Management Ltd,105179
WARRINGTON BOROUGH COUNCIL,http://statistics.data.gov.uk/id/local-authority/00EU,Neighbourhood & Community Services,NCS,Care Purchase - OP & OT West,54470,CP-Nursing Care-External,441200,06-Sep-13,1900127522,"1,708.00",St Nicholas Nursing Home,110287
WARRINGTON BOROUGH COUNCIL,http://statistics.data.gov.uk/id/local-authority/00EU,Neighbourhood & Community Services,NCS,Care Purchase - Mental Health Team 1,54230,CP-Domicil.External,440950,06-Sep-13,1900127524,"2,155.00",Next Stage A Way Forward Ltd,101217
WARRINGTON BOROUGH COUNCIL,http://statistics.data.gov.uk/id/local-authority/00EU,Neighbourhood & Community Services,NCS,Care Purchase Budget,54490,CP Free Nursing Care External,443500,06-Sep-13,1900127525,"2,196.00",Summerville Nursing Home -Private C,105162
WARRINGTON BOROUGH COUNCIL,http://statistics.data.gov.uk/id/local-authority/00EU,Neighbourhood & Community Services,NCS,Care Purchase - Learning Disability,54450,CP-LongStayExternal,441150,06-Sep-13,1900127526,"2,797.00",Redacted Personal Data,100583
WARRINGTON BOROUGH COUNCIL,http://statistics.data.gov.uk/id/local-authority/00EU,Neighbourhood & Community Services,NCS,Care Purchase - PD,54440,CP-Domicil.External,440950,06-Sep-13,1900127527,"4,258.00",Allied Healthcare Group Ltd,100796
WARRINGTON BOROUGH COUNCIL,http://statistics.data.gov.uk/id/local-authority/00EU,Neighbourhood & Community Services,NCS,Care Purchase - PD,54440,Supporting People - External,441250,06-Sep-13,1900127527,718.00,Allied Healthcare Group Ltd,100796
WARRINGTON BOROUGH COUNCIL,http://statistics.data.gov.uk/id/local-authority/00EU,Neighbourhood & Community Services,NCS,Care Purchase - Learning Disability,54450,CP-LongStayExternal,441150,06-Sep-13,1900127528,"2,880.00",Thornton Manor,107806
WARRINGTON BOROUGH COUNCIL,http://statistics.data.gov.uk/id/local-authority/00EU,Neighbourhood & Community Services,NCS,Care Purchase - OP & OT West,54470,CP-Nursing Care-External,441200,06-Sep-13,1900127529,"1,708.00",St Nicholas Nursing Home,110287
WARRINGTON BOROUGH COUNCIL,http://statistics.data.gov.uk/id/local-authority/00EU,Neighbourhood & Community Services,NCS,Care Purchase - Learning Disability,54450,CP-Nursing Care-External,441200,06-Sep-13,1900127530,"2,445.00",Thornton Manor,107806
WARRINGTON BOROUGH COUNCIL,http://statistics.data.gov.uk/id/local-authority/00EU,Neighbourhood & Community Services,NCS,Care Purchase Budget,54490,CP ExternalOther Exp,440800,06-Sep-13,1900127531,"5,644.00",Arlington House,104491
WARRINGTON BOROUGH COUNCIL,http://statistics.data.gov.uk/id/local-authority/00EU,Neighbourhood & Community Services,NCS,Care Purchase - OP & OT South,54480,CP-Domicil.External,440950,06-Sep-13,1900127532,"4,046.00",St Monica Trust,104021
WARRINGTON BOROUGH COUNCIL,http://statistics.data.gov.uk/id/local-authority/00EU,Neighbourhood & Community Services,NCS,Care Purchase - OP & OT Central,54420,CP-Domicil.External,440950,06-Sep-13,1900127534,"3,317.00",Allied Healthcare Group Ltd,100796
WARRINGTON BOROUGH COUNCIL,http://statistics.data.gov.uk/id/local-authority/00EU,Neighbourhood & Community Services,NCS,Care Purchase -OP & OT East,54430,CP-Domicil.External,440950,06-Sep-13,1900127534,"2,902.00",Allied Healthcare Group Ltd,100796
WARRINGTON BOROUGH COUNCIL,http://statistics.data.gov.uk/id/local-authority/00EU,Neighbourhood & Community Services,NCS,Care Purchase - PD,54440,CP-LongStayExternal,441150,06-Sep-13,1900127535,"7,324.00",Spinal Unit Action Group,110574
WARRINGTON BOROUGH COUNCIL,http://statistics.data.gov.uk/id/local-authority/00EU,Neighbourhood & Community Services,NCS,Care Purchase - Learning Disability,54450,CP-LongStayExternal,441150,06-Sep-13,1900127537,"18,603.00",St Helens Mbc,105097
WARRINGTON BOROUGH COUNCIL,http://statistics.data.gov.uk/id/local-authority/00EU,Neighbourhood & Community Services,NCS,Care Purchase Budget,54490,CP ExternalOther Exp,440800,06-Sep-13,1900127542,"19,804.00",Harbour Healthcare 1 Ltd,110527
WARRINGTON BOROUGH COUNCIL,http://statistics.data.gov.uk/id/local-authority/00EU,Neighbourhood & Community Services,NCS,Care Purchase - OP & OT South,54480,CP-Nursing Care-External,441200,06-Sep-13,1900127543,"2,064.00",St Monica Trust,104021
WARRINGTON BOROUGH COUNCIL,http://statistics.data.gov.uk/id/local-authority/00EU,Children & Young People,CHL,CYPS - Rents & Charges,32422,Consult.& Prof. Serv,440000,06-Sep-13,1900127545,"5,865.00",Uniqwin UK,105210
WARRINGTON BOROUGH COUNCIL,http://statistics.data.gov.uk/id/local-authority/00EU,Children & Young People,CYP,Childrens & Young People,81000,ICT Comms - Equipment Purchase,450100,06-Sep-13,1900127549,"5,000.00",Virgin Media Business,106824
WARRINGTON BOROUGH COUNCIL,http://statistics.data.gov.uk/id/local-authority/00EU,Environment & Regeneration,ER0,ICT & Business Improvement,23020,ICT Comms - Line Rental,450200,06-Sep-13,1900127549,"8,247.00",Virgin Media Business,106824
WARRINGTON BOROUGH COUNCIL,http://statistics.data.gov.uk/id/local-authority/00EU,Environment & Regeneration,ER0,ICT & Business Improvement,23020,ICT Comms - Line Rental,450200,06-Sep-13,1900127549,"7,050.00",Virgin Media Business,106824
WARRINGTON BOROUGH COUNCIL,http://statistics.data.gov.uk/id/local-authority/00EU,Environment & Regeneration,ER0,Schools & Libraries Internet Project,23030,ICT Comms - Line Rental,450200,06-Sep-13,1900127553,"15,600.00",Virgin Media Business,106824
WARRINGTON BOROUGH COUNCIL,http://statistics.data.gov.uk/id/local-authority/00EU,Environment & Regeneration,ER0,Bus Interchange,44460,ICT Comms - Line Rental,450200,06-Sep-13,1900127553,"1,200.00",Virgin Media Business,106824
WARRINGTON BOROUGH COUNCIL,http://statistics.data.gov.uk/id/local-authority/00EU,Environment & Regeneration,ER0,ICT & Business Improvement,23020,ICT Comms - Line Rental,450200,06-Sep-13,1900127554,"1,200.00",Virgin Media Business,106824
WARRINGTON BOROUGH COUNCIL,http://statistics.data.gov.uk/id/local-authority/00EU,Environment & Regeneration,ER0,Schools & Libraries Internet Project,23030,ICT Comms - Line Rental,450200,06-Sep-13,1900127554,"1,200.00",Virgin Media Business,106824
WARRINGTON BOROUGH COUNCIL,http://statistics.data.gov.uk/id/local-authority/00EU,Neighbourhood & Community Services,NCS,Contracts - SM Commissioning Team 1,55910,Public Health Contract Payments,540000,06-Sep-13,1900127557,"10,292.00",Warrington And Halton Nhs Ft,440132
WARRINGTON BOROUGH COUNCIL,http://statistics.data.gov.uk/id/local-authority/00EU,Neighbourhood & Community Services,NCS,Contracts - SM Commissioning Team 1,55910,Public Health Contract Payments,540000,06-Sep-13,1900127570,"187,083.00",Bridgewater Community Healthcare,108932
WARRINGTON BOROUGH COUNCIL,http://statistics.data.gov.uk/id/local-authority/00EU,Neighbourhood & Community Services,NCS,Care Purchase - OP & OT South,54480,Direct Payments,552000,17-Sep-13,1900128381,655.00,Redacted Personal Data,460737
WARRINGTON BOROUGH COUNCIL,http://statistics.data.gov.uk/id/local-authority/00EU,Neighbourhood & Community Services,NCS,Care Purchase - Mental Health Team 1,54230,Direct Payments,552000,17-Sep-13,1900128384,764.00,Redacted Personal Data,460748
WARRINGTON BOROUGH COUNCIL,http://statistics.data.gov.uk/id/local-authority/00EU,Neighbourhood & Community Services,NCS,Care Purchase - OP & OT West,54470,Direct Payments,552000,17-Sep-13,1900128386,872.00,Redacted Personal Data,460752
WARRINGTON BOROUGH COUNCIL,http://statistics.data.gov.uk/id/local-authority/00EU,Neighbourhood & Community Services,NCS,Care Purchase - Learning Disability,54450,Direct Payments,552000,17-Sep-13,1900128393,"1,524.00",Redacted Personal Data,460765
WARRINGTON BOROUGH COUNCIL,http://statistics.data.gov.uk/id/local-authority/00EU,Neighbourhood & Community Services,NCS,Care Purchase - OP & OT West,54470,Direct Payments,552000,17-Sep-13,1900128394,524.00,Redacted Personal Data,460766
WARRINGTON BOROUGH COUNCIL,http://statistics.data.gov.uk/id/local-authority/00EU,Neighbourhood & Community Services,NCS,Care Purchase - OP & OT West,54470,Direct Payments,552000,17-Sep-13,1900128396,704.00,Redacted Personal Data,460769
WARRINGTON BOROUGH COUNCIL,http://statistics.data.gov.uk/id/local-authority/00EU,Neighbourhood & Community Services,NCS,Care Purchase - Learning Disability,54450,Direct Payments,552000,17-Sep-13,1900128398,"1,417.00",Redacted Personal Data,460779
WARRINGTON BOROUGH COUNCIL,http://statistics.data.gov.uk/id/local-authority/00EU,Neighbourhood & Community Services,NCS,Care Purchase - OP & OT West,54470,Direct Payments,552000,17-Sep-13,1900128401,890.00,Redacted Personal Data,460785
WARRINGTON BOROUGH COUNCIL,http://statistics.data.gov.uk/id/local-authority/00EU,Neighbourhood & Community Services,NCS,Care Purchase - OP & OT West,54470,Direct Payments,552000,17-Sep-13,1900128403,820.00,Redacted Personal Data,460800
WARRINGTON BOROUGH COUNCIL,http://statistics.data.gov.uk/id/local-authority/00EU,Neighbourhood & Community Services,NCS,Care Purchase - Learning Disability,54450,Direct Payments,552000,17-Sep-13,1900128404,"2,292.00",Redacted Personal Data,460804
WARRINGTON BOROUGH COUNCIL,http://statistics.data.gov.uk/id/local-authority/00EU,Neighbourhood & Community Services,NCS,Care Purchase Budget,54490,CP ExternalOther Exp,440800,18-Sep-13,1900128409,"22,000.00",Arlington House,104491
WARRINGTON BOROUGH COUNCIL,http://statistics.data.gov.uk/id/local-authority/00EU,Environment & Regeneration,ER0,Admin Bldgs General,43110,Rent Of Premises,220000,18-Sep-13,1900128410,"8,602.00",Warrington 2000+,105227
WARRINGTON BOROUGH COUNCIL,http://statistics.data.gov.uk/id/local-authority/00EU,Neighbourhood & Community Services,NCS,Care Purchase Budget,54490,CP ExternalOther Exp,440800,18-Sep-13,1900128411,"17,000.00",Heathfield Residental Home,100059
WARRINGTON BOROUGH COUNCIL,http://statistics.data.gov.uk/id/local-authority/00EU,Neighbourhood & Community Services,NCS,Care Purchase Budget,54490,CP ExternalOther Exp,440800,18-Sep-13,1900128412,"45,000.00",Heathside Elderly Persons Home,104777
WARRINGTON BOROUGH COUNCIL,http://statistics.data.gov.uk/id/local-authority/00EU,Neighbourhood & Community Services,NCS,Care Purchase Budget,54490,CP ExternalOther Exp,440800,18-Sep-13,1900128413,"24,000.00",Wcl - Heathside Mews,101742
WARRINGTON BOROUGH COUNCIL,http://statistics.data.gov.uk/id/local-authority/00EU,Neighbourhood & Community Services,NCS,Care Purchase Budget,54490,CP ExternalOther Exp,440800,18-Sep-13,1900128414,"36,000.00",European Care (Uk) Ltd,100320
WARRINGTON BOROUGH COUNCIL,http://statistics.data.gov.uk/id/local-authority/00EU,Neighbourhood & Community Services,NCS,Care Purchase Budget,54490,CP ExternalOther Exp,440800,18-Sep-13,1900128415,"35,000.00",Keate House Residential Home,104849
WARRINGTON BOROUGH COUNCIL,http://statistics.data.gov.uk/id/local-authority/00EU,Neighbourhood & Community Services,NCS,Care Purchase Budget,54490,CP ExternalOther Exp,440800,18-Sep-13,1900128416,"18,000.00",Rosevilla Residential Home,105084
WARRINGTON BOROUGH COUNCIL,http://statistics.data.gov.uk/id/local-authority/00EU,Children & Young People,CYP,Childrens Other,81004,Specific Work,200200,18-Sep-13,1900128417,"4,680.00",LAS Ltd,112267
WARRINGTON BOROUGH COUNCIL,http://statistics.data.gov.uk/id/local-authority/00EU,Neighbourhood & Community Services,NCS,Care Purchase Budget,54490,CP ExternalOther Exp,440800,18-Sep-13,1900128419,"23,000.00",W H Investments Ltd,111422
WARRINGTON BOROUGH COUNCIL,http://statistics.data.gov.uk/id/local-authority/00EU,Neighbourhood & Community Services,NCS,Care Purchase Budget,54490,CP ExternalOther Exp,440800,18-Sep-13,1900128423,"51,000.00",Ashberry Healthcare Ltd,101061
WARRINGTON BOROUGH COUNCIL,http://statistics.data.gov.uk/id/local-authority/00EU,Neighbourhood & Community Services,NCS,Care Purchase Budget,54490,CP ExternalOther Exp,440800,18-Sep-13,1900128425,"163,000.00",Leyton Healthcare,102517
WARRINGTON BOROUGH COUNCIL,http://statistics.data.gov.uk/id/local-authority/00EU,Neighbourhood & Community Services,NCS,Care Purchase Budget,54490,CP ExternalOther Exp,440800,18-Sep-13,1900128427,"52,000.00",Minster Care Management Ltd,105179
WARRINGTON BOROUGH COUNCIL,http://statistics.data.gov.uk/id/local-authority/00EU,Neighbourhood & Community Services,NCS,Care Purchase Budget,54490,CP ExternalOther Exp,440800,18-Sep-13,1900128430,"53,000.00",Summerville Nursing Home -Private C,105162
WARRINGTON BOROUGH COUNCIL,http://statistics.data.gov.uk/id/local-authority/00EU,Neighbourhood & Community Services,NCS,Care Purchase Budget,54490,CP ExternalOther Exp,440800,18-Sep-13,1900128433,"110,000.00",London & Manchester Healthcare Ltd,109185
WARRINGTON BOROUGH COUNCIL,http://statistics.data.gov.uk/id/local-authority/00EU,Neighbourhood & Community Services,NCS,Care Purchase Budget,54490,CP ExternalOther Exp,440800,18-Sep-13,1900128435,"75,000.00",Bondcare St Andrews,109634
WARRINGTON BOROUGH COUNCIL,http://statistics.data.gov.uk/id/local-authority/00EU,Neighbourhood & Community Services,NCS,Care Purchase Budget,54490,CP ExternalOther Exp,440800,18-Sep-13,1900128438,"145,000.00",HC-One Limited Callands,109640
WARRINGTON BOROUGH COUNCIL,http://statistics.data.gov.uk/id/local-authority/00EU,Neighbourhood & Community Services,NCS,Care Purchase Budget,54490,CP ExternalOther Exp,440800,18-Sep-13,1900128445,"110,000.00",Leyton Healthcare Limited,108970
WARRINGTON BOROUGH COUNCIL,http://statistics.data.gov.uk/id/local-authority/00EU,Neighbourhood & Community Services,NCS,Care Purchase Budget,54490,CP ExternalOther Exp,440800,18-Sep-13,1900128446,"170,000.00",Bupa Care Homes,104572
WARRINGTON BOROUGH COUNCIL,http://statistics.data.gov.uk/id/local-authority/00EU,Neighbourhood & Community Services,NCS,Care Purchase Budget,54490,CP ExternalOther Exp,440800,18-Sep-13,1900128447,"130,000.00",Ashberry Healthcare Ltd,104776
WARRINGTON BOROUGH COUNCIL,http://statistics.data.gov.uk/id/local-authority/00EU,Neighbourhood & Community Services,NCS,Care Purchase Budget,54490,CP ExternalOther Exp,440800,18-Sep-13,1900128448,"60,000.00",Cls Care Services Ltd,104615
WARRINGTON BOROUGH COUNCIL,http://statistics.data.gov.uk/id/local-authority/00EU,Neighbourhood & Community Services,NCS,Care Purchase Budget,54490,CP ExternalOther Exp,440800,18-Sep-13,1900128449,"85,000.00",Warrington Community Care,105229
WARRINGTON BOROUGH COUNCIL,http://statistics.data.gov.uk/id/local-authority/00EU,Neighbourhood & Community Services,NCS,Care Purchase - OP & OT West,54470,CP-LongStayExternal,441150,18-Sep-13,1900128450,"1,540.00",Barchester Homes Westvale House,105246
WARRINGTON BOROUGH COUNCIL,http://statistics.data.gov.uk/id/local-authority/00EU,Neighbourhood & Community Services,NCS,Care Purchase - OP & OT West,54470,CP-Nursing Care-External,441200,18-Sep-13,1900128450,"26,475.00",Barchester Homes Westvale House,105246
WARRINGTON BOROUGH COUNCIL,http://statistics.data.gov.uk/id/local-authority/00EU,Neighbourhood & Community Services,NCS,Care Purchase - OP & OT Central,54420,CP-Nursing Care-External,441200,18-Sep-13,1900128450,"3,424.00",Barchester Homes Westvale House,105246
WARRINGTON BOROUGH COUNCIL,http://statistics.data.gov.uk/id/local-authority/00EU,Neighbourhood & Community Services,NCS,Care Purchase -OP & OT East,54430,CP-Nursing Care-External,441200,18-Sep-13,1900128450,"2,568.00",Barchester Homes Westvale House,105246
WARRINGTON BOROUGH COUNCIL,http://statistics.data.gov.uk/id/local-authority/00EU,Neighbourhood & Community Services,NCS,Care Purchase - OP & OT South,54480,CP-Nursing Care-External,441200,18-Sep-13,1900128450,"1,712.00",Barchester Homes Westvale House,105246
WARRINGTON BOROUGH COUNCIL,http://statistics.data.gov.uk/id/local-authority/00EU,Neighbourhood & Community Services,NCS,Care Purchase Budget,54490,CP - Cont Care - External,441350,18-Sep-13,1900128450,"17,868.00",Barchester Homes Westvale House,105246
WARRINGTON BOROUGH COUNCIL,http://statistics.data.gov.uk/id/local-authority/00EU,Neighbourhood & Community Services,NCS,Care Purchase Budget,54490,CP ExternalOther Exp,440800,18-Sep-13,1900128451,"36,000.00",St Marys Care Centre,101503
WARRINGTON BOROUGH COUNCIL,http://statistics.data.gov.uk/id/local-authority/00EU,Neighbourhood & Community Services,NCS,Care Purchase Budget,54490,CP ExternalOther Exp,440800,18-Sep-13,1900128452,"33,000.00",Four Seasons ta St Oswalds Care Hom,109422
WARRINGTON BOROUGH COUNCIL,http://statistics.data.gov.uk/id/local-authority/00EU,Neighbourhood & Community Services,NCS,Care Purchase Budget,54490,CP ExternalOther Exp,440800,18-Sep-13,1900128453,"18,000.00",Thelwall Grange Nursing Home,105174
WARRINGTON BOROUGH COUNCIL,http://statistics.data.gov.uk/id/local-authority/00EU,Neighbourhood & Community Services,NCS,Care Purchase Budget,54490,CP ExternalOther Exp,440800,18-Sep-13,1900128454,"20,000.00",Old Rectory Private Nursing Home,104990
WARRINGTON BOROUGH COUNCIL,http://statistics.data.gov.uk/id/local-authority/00EU,Neighbourhood & Community Services,NCS,Care Purchase Budget,54490,CP ExternalOther Exp,440800,18-Sep-13,1900128455,"20,000.00",Harbour Healthcare 1 Ltd,110527
WARRINGTON BOROUGH COUNCIL,http://statistics.data.gov.uk/id/local-authority/00EU,Children & Young People,CYP,Childrens Other,81004,Contract Works,492550,18-Sep-13,1900128458,995.00,A E Wood Building and Maintenance,111892
WARRINGTON BOROUGH COUNCIL,http://statistics.data.gov.uk/id/local-authority/00EU,Children & Young People,CYP,Childrens Other,81004,Contract Works,492550,18-Sep-13,1900128459,"17,770.00",A E Wood Building and Maintenance,111892
WARRINGTON BOROUGH COUNCIL,http://statistics.data.gov.uk/id/local-authority/00EU,Children & Young People,CYP,Primary,81001,ICT Comms - Equipment Purchase,450100,18-Sep-13,1900128461,"2,482.00",Computeam Limited,107933
WARRINGTON BOROUGH COUNCIL,http://statistics.data.gov.uk/id/local-authority/00EU,Environment & Regeneration,ENO,Housing Projects,82008,Disabled Persons Grant 1996,554000,18-Sep-13,1900128466,"10,011.00",ThyssenKrupp Encasa Ltd,105382
WARRINGTON BOROUGH COUNCIL,http://statistics.data.gov.uk/id/local-authority/00EU,Environment & Regeneration,ER0,New Town House,43119,Service Charges,220050,18-Sep-13,1900128470,"56,750.00",Goldmile Holdings Limited,101035
WARRINGTON BOROUGH COUNCIL,http://statistics.data.gov.uk/id/local-authority/00EU,Environment & Regeneration,ER0,New Town House,43119,Rent Of Premises,220000,18-Sep-13,1900128471,"146,984.00",Goldmile Holdings Limited,101035
WARRINGTON BOROUGH COUNCIL,http://statistics.data.gov.uk/id/local-authority/00EU,Environment & Regeneration,ER0,Quattro-New Town House Admin Building,43125,Rent Of Premises,220000,18-Sep-13,1900128472,"44,413.00",Goldmile Holdings Limited,101035
WARRINGTON BOROUGH COUNCIL,http://statistics.data.gov.uk/id/local-authority/00EU,Neighbourhood & Community Services,NCS,Neighbourhood Co-o West,51307,Payment of Grants,470050,18-Sep-13,1900128478,"2,500.00",Friends of Mary Ann Meadows & Barro,112274
WARRINGTON BOROUGH COUNCIL,http://statistics.data.gov.uk/id/local-authority/00EU,Holding Accounts,HOL,Single Billing Holding Account,91130,Water & Sewerage Chg,240000,18-Sep-13,1900128481,"56,164.00",United Utilities Water Limited,104982
WARRINGTON BOROUGH COUNCIL,http://statistics.data.gov.uk/id/local-authority/00EU,Holding Accounts,HOL,Single Billing Holding Account,91130,Agency Supply - GF,180000,18-Sep-13,1900128482,"71,889.00",Hays Specialist Recruitment Ltd,107512
WARRINGTON BOROUGH COUNCIL,http://statistics.data.gov.uk/id/local-authority/00EU,Holding Accounts,HOL,Single Billing Holding Account,91130,Specific Work,200200,18-Sep-13,1900128483,"69,935.00",Manchester Working Limited,105646
WARRINGTON BOROUGH COUNCIL,http://statistics.data.gov.uk/id/local-authority/00EU,Children & Young People,CHL,Fostering Team,31105,Agency Supply - GF,180000,18-Sep-13,1900128484,640.00,K Kerfoot Ltd,109052
WARRINGTON BOROUGH COUNCIL,http://statistics.data.gov.uk/id/local-authority/00EU,Children & Young People,CHL,Fostering Team,31105,Agency Supply - GF,180000,18-Sep-13,1900128485,640.00,K Kerfoot Ltd,109052
WARRINGTON BOROUGH COUNCIL,http://statistics.data.gov.uk/id/local-authority/00EU,Children & Young People,CHL,Fostering Team,31105,Agency Supply - GF,180000,18-Sep-13,1900128486,680.00,K Kerfoot Ltd,109052
WARRINGTON BOROUGH COUNCIL,http://statistics.data.gov.uk/id/local-authority/00EU,Children & Young People,CHL,Fostering Team,31105,Agency Supply - GF,180000,18-Sep-13,1900128487,720.00,K Kerfoot Ltd,109052
WARRINGTON BOROUGH COUNCIL,http://statistics.data.gov.uk/id/local-authority/00EU,Neighbourhood & Community Services,NCS,Care Purchase -OP & OT East,54430,CP-LongStayExternal,441150,19-Sep-13,1900128488,"1,752.00",The Nugent Care Society,100277
WARRINGTON BOROUGH COUNCIL,http://statistics.data.gov.uk/id/local-authority/00EU,Neighbourhood & Community Services,NCS,Care Purchase - ABI,54260,CP-Domicil.External,440950,19-Sep-13,1900128489,"1,347.00",Future Directions Community Interes,111498
WARRINGTON BOROUGH COUNCIL,http://statistics.data.gov.uk/id/local-authority/00EU,Neighbourhood & Community Services,NCS,Care Purchase -OP & OT East,54430,CP-LongStayExternal,441150,19-Sep-13,1900128490,"1,392.00",The Nugent Care Society,100277
WARRINGTON BOROUGH COUNCIL,http://statistics.data.gov.uk/id/local-authority/00EU,Neighbourhood & Community Services,NCS,Care Purchase - Learning Disability,54450,CP-Nursing Care-External,441200,19-Sep-13,1900128491,"8,212.00",Community Care Matters Limited,102791
WARRINGTON BOROUGH COUNCIL,http://statistics.data.gov.uk/id/local-authority/00EU,Neighbourhood & Community Services,NCS,Care Purchase Budget,54490,CP - Cont Care - External,441350,19-Sep-13,1900128491,"19,408.00",Community Care Matters Limited,102791
WARRINGTON BOROUGH COUNCIL,http://statistics.data.gov.uk/id/local-authority/00EU,Neighbourhood & Community Services,NCS,Care Purchase - Learning Disability,54450,CP-LongStayExternal,441150,19-Sep-13,1900128493,"8,464.00",Community Care Matters Limited,102791
WARRINGTON BOROUGH COUNCIL,http://statistics.data.gov.uk/id/local-authority/00EU,Neighbourhood & Community Services,NCS,Care Purchase Budget,54490,CP - Cont Care - External,441350,19-Sep-13,1900128493,"20,100.00",Community Care Matters Limited,102791
WARRINGTON BOROUGH COUNCIL,http://statistics.data.gov.uk/id/local-authority/00EU,Neighbourhood & Community Services,NCS,Care Purchase - Learning Disability,54450,CP-Domicil.External,440950,19-Sep-13,1900128494,"4,506.00",Autism Initiatives,104503
WARRINGTON BOROUGH COUNCIL,http://statistics.data.gov.uk/id/local-authority/00EU,Neighbourhood & Community Services,NCS,Care Purchase -OP & OT East,54430,CP-LongStayExternal,441150,19-Sep-13,1900128495,"1,392.00",The Nugent Care Society,100277
WARRINGTON BOROUGH COUNCIL,http://statistics.data.gov.uk/id/local-authority/00EU,Neighbourhood & Community Services,NCS,Care Purchase - Learning Disability,54450,CP-Domicil.External,440950,19-Sep-13,1900128496,"6,007.00",Autism Initiatives,104503
WARRINGTON BOROUGH COUNCIL,http://statistics.data.gov.uk/id/local-authority/00EU,Neighbourhood & Community Services,NCS,Care Purchase Budget,54490,CP ExternalOther Exp,440800,19-Sep-13,1900128498,"6,368.00",Heathside Elderly Persons Home,104777
WARRINGTON BOROUGH COUNCIL,http://statistics.data.gov.uk/id/local-authority/00EU,Neighbourhood & Community Services,NCS,Care Purchase Budget,54490,CP ExternalOther Exp,440800,19-Sep-13,1900128499,"10,175.00",Wcl - Heathside Mews,101742
WARRINGTON BOROUGH COUNCIL,http://statistics.data.gov.uk/id/local-authority/00EU,Neighbourhood & Community Services,NCS,Care Purchase Budget,54490,CP ExternalOther Exp,440800,19-Sep-13,1900128500,"8,153.00",Thelwall Grange Nursing Home,105174
WARRINGTON BOROUGH COUNCIL,http://statistics.data.gov.uk/id/local-authority/00EU,Neighbourhood & Community Services,NCS,Care Purchase - Learning Disability,54450,CP-Domicil.External,440950,19-Sep-13,1900128501,"6,007.00",Autism Initiatives,104503
WARRINGTON BOROUGH COUNCIL,http://statistics.data.gov.uk/id/local-authority/00EU,Neighbourhood & Community Services,NCS,Care Purchase - Learning Disability,54450,CP-Domicil.External,440950,19-Sep-13,1900128502,"6,007.00",Autism Initiatives,104503
WARRINGTON BOROUGH COUNCIL,http://statistics.data.gov.uk/id/local-authority/00EU,Neighbourhood & Community Services,NCS,Care Purchase - Mental Health Team 1,54230,CP-Domicil.External,440950,19-Sep-13,1900128503,"1,002.00",Making Space,104913
WARRINGTON BOROUGH COUNCIL,http://statistics.data.gov.uk/id/local-authority/00EU,Neighbourhood & Community Services,NCS,Care Purchase Budget,54490,CP ExternalOther Exp,440800,19-Sep-13,1900128504,"6,684.00",Old Rectory Private Nursing Home,104990
WARRINGTON BOROUGH COUNCIL,http://statistics.data.gov.uk/id/local-authority/00EU,Neighbourhood & Community Services,NCS,Care Purchase Budget,54490,CP ExternalOther Exp,440800,19-Sep-13,1900128505,"13,418.00",Four Seasons ta St Oswalds Care Hom,109422
WARRINGTON BOROUGH COUNCIL,http://statistics.data.gov.uk/id/local-authority/00EU,Holding Accounts,HOL,Single Billing Holding Account,91130,Gas,210050,19-Sep-13,1900128506,"20,604.00",British Gas Business,104540
WARRINGTON BOROUGH COUNCIL,http://statistics.data.gov.uk/id/local-authority/00EU,Holding Accounts,HOL,Single Billing Holding Account,91130,Gas,210050,19-Sep-13,1900128506,"7,797.00",British Gas Business,104540
WARRINGTON BOROUGH COUNCIL,http://statistics.data.gov.uk/id/local-authority/00EU,Neighbourhood & Community Services,NCS,Supporting People Grant Payments,53260,People with Mental Health Problems,535200,19-Sep-13,1900128507,"4,808.00",SLC Raglin Ltd,111037
WARRINGTON BOROUGH COUNCIL,http://statistics.data.gov.uk/id/local-authority/00EU,Holding Accounts,HOL,Single Billing Holding Account,91130,Agency Supply - GF,180000,19-Sep-13,1900128511,"44,502.00",Hays Specialist Recruitment Ltd,107512
WARRINGTON BOROUGH COUNCIL,http://statistics.data.gov.uk/id/local-authority/00EU,Neighbourhood & Community Services,NCS,Neighbourhood Co-o Central,51309,Payment of Grants,470050,19-Sep-13,1900128512,720.00,Fairfield Howley Credit Union,106898
WARRINGTON BOROUGH COUNCIL,http://statistics.data.gov.uk/id/local-authority/00EU,Neighbourhood & Community Services,NCS,Care Purchase Budget,54490,CP ExternalOther Exp,440800,19-Sep-13,1900128513,"4,367.00",Heathfield Residental Home,100059
WARRINGTON BOROUGH COUNCIL,http://statistics.data.gov.uk/id/local-authority/00EU,Neighbourhood & Community Services,NCS,Care Purchase - Learning Disability,54450,CP-Domicil.External,440950,19-Sep-13,1900128514,"11,612.00",Creative Support Ltd,100902
WARRINGTON BOROUGH COUNCIL,http://statistics.data.gov.uk/id/local-authority/00EU,Neighbourhood & Community Services,NCS,Care Purchase - OP & OT South,54480,CP-LongStayExternal,441150,19-Sep-13,1900128515,"1,500.00",Barchester Healthcare Cheshire Gran,111378
WARRINGTON BOROUGH COUNCIL,http://statistics.data.gov.uk/id/local-authority/00EU,Children & Young People,CHL,Adoption Team,31107,Consult.& Prof. Serv,440000,19-Sep-13,1900128516,"2,800.00",Redacted Personal Data,111105
WARRINGTON BOROUGH COUNCIL,http://statistics.data.gov.uk/id/local-authority/00EU,Children & Young People,CHL,Adoption Team,31107,Consult.& Prof. Serv,440000,19-Sep-13,1900128517,"2,800.00",Redacted Personal Data,111105
WARRINGTON BOROUGH COUNCIL,http://statistics.data.gov.uk/id/local-authority/00EU,Environment & Regeneration,ER0,Industrial Estates,43570,NNDR Vacant Properties,230050,19-Sep-13,1900128522,"3,066.00",Warrington Borough Council,440006
WARRINGTON BOROUGH COUNCIL,http://statistics.data.gov.uk/id/local-authority/00EU,Children & Young People,CYP,Secondary,81002,Contract Works,492550,19-Sep-13,1900128524,"23,187.00",Birchwood Academy High School,112025
WARRINGTON BOROUGH COUNCIL,http://statistics.data.gov.uk/id/local-authority/00EU,Children & Young People,CHL,Adoption Team,31107,Events Costs,490000,19-Sep-13,1900128526,"27,475.00",Wigan Council,410018
WARRINGTON BOROUGH COUNCIL,http://statistics.data.gov.uk/id/local-authority/00EU,Children & Young People,CYP,Primary,81001,Contract Works,492550,19-Sep-13,1900128537,"6,495.00",PAG Construction,112265
WARRINGTON BOROUGH COUNCIL,http://statistics.data.gov.uk/id/local-authority/00EU,Neighbourhood & Community Services,NCS,Administration,51010,Gen. Personal Needs,490850,19-Sep-13,1900128538,"17,092.00",De Lage Landen Leasing Ltd,100097
WARRINGTON BOROUGH COUNCIL,http://statistics.data.gov.uk/id/local-authority/00EU,Environment & Regeneration,ER0,Printing & Graphics,23040,Equipment Purchase & Contract,400000,20-Sep-13,1900128541,"4,840.00",Xerox Uk Ltd,100092
WARRINGTON BOROUGH COUNCIL,http://statistics.data.gov.uk/id/local-authority/00EU,Environment & Regeneration,ER0,Printing & Graphics,23040,Equipment Purchase & Contract,400000,20-Sep-13,1900128545,"7,470.00",Xerox Uk Ltd,100092
WARRINGTON BOROUGH COUNCIL,http://statistics.data.gov.uk/id/local-authority/00EU,Environment & Regeneration,ER0,Printing & Graphics,23040,Equipment Purchase & Contract,400000,20-Sep-13,1900128547,"3,904.00",Xerox Global Services,105611
WARRINGTON BOROUGH COUNCIL,http://statistics.data.gov.uk/id/local-authority/00EU,Environment & Regeneration,ER0,ICT Centralised Budget,23100,Computer Software - Maintenance,450850,20-Sep-13,1900128548,"1,236.00",Swift Data Pro Software Ltd,100376
WARRINGTON BOROUGH COUNCIL,http://statistics.data.gov.uk/id/local-authority/00EU,Assistant Chief Executive,CEX,Coroners Service,11100,Post Mortem Fees-Rep,440250,20-Sep-13,1900128556,799.00,Dr S A Hales,100988
WARRINGTON BOROUGH COUNCIL,http://statistics.data.gov.uk/id/local-authority/00EU,Neighbourhood & Community Services,NCS,SLA - Grant Account,53920,Payment of Grants,470050,20-Sep-13,1900128563,"24,000.00",Warrington Volunteer Action,110206
WARRINGTON BOROUGH COUNCIL,http://statistics.data.gov.uk/id/local-authority/00EU,Assistant Chief Executive,CEX,Coroners Service,11100,Post Mortem Fees-Rep,440250,20-Sep-13,1900128564,721.00,Dr W E Kenyon,104851
WARRINGTON BOROUGH COUNCIL,http://statistics.data.gov.uk/id/local-authority/00EU,Neighbourhood & Community Services,NCS,SLA - Grant Account,53920,Payment of Grants,470050,20-Sep-13,1900128565,"4,648.00",The Speak Up Group,440125
WARRINGTON BOROUGH COUNCIL,http://statistics.data.gov.uk/id/local-authority/00EU,Neighbourhood & Community Services,NCS,Head of Integrated Commissioning,53500,Payment of Grants,470050,20-Sep-13,1900128566,"7,500.00",The Speak Up Group,440125
WARRINGTON BOROUGH COUNCIL,http://statistics.data.gov.uk/id/local-authority/00EU,Neighbourhood & Community Services,NCS,SLA - Grant Account,53920,Payment of Grants,470050,20-Sep-13,1900128567,"5,435.00",Warrington Widnes Dis Soc For The B,440165
WARRINGTON BOROUGH COUNCIL,http://statistics.data.gov.uk/id/local-authority/00EU,Neighbourhood & Community Services,NCS,SLA - Grant Account,53920,Payment of Grants,470050,20-Sep-13,1900128569,"10,805.00",Salvation Army Band,100437
WARRINGTON BOROUGH COUNCIL,http://statistics.data.gov.uk/id/local-authority/00EU,Neighbourhood & Community Services,NCS,SLA - Grant Account,53920,Payment of Grants,470050,20-Sep-13,1900128570,"22,045.00",Warrington Disability Partnership,440066
WARRINGTON BOROUGH COUNCIL,http://statistics.data.gov.uk/id/local-authority/00EU,Assistant Chief Executive,CEX,Coroners Service,11100,Post Mortem Fees-Rep,440250,20-Sep-13,1900128571,589.00,Dr Michael Wall,107545
WARRINGTON BOROUGH COUNCIL,http://statistics.data.gov.uk/id/local-authority/00EU,Neighbourhood & Community Services,NCS,SLA - Grant Account,53920,Payment of Grants,470050,20-Sep-13,1900128572,"24,796.00",WIRED,109547
WARRINGTON BOROUGH COUNCIL,http://statistics.data.gov.uk/id/local-authority/00EU,Neighbourhood & Community Services,NCS,Spencer House,53280,Payment of Grants,470050,20-Sep-13,1900128573,"10,194.00",British Red Cross,440042
WARRINGTON BOROUGH COUNCIL,http://statistics.data.gov.uk/id/local-authority/00EU,Neighbourhood & Community Services,NCS,SLA - Grant Account,53920,Payment of Grants,470050,20-Sep-13,1900128574,"31,923.00",Warrington Housing Current Acc,101208
WARRINGTON BOROUGH COUNCIL,http://statistics.data.gov.uk/id/local-authority/00EU,Neighbourhood & Community Services,NCS,SLA - Grant Account,53920,Payment of Grants,470050,20-Sep-13,1900128575,"41,827.00",Creative Support Ltd,100902
WARRINGTON BOROUGH COUNCIL,http://statistics.data.gov.uk/id/local-authority/00EU,Neighbourhood & Community Services,NCS,SLA - Grant Account,53920,Payment of Grants,470050,20-Sep-13,1900128576,"9,250.00",Alzheimers Society,106508
WARRINGTON BOROUGH COUNCIL,http://statistics.data.gov.uk/id/local-authority/00EU,Assistant Chief Executive,CEX,Coroners Service,11100,Post Mortem Fees-Rep,440250,20-Sep-13,1900128579,"2,775.00",Dr Suboda M Weerasinghe,105924
WARRINGTON BOROUGH COUNCIL,http://statistics.data.gov.uk/id/local-authority/00EU,Neighbourhood & Community Services,NCS,Sports Development,51200,Payment of Grants,470050,20-Sep-13,1900128581,"33,125.00",Warrington Wolves Foundation,101508
WARRINGTON BOROUGH COUNCIL,http://statistics.data.gov.uk/id/local-authority/00EU,Neighbourhood & Community Services,NCS,SLA - Grant Account,53920,Payment of Grants,470050,20-Sep-13,1900128582,"6,459.00",Warrington Disability Partnership,440066
WARRINGTON BOROUGH COUNCIL,http://statistics.data.gov.uk/id/local-authority/00EU,Neighbourhood & Community Services,NCS,Sports Development,51200,Payment of Grants,470050,20-Sep-13,1900128583,"32,250.00",University Academy Warrington,111431
WARRINGTON BOROUGH COUNCIL,http://statistics.data.gov.uk/id/local-authority/00EU,Assistant Chief Executive,CEX,Coroners Service,11100,Post Mortem Fees-Rep,440250,20-Sep-13,1900128587,"1,041.00",Dr N Alash,100579
WARRINGTON BOROUGH COUNCIL,http://statistics.data.gov.uk/id/local-authority/00EU,Assistant Chief Executive,CEX,Coroners Service,11100,Analysts Fees,440300,20-Sep-13,1900128589,"1,508.00",Roar Forensics Ltd,105295
WARRINGTON BOROUGH COUNCIL,http://statistics.data.gov.uk/id/local-authority/00EU,Children & Young People,CHL,Child Disability,32212,CP-Domicil.External,440950,20-Sep-13,1900128591,"1,344.00",Castlerock Recruitment Group,105279
WARRINGTON BOROUGH COUNCIL,http://statistics.data.gov.uk/id/local-authority/00EU,Assistant Chief Executive,CEX,Coroners Service,11100,Post Mortem Fees-Rep,440250,20-Sep-13,1900128592,596.00,Dr Rajeev Shukla,107803
WARRINGTON BOROUGH COUNCIL,http://statistics.data.gov.uk/id/local-authority/00EU,Children & Young People,CHL,Child Disability,32212,CP-Domicil.External,440950,20-Sep-13,1900128593,994.00,Castlerock Recruitment Group,105279
WARRINGTON BOROUGH COUNCIL,http://statistics.data.gov.uk/id/local-authority/00EU,Assistant Chief Executive,CEX,Coroners Service,11100,Post Mortem Fees-Rep,440250,20-Sep-13,1900128594,596.00,Dr Rajeev Shukla,107803
WARRINGTON BOROUGH COUNCIL,http://statistics.data.gov.uk/id/local-authority/00EU,Children & Young People,CHL,Child Disability,32212,CP-Domicil.External,440950,20-Sep-13,1900128595,558.00,Castlerock Recruitment Group,105279
WARRINGTON BOROUGH COUNCIL,http://statistics.data.gov.uk/id/local-authority/00EU,Assistant Chief Executive,CEX,Coroners Service,11100,Post Mortem Fees-Rep,440250,20-Sep-13,1900128601,"1,664.00",Dr A Nicol,104970
WARRINGTON BOROUGH COUNCIL,http://statistics.data.gov.uk/id/local-authority/00EU,Assistant Chief Executive,CEX,Coroners Service,11100,Post Mortem Fees-Rep,440250,20-Sep-13,1900128604,"2,278.00",Dr J.S Stafford,100426
WARRINGTON BOROUGH COUNCIL,http://statistics.data.gov.uk/id/local-authority/00EU,Assistant Chief Executive,CEX,Coroners Service,11100,Post Mortem Fees-Rep,440250,20-Sep-13,1900128606,"1,003.00",Dr P Simcock,102209
WARRINGTON BOROUGH COUNCIL,http://statistics.data.gov.uk/id/local-authority/00EU,Assistant Chief Executive,CEX,Coroners Service,11100,Consult.& Prof. Serv,440000,20-Sep-13,1900128611,"1,008.00",Dr D S Almond,101435
WARRINGTON BOROUGH COUNCIL,http://statistics.data.gov.uk/id/local-authority/00EU,Neighbourhood & Community Services,NCS,Stronger Together,51304,Reserve balances brought forward,499999,20-Sep-13,1900128614,"6,175.00",Warrington Volunteer Action,110206
WARRINGTON BOROUGH COUNCIL,http://statistics.data.gov.uk/id/local-authority/00EU,Environment & Regeneration,ER0,Printing & Graphics,23040,Equipment Purchase & Contract,400000,20-Sep-13,1900128622,"3,413.00",Xerox Global Services,105611
WARRINGTON BOROUGH COUNCIL,http://statistics.data.gov.uk/id/local-authority/00EU,Environment & Regeneration,ER0,Printing & Graphics,23040,Equipment Purchase & Contract,400000,20-Sep-13,1900128625,"2,803.00",Xerox Global Services,105611
WARRINGTON BOROUGH COUNCIL,http://statistics.data.gov.uk/id/local-authority/00EU,Environment & Regeneration,ER0,Printing & Graphics,23040,Equipment Purchase & Contract,400000,20-Sep-13,1900128626,"3,904.00",Xerox Global Services,105611
WARRINGTON BOROUGH COUNCIL,http://statistics.data.gov.uk/id/local-authority/00EU,Environment & Regeneration,ER0,Printing & Graphics,23040,Equipment Purchase & Contract,400000,20-Sep-13,1900128627,"2,380.00",Xerox Global Services,105611
WARRINGTON BOROUGH COUNCIL,http://statistics.data.gov.uk/id/local-authority/00EU,Children & Young People,CHL,Child Disability,32212,CP-Domicil.External,440950,20-Sep-13,1900128628,864.00,Wasps Nursery and Link Clubs,400087
WARRINGTON BOROUGH COUNCIL,http://statistics.data.gov.uk/id/local-authority/00EU,Neighbourhood & Community Services,NCS,Care Purchase - OP & OT South,54480,CP-LongStayExternal,441150,20-Sep-13,1900128629,"1,540.00",Alexandra Care Home,100708
WARRINGTON BOROUGH COUNCIL,http://statistics.data.gov.uk/id/local-authority/00EU,Neighbourhood & Community Services,NCS,Care Purchase -OP & OT East,54430,CP-LongStayExternal,441150,20-Sep-13,1900128630,"1,304.00",Croftwood Care Limited,103738
WARRINGTON BOROUGH COUNCIL,http://statistics.data.gov.uk/id/local-authority/00EU,Neighbourhood & Community Services,NCS,Care Purchase - Learning Disability,54450,CP-LongStayExternal,441150,20-Sep-13,1900128631,"6,920.00",Clervaux Trust Ltd,110288
WARRINGTON BOROUGH COUNCIL,http://statistics.data.gov.uk/id/local-authority/00EU,Neighbourhood & Community Services,NCS,Care Purchase Budget,54490,CP ExternalOther Exp,440800,20-Sep-13,1900128632,"18,058.00",HC-One Limited Callands,109640
WARRINGTON BOROUGH COUNCIL,http://statistics.data.gov.uk/id/local-authority/00EU,Neighbourhood & Community Services,NCS,Care Purchase Budget,54490,CP ExternalOther Exp,440800,20-Sep-13,1900128633,558.00,Summerville Nursing Home -Private C,105162
WARRINGTON BOROUGH COUNCIL,http://statistics.data.gov.uk/id/local-authority/00EU,Neighbourhood & Community Services,NCS,Care Purchase - Mental Health Team 1,54230,CP-Domicil.External,440950,20-Sep-13,1900128634,996.00,Alternative Futures Group,104468
WARRINGTON BOROUGH COUNCIL,http://statistics.data.gov.uk/id/local-authority/00EU,Neighbourhood & Community Services,NCS,Care Purchase - Learning Disability,54450,Supporting People - External,441250,20-Sep-13,1900128635,683.00,Care Uk Care Solutions Ltd,102263
WARRINGTON BOROUGH COUNCIL,http://statistics.data.gov.uk/id/local-authority/00EU,Neighbourhood & Community Services,NCS,Care Purchase - Learning Disability,54450,Supporting People - External,441250,20-Sep-13,1900128636,683.00,Care Uk Care Solutions Ltd,102263
WARRINGTON BOROUGH COUNCIL,http://statistics.data.gov.uk/id/local-authority/00EU,Neighbourhood & Community Services,NCS,Care Purchase - OP & OT West,54470,CP-LongStayExternal,441150,20-Sep-13,1900128637,"1,460.00",Croftwood Care Limited,103738
WARRINGTON BOROUGH COUNCIL,http://statistics.data.gov.uk/id/local-authority/00EU,Neighbourhood & Community Services,NCS,Care Purchase - OP & OT South,54480,CP-Domicil.External,440950,20-Sep-13,1900128638,"15,733.00",Dh Homecare,101961
WARRINGTON BOROUGH COUNCIL,http://statistics.data.gov.uk/id/local-authority/00EU,Neighbourhood & Community Services,NCS,Care Purchase - PD,54440,CP-Domicil.External,440950,20-Sep-13,1900128638,"3,455.00",Dh Homecare,101961
WARRINGTON BOROUGH COUNCIL,http://statistics.data.gov.uk/id/local-authority/00EU,Neighbourhood & Community Services,NCS,Care Purchase Budget,54490,CP - Cont Care - External,441350,20-Sep-13,1900128638,"1,335.00",Dh Homecare,101961
WARRINGTON BOROUGH COUNCIL,http://statistics.data.gov.uk/id/local-authority/00EU,Assistant Chief Executive,CEX,People & Improvement,20000,Veh Maint. Materials,300000,20-Sep-13,1900128639,"35,375.00",Halfords Ltd,104764
WARRINGTON BOROUGH COUNCIL,http://statistics.data.gov.uk/id/local-authority/00EU,Environment & Regeneration,ENP,Environment & Regeneration,82000,Specific Work,200200,20-Sep-13,1900128640,"2,544.00",Sutcliffe,103561
WARRINGTON BOROUGH COUNCIL,http://statistics.data.gov.uk/id/local-authority/00EU,Neighbourhood & Community Services,NCS,Care Purchase Budget,54490,CP ExternalOther Exp,440800,20-Sep-13,1900128641,"4,352.00",European Care (Uk) Ltd,100320
WARRINGTON BOROUGH COUNCIL,http://statistics.data.gov.uk/id/local-authority/00EU,Assistant Chief Executive,CEX,Coroners Service,11100,Post Mortem Fees-Rep,440250,20-Sep-13,1900128644,926.00,Dr B.N.A Hamid,100354
WARRINGTON BOROUGH COUNCIL,http://statistics.data.gov.uk/id/local-authority/00EU,Environment & Regeneration,ENP,Environment & Regeneration,82000,Specific Work,200200,20-Sep-13,1900128645,"1,363.00",Sutcliffe,103561
WARRINGTON BOROUGH COUNCIL,http://statistics.data.gov.uk/id/local-authority/00EU,Assistant Chief Executive,CEX,Accountancy and Financial Planning,10100,Training,190150,20-Sep-13,1900128646,944.00,CIPFA,104607
WARRINGTON BOROUGH COUNCIL,http://statistics.data.gov.uk/id/local-authority/00EU,Environment & Regeneration,ENP,Environment & Regeneration,82000,Specific Work,200200,20-Sep-13,1900128648,"3,068.00",Sutcliffe,103561
WARRINGTON BOROUGH COUNCIL,http://statistics.data.gov.uk/id/local-authority/00EU,Assistant Chief Executive,CEX,Accountancy and Financial Planning,10100,Training,190150,20-Sep-13,1900128649,944.00,CIPFA,104607
WARRINGTON BOROUGH COUNCIL,http://statistics.data.gov.uk/id/local-authority/00EU,Environment & Regeneration,ENP,Environment & Regeneration,82000,Specific Work,200200,20-Sep-13,1900128650,"5,250.00",Sutcliffe,103561
WARRINGTON BOROUGH COUNCIL,http://statistics.data.gov.uk/id/local-authority/00EU,Neighbourhood & Community Services,NCS,Care Purchase Budget,54490,CP - Cont Care - External,441350,20-Sep-13,1900128651,"3,589.00",The Extracare Charitable Trust,100497
WARRINGTON BOROUGH COUNCIL,http://statistics.data.gov.uk/id/local-authority/00EU,Neighbourhood & Community Services,NCS,Care Purchase Budget,54490,CP Free Nursing Care External,443500,20-Sep-13,1900128651,"3,044.00",The Extracare Charitable Trust,100497
WARRINGTON BOROUGH COUNCIL,http://statistics.data.gov.uk/id/local-authority/00EU,Neighbourhood & Community Services,NCS,Care Purchase - OP & OT Central,54420,CP - Housing with Care - External,494450,20-Sep-13,1900128651,"20,576.00",The Extracare Charitable Trust,100497
WARRINGTON BOROUGH COUNCIL,http://statistics.data.gov.uk/id/local-authority/00EU,Neighbourhood & Community Services,NCS,Care Purchase - PD,54440,CP - Housing with Care - External,494450,20-Sep-13,1900128651,"2,393.00",The Extracare Charitable Trust,100497
WARRINGTON BOROUGH COUNCIL,http://statistics.data.gov.uk/id/local-authority/00EU,Environment & Regeneration,ENP,Environment & Regeneration,82000,Specific Work,200200,20-Sep-13,1900128652,"6,473.00",Sutcliffe,103561
WARRINGTON BOROUGH COUNCIL,http://statistics.data.gov.uk/id/local-authority/00EU,Environment & Regeneration,ENP,Environment & Regeneration,82000,Specific Work,200200,20-Sep-13,1900128653,"5,192.00",Sutcliffe,103561
WARRINGTON BOROUGH COUNCIL,http://statistics.data.gov.uk/id/local-authority/00EU,Environment & Regeneration,ENO,Housing Projects,82008,Disabled Persons Grant 1996,554000,09-Sep-13,1900127571,"10,000.00",Acorn Building Projects Ltd,105557
WARRINGTON BOROUGH COUNCIL,http://statistics.data.gov.uk/id/local-authority/00EU,Children & Young People,CHL,Other Grant Income,32418,Payment of Grants,470050,09-Sep-13,1900127572,"6,230.00",Beamont Collegiate Academy,111598
WARRINGTON BOROUGH COUNCIL,http://statistics.data.gov.uk/id/local-authority/00EU,Children & Young People,CHL,Other Grant Income,32418,Payment of Grants,470050,09-Sep-13,1900127572,"3,167.00",Beamont Collegiate Academy,111598
WARRINGTON BOROUGH COUNCIL,http://statistics.data.gov.uk/id/local-authority/00EU,Children & Young People,CHL,DSG Delegated Funds Secondary,32402,School Delegated Budget,492750,09-Sep-13,1900127572,"2,094.00",Beamont Collegiate Academy,111598
WARRINGTON BOROUGH COUNCIL,http://statistics.data.gov.uk/id/local-authority/00EU,Children & Young People,CHL,Bungalow 1,31315,Gas,210050,09-Sep-13,1900127574,621.00,British Gas,100128
WARRINGTON BOROUGH COUNCIL,http://statistics.data.gov.uk/id/local-authority/00EU,Children & Young People,CYP,Childrens Other,81004,Contract Works,492550,09-Sep-13,1900127575,"13,695.00",CES Northwest Ltd,111216
WARRINGTON BOROUGH COUNCIL,http://statistics.data.gov.uk/id/local-authority/00EU,Children & Young People,CHL,Other Grant Income,32418,Payment of Grants,470050,09-Sep-13,1900127576,"3,167.00",Chaigeley Educational Foundation,400123
WARRINGTON BOROUGH COUNCIL,http://statistics.data.gov.uk/id/local-authority/00EU,Neighbourhood & Community Services,NCS,Sports Development,51200,Community Action Projects,470200,09-Sep-13,1900127577,900.00,Coachwise Ltd,104616
WARRINGTON BOROUGH COUNCIL,http://statistics.data.gov.uk/id/local-authority/00EU,Children & Young People,CHL,Other Grant Income,32418,Payment of Grants,470050,09-Sep-13,1900127580,"6,230.00",Great Sankey High Academy School,400206
WARRINGTON BOROUGH COUNCIL,http://statistics.data.gov.uk/id/local-authority/00EU,Children & Young People,CHL,Other Grant Income,32418,Payment of Grants,470050,09-Sep-13,1900127581,"3,115.00",Lymm High Academy,400221
WARRINGTON BOROUGH COUNCIL,http://statistics.data.gov.uk/id/local-authority/00EU,Children & Young People,CHL,Other Grant Income,32418,Payment of Grants,470050,09-Sep-13,1900127583,"2,492.00",Penketh High School Academy,400216
WARRINGTON BOROUGH COUNCIL,http://statistics.data.gov.uk/id/local-authority/00EU,Children & Young People,CHL,DSG Delegated Funds Secondary,32402,School Delegated Budget,492750,09-Sep-13,1900127583,"2,094.00",Penketh High School Academy,400216
WARRINGTON BOROUGH COUNCIL,http://statistics.data.gov.uk/id/local-authority/00EU,Environment & Regeneration,ER0,Private Sector Hsg.,43660,Postages,450000,09-Sep-13,1900127584,600.00,Pitney Bowes Postage By Phone,101079
WARRINGTON BOROUGH COUNCIL,http://statistics.data.gov.uk/id/local-authority/00EU,Environment & Regeneration,ENO,Housing Projects,82008,Disabled Persons Grant 1996,554000,09-Sep-13,1900127585,"8,000.00",Reilly Brothers Builders,111223
WARRINGTON BOROUGH COUNCIL,http://statistics.data.gov.uk/id/local-authority/00EU,Children & Young People,CHL,Other Grant Income,32418,Payment of Grants,470050,09-Sep-13,1900127587,"5,607.00",University Academy Warrington,111431
WARRINGTON BOROUGH COUNCIL,http://statistics.data.gov.uk/id/local-authority/00EU,Children & Young People,CHL,Other Grant Income,32418,Payment of Grants,470050,09-Sep-13,1900127587,"3,167.00",University Academy Warrington,111431
WARRINGTON BOROUGH COUNCIL,http://statistics.data.gov.uk/id/local-authority/00EU,Children & Young People,CYP,Childrens Other,81004,Contract Works,492550,09-Sep-13,1900127591,"8,500.00",Four Seasons Driveway,112228
WARRINGTON BOROUGH COUNCIL,http://statistics.data.gov.uk/id/local-authority/00EU,Children & Young People,CHL,Legal Fees - Safeguarding,30100,Legal Costs Incurred,440200,09-Sep-13,1900127592,"3,320.00",HMCTS,440115
WARRINGTON BOROUGH COUNCIL,http://statistics.data.gov.uk/id/local-authority/00EU,Assistant Chief Executive,CEX,Council Tax & Recovery,10320,Court Costs,460100,09-Sep-13,1900127594,"1,215.00",Hmcs North Cheshire Collections,102261
WARRINGTON BOROUGH COUNCIL,http://statistics.data.gov.uk/id/local-authority/00EU,Corporate Financing,COR,Debt Management Expenses,62080,Consult.& Prof. Serv,440000,09-Sep-13,1900127602,"1,838.00",Dwf LLP,101511
WARRINGTON BOROUGH COUNCIL,http://statistics.data.gov.uk/id/local-authority/00EU,Corporate Financing,COR,Debt Management Expenses,62080,Consult.& Prof. Serv,440000,09-Sep-13,1900127604,653.00,Dwf LLP,101511
WARRINGTON BOROUGH COUNCIL,http://statistics.data.gov.uk/id/local-authority/00EU,Corporate Financing,COR,Debt Management Expenses,62080,Consult.& Prof. Serv,440000,09-Sep-13,1900127606,"3,247.00",Dwf LLP,101511
WARRINGTON BOROUGH COUNCIL,http://statistics.data.gov.uk/id/local-authority/00EU,Corporate Financing,COR,Debt Management Expenses,62080,Consult.& Prof. Serv,440000,09-Sep-13,1900127607,"5,000.00",Dwf LLP,101511
WARRINGTON BOROUGH COUNCIL,http://statistics.data.gov.uk/id/local-authority/00EU,Children & Young People,CYP,Childrens Other,81004,Contract Works,492550,10-Sep-13,1900127611,"2,255.00",Sycamore Construction,106783
WARRINGTON BOROUGH COUNCIL,http://statistics.data.gov.uk/id/local-authority/00EU,Neighbourhood & Community Services,NCS,Care Purchase - Mental Health Team 2,54240,CP-Domicil.External,440950,10-Sep-13,1900127612,"1,023.00",Bluebird Care Warrington,104094
WARRINGTON BOROUGH COUNCIL,http://statistics.data.gov.uk/id/local-authority/00EU,Neighbourhood & Community Services,NCS,Care Purchase - Mental Health Team 1,54230,CP-Domicil.External,440950,10-Sep-13,1900127612,932.00,Bluebird Care Warrington,104094
WARRINGTON BOROUGH COUNCIL,http://statistics.data.gov.uk/id/local-authority/00EU,Neighbourhood & Community Services,NCS,Care Purchase - Learning Disability,54450,CP-Domicil.External,440950,10-Sep-13,1900127612,824.00,Bluebird Care Warrington,104094
WARRINGTON BOROUGH COUNCIL,http://statistics.data.gov.uk/id/local-authority/00EU,Neighbourhood & Community Services,NCS,Care Purchase - OP & OT South,54480,CP-Domicil.External,440950,10-Sep-13,1900127612,"15,072.00",Bluebird Care Warrington,104094
WARRINGTON BOROUGH COUNCIL,http://statistics.data.gov.uk/id/local-authority/00EU,Neighbourhood & Community Services,NCS,Care Purchase -OP & OT East,54430,CP-Domicil.External,440950,10-Sep-13,1900127612,"14,371.00",Bluebird Care Warrington,104094
WARRINGTON BOROUGH COUNCIL,http://statistics.data.gov.uk/id/local-authority/00EU,Neighbourhood & Community Services,NCS,Care Purchase - OP & OT West,54470,CP-Domicil.External,440950,10-Sep-13,1900127612,"11,103.00",Bluebird Care Warrington,104094
WARRINGTON BOROUGH COUNCIL,http://statistics.data.gov.uk/id/local-authority/00EU,Neighbourhood & Community Services,NCS,Care Purchase - OP & OT Central,54420,CP-Domicil.External,440950,10-Sep-13,1900127612,"4,653.00",Bluebird Care Warrington,104094
WARRINGTON BOROUGH COUNCIL,http://statistics.data.gov.uk/id/local-authority/00EU,Neighbourhood & Community Services,NCS,Care Purchase - PD,54440,CP-Domicil.External,440950,10-Sep-13,1900127612,"12,526.00",Bluebird Care Warrington,104094
WARRINGTON BOROUGH COUNCIL,http://statistics.data.gov.uk/id/local-authority/00EU,Neighbourhood & Community Services,NCS,Care Purchase Budget,54490,Supporting People - External,441250,10-Sep-13,1900127612,"1,571.00",Bluebird Care Warrington,104094
WARRINGTON BOROUGH COUNCIL,http://statistics.data.gov.uk/id/local-authority/00EU,Neighbourhood & Community Services,NCS,Care Purchase - PD,54440,Supporting People - External,441250,10-Sep-13,1900127612,"1,236.00",Bluebird Care Warrington,104094
WARRINGTON BOROUGH COUNCIL,http://statistics.data.gov.uk/id/local-authority/00EU,Corporate Financing,COR,Car Leasing Scheme - Salary Sacrifice,52126,Car Leasing Charges,350000,10-Sep-13,1900127613,"3,385.00",NHC NHS Foundation Trust,110359
WARRINGTON BOROUGH COUNCIL,http://statistics.data.gov.uk/id/local-authority/00EU,Corporate Financing,COR,Car Leasing Scheme - Salary Sacrifice,52126,Car Leasing Charges,350000,10-Sep-13,1900127613,670.00,NHC NHS Foundation Trust,110359
WARRINGTON BOROUGH COUNCIL,http://statistics.data.gov.uk/id/local-authority/00EU,Children & Young People,CYP,Primary,81001,Contract Works,492550,10-Sep-13,1900127615,"20,815.00",MCW Modular Building Systems Ltd,112010
WARRINGTON BOROUGH COUNCIL,http://statistics.data.gov.uk/id/local-authority/00EU,Children & Young People,CYP,Childrens Other,81004,Contract Works,492550,10-Sep-13,1900127615,"2,600.00",MCW Modular Building Systems Ltd,112010
WARRINGTON BOROUGH COUNCIL,http://statistics.data.gov.uk/id/local-authority/00EU,Corporate Financing,COR,Car Leasing Scheme - Salary Sacrifice,52126,Car Leasing Charges,350000,10-Sep-13,1900127617,"2,670.00",NHC NHS Foundation Trust,110359
WARRINGTON BOROUGH COUNCIL,http://statistics.data.gov.uk/id/local-authority/00EU,Corporate Financing,COR,Car Leasing Scheme - Salary Sacrifice,52126,Car Leasing Charges,350000,10-Sep-13,1900127617,670.00,NHC NHS Foundation Trust,110359
WARRINGTON BOROUGH COUNCIL,http://statistics.data.gov.uk/id/local-authority/00EU,Environment & Regeneration,ER0,Customer Contact Centre,52201,Rent Of Premises,220000,10-Sep-13,1900127619,"14,250.00",Whitecrest Estate Agents,106130
WARRINGTON BOROUGH COUNCIL,http://statistics.data.gov.uk/id/local-authority/00EU,Children & Young People,CYP,Primary,81001,ICT Comms - Equipment Purchase,450100,11-Sep-13,1900127620,"2,224.00",Rm Education Plc,105066
WARRINGTON BOROUGH COUNCIL,http://statistics.data.gov.uk/id/local-authority/00EU,Children & Young People,CYP,Primary,81001,ICT Comms - Equipment Purchase,450100,11-Sep-13,1900127621,"7,736.00",Rm Education Plc,105066
WARRINGTON BOROUGH COUNCIL,http://statistics.data.gov.uk/id/local-authority/00EU,Children & Young People,CYP,Childrens Other,81004,ICT Comms - Equipment Purchase,450100,11-Sep-13,1900127622,"26,294.00",Lanway Corporate Business Systems,102559
WARRINGTON BOROUGH COUNCIL,http://statistics.data.gov.uk/id/local-authority/00EU,Children & Young People,CYP,Childrens Other,81004,Contract Works,492550,11-Sep-13,1900127624,"5,367.00",Spectrum Flooring Ltd,105416
WARRINGTON BOROUGH COUNCIL,http://statistics.data.gov.uk/id/local-authority/00EU,Environment & Regeneration,ENO,Environment & Regeneration Other,82002,Consult.& Prof. Serv,440000,11-Sep-13,1900127639,950.00,Gva Grimley Liverpool,103086
WARRINGTON BOROUGH COUNCIL,http://statistics.data.gov.uk/id/local-authority/00EU,Children & Young People,CHL,Commissioning,33001,Payment of Grants,470050,11-Sep-13,1900127640,"3,510.00",Kids Planet Day Nursery Lymm,102992
WARRINGTON BOROUGH COUNCIL,http://statistics.data.gov.uk/id/local-authority/00EU,Neighbourhood & Community Services,NCS,Care Purchase - Learning Disability,54450,CP-Domicil.External,440950,11-Sep-13,1900127652,"6,528.00",Macintyre Care,104907
WARRINGTON BOROUGH COUNCIL,http://statistics.data.gov.uk/id/local-authority/00EU,Neighbourhood & Community Services,NCS,Care Purchase - Learning Disability,54450,CP-Domicil.External,440950,11-Sep-13,1900127654,650.00,Sanctuary Carr-Gomm,109157
WARRINGTON BOROUGH COUNCIL,http://statistics.data.gov.uk/id/local-authority/00EU,Neighbourhood & Community Services,NCS,Care Purchase - ABI,54260,CP-LongStayExternal,441150,11-Sep-13,1900127655,"5,660.00",Thames Health Care Ltd,102170
WARRINGTON BOROUGH COUNCIL,http://statistics.data.gov.uk/id/local-authority/00EU,Neighbourhood & Community Services,NCS,Care Purchase - Learning Disability,54450,CP-LongStayExternal,441150,11-Sep-13,1900127658,"12,348.00",Griffin Care Ltd,101672
WARRINGTON BOROUGH COUNCIL,http://statistics.data.gov.uk/id/local-authority/00EU,Children & Young People,CHL,DSG Inter Authority Recoupment,32009,Recoupment Charges,490700,11-Sep-13,1900127659,"10,592.00",Halton Borough Council,410008
WARRINGTON BOROUGH COUNCIL,http://statistics.data.gov.uk/id/local-authority/00EU,Neighbourhood & Community Services,NCS,Care Purchase - Learning Disability,54450,CP-LongStayExternal,441150,11-Sep-13,1900127660,"12,348.00",Griffin Care Ltd,101672
WARRINGTON BOROUGH COUNCIL,http://statistics.data.gov.uk/id/local-authority/00EU,Neighbourhood & Community Services,NCS,Care Purchase - Learning Disability,54450,CP-Domicil.External,440950,11-Sep-13,1900127662,947.00,Macintyre Care,104907
WARRINGTON BOROUGH COUNCIL,http://statistics.data.gov.uk/id/local-authority/00EU,Neighbourhood & Community Services,NCS,Care Purchase - OP & OT Central,54420,CP-Domicil.External,440950,11-Sep-13,1900127663,"3,819.00",Castlerock Recruitment Group,105279
WARRINGTON BOROUGH COUNCIL,http://statistics.data.gov.uk/id/local-authority/00EU,Neighbourhood & Community Services,NCS,Care Purchase -OP & OT East,54430,CP-Domicil.External,440950,11-Sep-13,1900127663,"1,186.00",Castlerock Recruitment Group,105279
WARRINGTON BOROUGH COUNCIL,http://statistics.data.gov.uk/id/local-authority/00EU,Neighbourhood & Community Services,NCS,Care Purchase - OP & OT South,54480,CP-Domicil.External,440950,11-Sep-13,1900127663,"1,129.00",Castlerock Recruitment Group,105279
WARRINGTON BOROUGH COUNCIL,http://statistics.data.gov.uk/id/local-authority/00EU,Neighbourhood & Community Services,NCS,Care Purchase - PD,54440,CP-Domicil.External,440950,11-Sep-13,1900127663,734.00,Castlerock Recruitment Group,105279
WARRINGTON BOROUGH COUNCIL,http://statistics.data.gov.uk/id/local-authority/00EU,Neighbourhood & Community Services,NCS,Care Purchase - Mental Health Team 2,54240,CP-Domicil.External,440950,11-Sep-13,1900127664,"4,000.00",East Cheshire Housing Consortium,110170
WARRINGTON BOROUGH COUNCIL,http://statistics.data.gov.uk/id/local-authority/00EU,Neighbourhood & Community Services,NCS,Care Purchase - Learning Disability,54450,CP-Domicil.External,440950,11-Sep-13,1900127665,537.00,Autism Initiatives,104503
WARRINGTON BOROUGH COUNCIL,http://statistics.data.gov.uk/id/local-authority/00EU,Neighbourhood & Community Services,NCS,Care Purchase Budget,54490,CP ExternalOther Exp,440800,11-Sep-13,1900127666,"1,404.00",Bupa Care Homes,104572
WARRINGTON BOROUGH COUNCIL,http://statistics.data.gov.uk/id/local-authority/00EU,Neighbourhood & Community Services,NCS,Care Purchase Budget,54490,CP ExternalOther Exp,440800,11-Sep-13,1900127668,"17,730.00",Ashberry Healthcare Ltd,104776
WARRINGTON BOROUGH COUNCIL,http://statistics.data.gov.uk/id/local-authority/00EU,Neighbourhood & Community Services,NCS,Care Purchase - Learning Disability,54450,CP-LongStayExternal,441150,11-Sep-13,1900127669,"11,071.00",The David Lewis Centre,104879
WARRINGTON BOROUGH COUNCIL,http://statistics.data.gov.uk/id/local-authority/00EU,Neighbourhood & Community Services,NCS,Care Purchase Budget,54490,CP ExternalOther Exp,440800,11-Sep-13,1900127670,"8,101.00",St Marys Care Centre,101503
WARRINGTON BOROUGH COUNCIL,http://statistics.data.gov.uk/id/local-authority/00EU,Neighbourhood & Community Services,NCS,Care Purchase - OP & OT Central,54420,CP-Domicil.External,440950,11-Sep-13,1900127671,"3,727.00",Castlerock Recruitment Group,105279
WARRINGTON BOROUGH COUNCIL,http://statistics.data.gov.uk/id/local-authority/00EU,Neighbourhood & Community Services,NCS,Care Purchase - OP & OT South,54480,CP-Domicil.External,440950,11-Sep-13,1900127671,"1,295.00",Castlerock Recruitment Group,105279
WARRINGTON BOROUGH COUNCIL,http://statistics.data.gov.uk/id/local-authority/00EU,Neighbourhood & Community Services,NCS,Care Purchase -OP & OT East,54430,CP-Domicil.External,440950,11-Sep-13,1900127671,"1,189.00",Castlerock Recruitment Group,105279
WARRINGTON BOROUGH COUNCIL,http://statistics.data.gov.uk/id/local-authority/00EU,Neighbourhood & Community Services,NCS,Care Purchase - PD,54440,CP-Domicil.External,440950,11-Sep-13,1900127671,"1,195.00",Castlerock Recruitment Group,105279
WARRINGTON BOROUGH COUNCIL,http://statistics.data.gov.uk/id/local-authority/00EU,Neighbourhood & Community Services,NCS,Care Purchase - OP & OT Central,54420,CP-Domicil.External,440950,11-Sep-13,1900127672,"3,783.00",Castlerock Recruitment Group,105279
WARRINGTON BOROUGH COUNCIL,http://statistics.data.gov.uk/id/local-authority/00EU,Environment & Regeneration,ENP,Environment & Regeneration,82000,Specific Work,200200,20-Sep-13,1900128654,"7,650.00",Sutcliffe,103561
WARRINGTON BOROUGH COUNCIL,http://statistics.data.gov.uk/id/local-authority/00EU,Children & Young People,CHL,Child Disability,32212,CP-Domicil.External,440950,20-Sep-13,1900128660,720.00,Wasps Nursery and Link Clubs,400087
WARRINGTON BOROUGH COUNCIL,http://statistics.data.gov.uk/id/local-authority/00EU,Neighbourhood & Community Services,NCS,Care Purchase - Learning Disability,54450,CP-Day Care-External,441100,20-Sep-13,1900128661,"20,197.00",Walton Lea Project,102953
WARRINGTON BOROUGH COUNCIL,http://statistics.data.gov.uk/id/local-authority/00EU,Neighbourhood & Community Services,NCS,Care Purchase - ABI,54260,CP-Domicil.External,440950,20-Sep-13,1900128668,"1,230.00",Future Directions Community Interes,111498
WARRINGTON BOROUGH COUNCIL,http://statistics.data.gov.uk/id/local-authority/00EU,Neighbourhood & Community Services,NCS,Care Purchase Budget,54490,CP ExternalOther Exp,440800,20-Sep-13,1900128671,"6,168.00",Leyton Healthcare,102517
WARRINGTON BOROUGH COUNCIL,http://statistics.data.gov.uk/id/local-authority/00EU,Neighbourhood & Community Services,NCS,Care Purchase - OP & OT West,54470,CP-Nursing Care-External,441200,20-Sep-13,1900128675,"1,771.00",Bowerfield House MMCG,111713
WARRINGTON BOROUGH COUNCIL,http://statistics.data.gov.uk/id/local-authority/00EU,Neighbourhood & Community Services,NCS,Care Purchase - OP & OT West,54470,CP-Nursing Care-External,441200,20-Sep-13,1900128676,"1,771.00",Bowerfield House MMCG,111713
WARRINGTON BOROUGH COUNCIL,http://statistics.data.gov.uk/id/local-authority/00EU,Neighbourhood & Community Services,NCS,Care Purchase Budget,54490,CP ExternalOther Exp,440800,20-Sep-13,1900128677,"15,890.00",Bondcare St Andrews,109634
WARRINGTON BOROUGH COUNCIL,http://statistics.data.gov.uk/id/local-authority/00EU,Neighbourhood & Community Services,NCS,Care Purchase - PD,54440,CP-LongStayExternal,441150,20-Sep-13,1900128678,"7,087.00",Voyage Care,100099
WARRINGTON BOROUGH COUNCIL,http://statistics.data.gov.uk/id/local-authority/00EU,Neighbourhood & Community Services,NCS,Care Purchase - Learning Disability,54450,CP-Day Care-External,441100,20-Sep-13,1900128679,"20,197.00",Walton Lea Project,102953
WARRINGTON BOROUGH COUNCIL,http://statistics.data.gov.uk/id/local-authority/00EU,Neighbourhood & Community Services,NCS,Care Purchase - ABI,54260,CP-LongStayExternal,441150,20-Sep-13,1900128680,"6,428.00",Voyage Care,100099
WARRINGTON BOROUGH COUNCIL,http://statistics.data.gov.uk/id/local-authority/00EU,Neighbourhood & Community Services,NCS,Fearnhead Cross CH,51235,Security Systems,250000,23-Sep-13,1900128690,691.00,Abel Alarm Company Ltd,101027
WARRINGTON BOROUGH COUNCIL,http://statistics.data.gov.uk/id/local-authority/00EU,Children & Young People,CHL,DSG Inter Authority Recoupment,32009,Recoupment Charges,490700,23-Sep-13,1900128695,"4,883.00",Landgate School,112272
WARRINGTON BOROUGH COUNCIL,http://statistics.data.gov.uk/id/local-authority/00EU,Children & Young People,CHL,DSG Inter Authority Recoupment,32009,Recoupment Charges,490700,23-Sep-13,1900128696,"4,883.00",Landgate School,112272
WARRINGTON BOROUGH COUNCIL,http://statistics.data.gov.uk/id/local-authority/00EU,Children & Young People,CHL,Critical Incident Support Team,32214,Consult.& Prof. Serv,440000,23-Sep-13,1900128699,"2,517.00",University Of Nottingham,420177
WARRINGTON BOROUGH COUNCIL,http://statistics.data.gov.uk/id/local-authority/00EU,Environment & Regeneration,ER0,Postal & Courier Services,52130,Postages,450000,23-Sep-13,1900128706,"1,118.00",Royal Mail,101445
WARRINGTON BOROUGH COUNCIL,http://statistics.data.gov.uk/id/local-authority/00EU,Children & Young People,CHL,Federation of Music Services,32220,Awards,550000,23-Sep-13,1900128717,"1,000.00",Wacidom,440049
WARRINGTON BOROUGH COUNCIL,http://statistics.data.gov.uk/id/local-authority/00EU,Children & Young People,CHL,Legal Fees - Safeguarding,30100,Legal Costs Incurred,440200,23-Sep-13,1900128718,795.00,HMCTS,440115
WARRINGTON BOROUGH COUNCIL,http://statistics.data.gov.uk/id/local-authority/00EU,Corporate Financing,COR,Car Leasing Scheme - Salary Sacrifice,52126,Car Leasing Charges,350000,23-Sep-13,1900128720,"3,081.00",NHC NHS Foundation Trust,110359
WARRINGTON BOROUGH COUNCIL,http://statistics.data.gov.uk/id/local-authority/00EU,Corporate Financing,COR,Car Leasing Scheme - Salary Sacrifice,52126,Car Leasing Charges,350000,23-Sep-13,1900128720,670.00,NHC NHS Foundation Trust,110359
WARRINGTON BOROUGH COUNCIL,http://statistics.data.gov.uk/id/local-authority/00EU,Corporate Financing,COR,Car Leasing Scheme - Salary Sacrifice,52126,Car Leasing Charges,350000,23-Sep-13,1900128721,"2,520.00",NHC NHS Foundation Trust,110359
WARRINGTON BOROUGH COUNCIL,http://statistics.data.gov.uk/id/local-authority/00EU,Corporate Financing,COR,Car Leasing Scheme - Salary Sacrifice,52126,Car Leasing Charges,350000,23-Sep-13,1900128721,670.00,NHC NHS Foundation Trust,110359
WARRINGTON BOROUGH COUNCIL,http://statistics.data.gov.uk/id/local-authority/00EU,Children & Young People,CHL,EIG Funding - Westy Childrens Centre,31541,Servicing Contracts,200150,23-Sep-13,1900128729,612.00,Cannon Hygiene Ltd,104565
WARRINGTON BOROUGH COUNCIL,http://statistics.data.gov.uk/id/local-authority/00EU,Children & Young People,CHL,EIG Funding - Orchard Childrens Centre,31531,NNDR,230000,23-Sep-13,1900128736,"8,085.00",Warrington Borough Council,440006
WARRINGTON BOROUGH COUNCIL,http://statistics.data.gov.uk/id/local-authority/00EU,Children & Young People,CHL,EIG Funding - Westy Childrens Centre,31541,Water & Sewerage Chg,240000,23-Sep-13,1900128737,707.00,United Utilities Water Limited,104982
WARRINGTON BOROUGH COUNCIL,http://statistics.data.gov.uk/id/local-authority/00EU,Children & Young People,CYP,Childrens Other,81004,ICT Comms - Equipment Purchase,450100,23-Sep-13,1900128738,"17,675.00",Computeam Limited,107933
WARRINGTON BOROUGH COUNCIL,http://statistics.data.gov.uk/id/local-authority/00EU,Children & Young People,CYP,Childrens Other,81004,Contract Works,492550,23-Sep-13,1900128739,"9,526.00",Blackburn Diocesan Board of Educati,107093
WARRINGTON BOROUGH COUNCIL,http://statistics.data.gov.uk/id/local-authority/00EU,Children & Young People,CYP,Childrens Other,81004,Contract Works,492550,23-Sep-13,1900128741,"30,685.00",Blackburn Diocesan Board of Educati,107093
WARRINGTON BOROUGH COUNCIL,http://statistics.data.gov.uk/id/local-authority/00EU,Children & Young People,CYP,Childrens Other,81004,Contract Works,492550,23-Sep-13,1900128743,"2,404.00",Penketh Fencing and Sheds,109428
WARRINGTON BOROUGH COUNCIL,http://statistics.data.gov.uk/id/local-authority/00EU,Children & Young People,CYP,Childrens Other,81004,Equipment Purchase & Contract,400000,23-Sep-13,1900128744,562.00,Topological Limited,106784
WARRINGTON BOROUGH COUNCIL,http://statistics.data.gov.uk/id/local-authority/00EU,Children & Young People,CYP,Childrens Other,81004,Contract Works,492550,23-Sep-13,1900128748,600.00,Applewood Carpentry& Building,105445
WARRINGTON BOROUGH COUNCIL,http://statistics.data.gov.uk/id/local-authority/00EU,Children & Young People,CHL,Local Safeguarding Children Board,31201,Works Contract Paymt,442500,23-Sep-13,1900128749,"3,120.00",Tri X,109234
WARRINGTON BOROUGH COUNCIL,http://statistics.data.gov.uk/id/local-authority/00EU,Children & Young People,CYP,Childrens Other,81004,Contract Works,492550,23-Sep-13,1900128750,"2,436.00",Flooring Solutions Ltd,104116
WARRINGTON BOROUGH COUNCIL,http://statistics.data.gov.uk/id/local-authority/00EU,Children & Young People,CYP,Childrens Other,81004,Contract Works,492550,23-Sep-13,1900128751,"1,944.00",Flooring Solutions Ltd,104116
WARRINGTON BOROUGH COUNCIL,http://statistics.data.gov.uk/id/local-authority/00EU,Assistant Chief Executive,CEX,CRB Checks,52122,CRB Checks,190050,24-Sep-13,1900128753,"6,121.00",Criminal Records Bureau,440085
WARRINGTON BOROUGH COUNCIL,http://statistics.data.gov.uk/id/local-authority/00EU,Holding Accounts,HOL,Single Billing Holding Account,91130,Non BMP General Repairs,200050,24-Sep-13,1900128762,"1,084.00",Manchester Working Limited,105646
WARRINGTON BOROUGH COUNCIL,http://statistics.data.gov.uk/id/local-authority/00EU,Neighbourhood & Community Services,NCS,Contracts - SM Commissioning Team 1,55910,Public Health Contract Payments,540000,24-Sep-13,1900128764,"187,083.00",Bridgewater Community Healthcare,108932
WARRINGTON BOROUGH COUNCIL,http://statistics.data.gov.uk/id/local-authority/00EU,Children & Young People,CHL,Foster Allowances,31106,Fostering Allowance,550050,24-Sep-13,1900128770,600.00,Redacted Personal Data,460358
WARRINGTON BOROUGH COUNCIL,http://statistics.data.gov.uk/id/local-authority/00EU,Children & Young People,CHL,Fostering Team,31105,Agency Supply - GF,180000,24-Sep-13,1900128777,"2,320.00",K Kerfoot Ltd,109052
WARRINGTON BOROUGH COUNCIL,http://statistics.data.gov.uk/id/local-authority/00EU,Assistant Chief Executive,ACO,Assistant Chief Executive Other,84003,Computer Software - Purchase,450800,24-Sep-13,1900128780,"32,725.00",Civica Uk Ltd,100585
WARRINGTON BOROUGH COUNCIL,http://statistics.data.gov.uk/id/local-authority/00EU,Neighbourhood & Community Services,NCS,Care Purchase - OP & OT South,54480,CP-LongStayExternal,441150,25-Sep-13,1900128784,"1,300.00",Bondcare (Spinney),102023
WARRINGTON BOROUGH COUNCIL,http://statistics.data.gov.uk/id/local-authority/00EU,Neighbourhood & Community Services,NCS,Care Purchase - OP & OT West,54470,CP-Nursing Care-External,441200,25-Sep-13,1900128785,"1,427.00",Four Seasons Ta Cherry Trees,103592
WARRINGTON BOROUGH COUNCIL,http://statistics.data.gov.uk/id/local-authority/00EU,Neighbourhood & Community Services,NCS,Care Purchase - Learning Disability,54450,CP-Day Care-External,441100,25-Sep-13,1900128786,"5,591.00",Oliver House Priory,107946
WARRINGTON BOROUGH COUNCIL,http://statistics.data.gov.uk/id/local-authority/00EU,Neighbourhood & Community Services,NCS,Care Purchase - Learning Disability,54450,CP-LongStayExternal,441150,25-Sep-13,1900128787,"10,388.00",Bank Hall Farm,103693
WARRINGTON BOROUGH COUNCIL,http://statistics.data.gov.uk/id/local-authority/00EU,Neighbourhood & Community Services,NCS,Care Purchase - Learning Disability,54450,CP-Domicil.External,440950,25-Sep-13,1900128788,"9,534.00",Zeno Limited,111080
WARRINGTON BOROUGH COUNCIL,http://statistics.data.gov.uk/id/local-authority/00EU,Neighbourhood & Community Services,NCS,Care Purchase - Learning Disability,54450,CP-Domicil.External,440950,25-Sep-13,1900128789,"11,824.00",Zeno Limited,111080
WARRINGTON BOROUGH COUNCIL,http://statistics.data.gov.uk/id/local-authority/00EU,Neighbourhood & Community Services,NCS,Care Purchase - Learning Disability,54450,CP-LongStayExternal,441150,25-Sep-13,1900128790,"7,036.00",Sense,440092
WARRINGTON BOROUGH COUNCIL,http://statistics.data.gov.uk/id/local-authority/00EU,Neighbourhood & Community Services,NCS,Care Purchase - PD,54440,CP-LongStayExternal,441150,25-Sep-13,1900128791,"4,584.00",Scope,105109
WARRINGTON BOROUGH COUNCIL,http://statistics.data.gov.uk/id/local-authority/00EU,Neighbourhood & Community Services,NCS,Care Purchase - ABI,54260,CP-Nursing Care-External,441200,25-Sep-13,1900128792,"5,000.00",St Marys Care Centre,101503
WARRINGTON BOROUGH COUNCIL,http://statistics.data.gov.uk/id/local-authority/00EU,Neighbourhood & Community Services,NCS,Care Purchase - Learning Disability,54450,CP-LongStayExternal,441150,25-Sep-13,1900128793,"8,418.00",Voyage Care,100099
WARRINGTON BOROUGH COUNCIL,http://statistics.data.gov.uk/id/local-authority/00EU,Neighbourhood & Community Services,NCS,Care Purchase - Mental Health Team 1,54230,CP-LongStayExternal,441150,25-Sep-13,1900128794,"6,685.00",Voyage Care,100099
WARRINGTON BOROUGH COUNCIL,http://statistics.data.gov.uk/id/local-authority/00EU,Neighbourhood & Community Services,NCS,Care Purchase - ABI,54260,CP-LongStayExternal,441150,25-Sep-13,1900128795,"6,428.00",Voyage Care,100099
WARRINGTON BOROUGH COUNCIL,http://statistics.data.gov.uk/id/local-authority/00EU,Neighbourhood & Community Services,NCS,Care Purchase - OP & OT South,54480,CP-Domicil.External,440950,25-Sep-13,1900128796,"15,668.00",Dh Homecare,101961
WARRINGTON BOROUGH COUNCIL,http://statistics.data.gov.uk/id/local-authority/00EU,Neighbourhood & Community Services,NCS,Care Purchase - PD,54440,CP-Domicil.External,440950,25-Sep-13,1900128796,"3,677.00",Dh Homecare,101961
WARRINGTON BOROUGH COUNCIL,http://statistics.data.gov.uk/id/local-authority/00EU,Neighbourhood & Community Services,NCS,Care Purchase Budget,54490,CP - Cont Care - External,441350,25-Sep-13,1900128796,"1,335.00",Dh Homecare,101961
WARRINGTON BOROUGH COUNCIL,http://statistics.data.gov.uk/id/local-authority/00EU,Neighbourhood & Community Services,NCS,Care Purchase - PD,54440,CP-Nursing Care-External,441200,25-Sep-13,1900128797,"5,680.00",Voyage Care,100099
WARRINGTON BOROUGH COUNCIL,http://statistics.data.gov.uk/id/local-authority/00EU,Neighbourhood & Community Services,NCS,Care Purchase - OP & OT Central,54420,CP-LongStayExternal,441150,25-Sep-13,1900128798,"1,764.00",Bupa Care Homes - Broadoak Manor,104546
WARRINGTON BOROUGH COUNCIL,http://statistics.data.gov.uk/id/local-authority/00EU,Neighbourhood & Community Services,NCS,Care Purchase - Learning Disability,54450,CP-Nursing Care-External,441200,25-Sep-13,1900128799,"8,212.00",Community Care Matters Limited,102791
WARRINGTON BOROUGH COUNCIL,http://statistics.data.gov.uk/id/local-authority/00EU,Neighbourhood & Community Services,NCS,Care Purchase Budget,54490,CP - Cont Care - External,441350,25-Sep-13,1900128799,"19,408.00",Community Care Matters Limited,102791
WARRINGTON BOROUGH COUNCIL,http://statistics.data.gov.uk/id/local-authority/00EU,Neighbourhood & Community Services,NCS,Care Purchase - OP & OT West,54470,CP-LongStayExternal,441150,25-Sep-13,1900128800,"2,600.00",Chase House Limited,110786
WARRINGTON BOROUGH COUNCIL,http://statistics.data.gov.uk/id/local-authority/00EU,Neighbourhood & Community Services,NCS,Care Purchase - Learning Disability,54450,CP-LongStayExternal,441150,25-Sep-13,1900128801,"12,532.00",Inclusive Lifestyles Ltd,101840
WARRINGTON BOROUGH COUNCIL,http://statistics.data.gov.uk/id/local-authority/00EU,Neighbourhood & Community Services,NCS,Care Purchase - OP & OT Central,54420,CP-LongStayExternal,441150,25-Sep-13,1900128802,"5,800.00",Voyage Care,100099
WARRINGTON BOROUGH COUNCIL,http://statistics.data.gov.uk/id/local-authority/00EU,Neighbourhood & Community Services,NCS,Care Purchase - Mental Health Team 1,54230,CP-Domicil.External,440950,25-Sep-13,1900128803,"5,966.00",Continuum Support Ltd,112065
WARRINGTON BOROUGH COUNCIL,http://statistics.data.gov.uk/id/local-authority/00EU,Neighbourhood & Community Services,NCS,Care Purchase - Learning Disability,54450,CP-Day Care-External,441100,25-Sep-13,1900128804,"2,931.00",Autism Initiatives,104503
WARRINGTON BOROUGH COUNCIL,http://statistics.data.gov.uk/id/local-authority/00EU,Neighbourhood & Community Services,NCS,Care Purchase - Mental Health Team 1,54230,CP-Domicil.External,440950,25-Sep-13,1900128805,"11,932.00",Continuum Support Ltd,112065
WARRINGTON BOROUGH COUNCIL,http://statistics.data.gov.uk/id/local-authority/00EU,Neighbourhood & Community Services,NCS,Care Purchase - Learning Disability,54450,CP-LongStayExternal,441150,25-Sep-13,1900128806,"4,496.00",Autism Initiatives,104503
WARRINGTON BOROUGH COUNCIL,http://statistics.data.gov.uk/id/local-authority/00EU,Neighbourhood & Community Services,NCS,Care Purchase - Learning Disability,54450,CP-LongStayExternal,441150,25-Sep-13,1900128807,"12,744.00",Inclusive Lifestyles Ltd,101840
WARRINGTON BOROUGH COUNCIL,http://statistics.data.gov.uk/id/local-authority/00EU,Neighbourhood & Community Services,NCS,Care Purchase - Learning Disability,54450,CP-Day Care-External,441100,25-Sep-13,1900128808,"1,005.00",Autism Initiatives,104503
WARRINGTON BOROUGH COUNCIL,http://statistics.data.gov.uk/id/local-authority/00EU,Neighbourhood & Community Services,NCS,Care Purchase - Learning Disability,54450,CP-Day Care-External,441100,25-Sep-13,1900128809,"16,423.00",Macintyre Care,104907
WARRINGTON BOROUGH COUNCIL,http://statistics.data.gov.uk/id/local-authority/00EU,Neighbourhood & Community Services,NCS,Care Purchase - Learning Disability,54450,CP-Day Care-External,441100,25-Sep-13,1900128810,"3,651.00",Autism Initiatives,104503
WARRINGTON BOROUGH COUNCIL,http://statistics.data.gov.uk/id/local-authority/00EU,Neighbourhood & Community Services,NCS,Care Purchase - Mental Health Team 1,54230,CP-LongStayExternal,441150,25-Sep-13,1900128811,"1,564.00",Hilton Residential Homes Ltd,104783
WARRINGTON BOROUGH COUNCIL,http://statistics.data.gov.uk/id/local-authority/00EU,Neighbourhood & Community Services,NCS,Care Purchase - Learning Disability,54450,CP-LongStayExternal,441150,25-Sep-13,1900128812,"19,951.00",Oliver House Priory,107946
WARRINGTON BOROUGH COUNCIL,http://statistics.data.gov.uk/id/local-authority/00EU,Neighbourhood & Community Services,NCS,Care Purchase - Learning Disability,54450,CP-LongStayExternal,441150,25-Sep-13,1900128813,"8,464.00",Community Care Matters Limited,102791
WARRINGTON BOROUGH COUNCIL,http://statistics.data.gov.uk/id/local-authority/00EU,Neighbourhood & Community Services,NCS,Care Purchase Budget,54490,CP - Cont Care - External,441350,25-Sep-13,1900128813,"20,100.00",Community Care Matters Limited,102791
WARRINGTON BOROUGH COUNCIL,http://statistics.data.gov.uk/id/local-authority/00EU,Neighbourhood & Community Services,NCS,Care Purchase Budget,54490,CP - Cont Care - External,441350,25-Sep-13,1900128814,"13,864.00",The David Lewis Centre,104879
WARRINGTON BOROUGH COUNCIL,http://statistics.data.gov.uk/id/local-authority/00EU,Neighbourhood & Community Services,NCS,Care Purchase - Learning Disability,54450,CP-LongStayExternal,441150,25-Sep-13,1900128815,"2,797.00",Redacted Personal Data,100583
WARRINGTON BOROUGH COUNCIL,http://statistics.data.gov.uk/id/local-authority/00EU,Neighbourhood & Community Services,NCS,Care Purchase - Learning Disability,54450,CP-Nursing Care-External,441200,25-Sep-13,1900128816,"10,016.00",The David Lewis Centre,104879
WARRINGTON BOROUGH COUNCIL,http://statistics.data.gov.uk/id/local-authority/00EU,Neighbourhood & Community Services,NCS,Care Purchase -OP & OT East,54430,CP-LongStayExternal,441150,25-Sep-13,1900128818,"2,480.00",Barchester The Wheatlands,108909
WARRINGTON BOROUGH COUNCIL,http://statistics.data.gov.uk/id/local-authority/00EU,Neighbourhood & Community Services,NCS,Care Purchase - Learning Disability,54450,CP-LongStayExternal,441150,25-Sep-13,1900128819,"5,076.00",Macintyre Care,104907
WARRINGTON BOROUGH COUNCIL,http://statistics.data.gov.uk/id/local-authority/00EU,Neighbourhood & Community Services,NCS,Care Purchase - OP & OT Central,54420,CP-Nursing Care-External,441200,25-Sep-13,1900128820,"2,012.00",Abraham Nursing Homes Limited,111965
WARRINGTON BOROUGH COUNCIL,http://statistics.data.gov.uk/id/local-authority/00EU,Neighbourhood & Community Services,NCS,Care Purchase - Learning Disability,54450,CP-LongStayExternal,441150,25-Sep-13,1900128822,"3,564.00",Manor Care Centre,103831
WARRINGTON BOROUGH COUNCIL,http://statistics.data.gov.uk/id/local-authority/00EU,Neighbourhood & Community Services,NCS,Care Purchase - OP & OT West,54470,CP-LongStayExternal,441150,25-Sep-13,1900128823,"1,722.00",Simonsfield Care Home,110134
WARRINGTON BOROUGH COUNCIL,http://statistics.data.gov.uk/id/local-authority/00EU,Neighbourhood & Community Services,NCS,Care Purchase -OP & OT East,54430,CP-LongStayExternal,441150,25-Sep-13,1900128824,"1,540.00",Abbeydale Residential Home,104446
WARRINGTON BOROUGH COUNCIL,http://statistics.data.gov.uk/id/local-authority/00EU,Neighbourhood & Community Services,NCS,Care Purchase - Learning Disability,54450,CP-Nursing Care-External,441200,25-Sep-13,1900128825,"2,576.00",Chadderton Total-Care Unit Ltd,100425
WARRINGTON BOROUGH COUNCIL,http://statistics.data.gov.uk/id/local-authority/00EU,Neighbourhood & Community Services,NCS,Care Purchase - PD,54440,CP-Nursing Care-External,441200,25-Sep-13,1900128826,"4,136.00",Abbey Lawns Care Home Ltd,101816
WARRINGTON BOROUGH COUNCIL,http://statistics.data.gov.uk/id/local-authority/00EU,Neighbourhood & Community Services,NCS,Care Purchase - OP & OT South,54480,CP-LongStayExternal,441150,25-Sep-13,1900128829,"1,912.00",Sanctuary Care Limited,109765
WARRINGTON BOROUGH COUNCIL,http://statistics.data.gov.uk/id/local-authority/00EU,Holding Accounts,HOL,Single Billing Holding Account,91130,Specific Work,200200,25-Sep-13,1900128830,"2,824.00",Manchester Working Limited,105646
WARRINGTON BOROUGH COUNCIL,http://statistics.data.gov.uk/id/local-authority/00EU,Holding Accounts,HOL,Single Billing Holding Account,91130,Specific Work,200200,25-Sep-13,1900128831,"10,135.00",Manchester Working Limited,105646
WARRINGTON BOROUGH COUNCIL,http://statistics.data.gov.uk/id/local-authority/00EU,Neighbourhood & Community Services,NCS,Care Purchase - PD,54440,CP Adult Placement,443450,25-Sep-13,1900128835,"3,021.00",Redacted Personal Data,100052
WARRINGTON BOROUGH COUNCIL,http://statistics.data.gov.uk/id/local-authority/00EU,Neighbourhood & Community Services,NCS,Care Purchase - Learning Disability,54450,CP Adult Placement,443450,25-Sep-13,1900128838,"1,510.00",Redacted Personal Data,101175
WARRINGTON BOROUGH COUNCIL,http://statistics.data.gov.uk/id/local-authority/00EU,Children & Young People,CHL,DSG Inter Authority Recoupment,32009,Recoupment Charges,490700,25-Sep-13,1900128839,"4,883.00",Landgate School,112272
WARRINGTON BOROUGH COUNCIL,http://statistics.data.gov.uk/id/local-authority/00EU,Neighbourhood & Community Services,NCS,Care Purchase - PD,54440,CP Adult Placement,443450,25-Sep-13,1900128841,"1,510.00",Redacted Personal Data,460225
WARRINGTON BOROUGH COUNCIL,http://statistics.data.gov.uk/id/local-authority/00EU,Children & Young People,CYP,Primary,81001,Contract Works,492550,25-Sep-13,1900128843,"27,158.00",Mansell Construction Services Ltd,111524
WARRINGTON BOROUGH COUNCIL,http://statistics.data.gov.uk/id/local-authority/00EU,Neighbourhood & Community Services,NCS,Care Purchase - PD,54440,CP Adult Placement,443450,25-Sep-13,1900128844,"1,510.00",Redacted Personal Data,102249
WARRINGTON BOROUGH COUNCIL,http://statistics.data.gov.uk/id/local-authority/00EU,Children & Young People,CHL,Halton Music Grant,32218,Payment of Grants,470050,25-Sep-13,1900128845,"37,197.00",Halton Borough Council,410008
WARRINGTON BOROUGH COUNCIL,http://statistics.data.gov.uk/id/local-authority/00EU,Neighbourhood & Community Services,NCS,Care Purchase - Learning Disability,54450,CP Adult Placement,443450,25-Sep-13,1900128846,"1,510.00",Redacted Personal Data,100044
WARRINGTON BOROUGH COUNCIL,http://statistics.data.gov.uk/id/local-authority/00EU,Neighbourhood & Community Services,NCS,Care Purchase - Learning Disability,54450,CP Adult Placement,443450,25-Sep-13,1900128847,"1,652.00",Redacted Personal Data,460332
WARRINGTON BOROUGH COUNCIL,http://statistics.data.gov.uk/id/local-authority/00EU,Neighbourhood & Community Services,NCS,Care Purchase - PD,54440,CP Adult Placement,443450,25-Sep-13,1900128848,"3,030.00",Redacted Personal Data,460030
WARRINGTON BOROUGH COUNCIL,http://statistics.data.gov.uk/id/local-authority/00EU,Neighbourhood & Community Services,NCS,Care Purchase - Learning Disability,54450,CP Adult Placement,443450,25-Sep-13,1900128849,"1,510.00",Redacted Personal Data,460115
WARRINGTON BOROUGH COUNCIL,http://statistics.data.gov.uk/id/local-authority/00EU,Children & Young People,CHL,CYPS - Rents & Charges,32422,Water Meter Charges,240050,25-Sep-13,1900128852,"6,517.00",United Utilities Water Limited,104982
WARRINGTON BOROUGH COUNCIL,http://statistics.data.gov.uk/id/local-authority/00EU,Children & Young People,CHL,EIG Funding - Orchard Childrens Centre,31531,Electricity,210000,25-Sep-13,1900128853,774.00,Scottish Power,101711
WARRINGTON BOROUGH COUNCIL,http://statistics.data.gov.uk/id/local-authority/00EU,Assistant Chief Executive,CEX,Chief Exec's Office,14000,Corporate Initiative,491000,25-Sep-13,1900128855,"3,150.00",Ellesmere Port & Neston Council,410003
WARRINGTON BOROUGH COUNCIL,http://statistics.data.gov.uk/id/local-authority/00EU,Children & Young People,CYP,Childrens Other,81004,Contract Works,492550,25-Sep-13,1900128856,"2,322.00",The Cobbs Infant School,400126
WARRINGTON BOROUGH COUNCIL,http://statistics.data.gov.uk/id/local-authority/00EU,Children & Young People,CHL,Child Disability,32212,Direct Payments,552000,24-Sep-13,1900128857,"1,200.00",Redacted Personal Data,105668
WARRINGTON BOROUGH COUNCIL,http://statistics.data.gov.uk/id/local-authority/00EU,Children & Young People,CHL,Child Disability,32212,Direct Payments,552000,24-Sep-13,1900128860,610.00,Redacted Personal Data,460810
WARRINGTON BOROUGH COUNCIL,http://statistics.data.gov.uk/id/local-authority/00EU,Neighbourhood & Community Services,NCS,SLA - Grant Account,53920,Payment of Grants,470050,25-Sep-13,1900128863,"84,057.00",Warrington District CAB,440159
WARRINGTON BOROUGH COUNCIL,http://statistics.data.gov.uk/id/local-authority/00EU,Assistant Chief Executive,CEX,Council Tax & Recovery,10320,External Printing,430100,26-Sep-13,1900128864,"1,351.00",Vertex Data Science,100530
WARRINGTON BOROUGH COUNCIL,http://statistics.data.gov.uk/id/local-authority/00EU,Assistant Chief Executive,CEX,Debtors,10380,External Printing,430100,26-Sep-13,1900128864,690.00,Vertex Data Science,100530
WARRINGTON BOROUGH COUNCIL,http://statistics.data.gov.uk/id/local-authority/00EU,Assistant Chief Executive,CEX,Housing Benefit,10340,External Printing,430100,26-Sep-13,1900128864,678.00,Vertex Data Science,100530
WARRINGTON BOROUGH COUNCIL,http://statistics.data.gov.uk/id/local-authority/00EU,Environment & Regeneration,ER0,Postal & Courier Services,52130,External Printing,430100,26-Sep-13,1900128864,"8,200.00",Vertex Data Science,100530
WARRINGTON BOROUGH COUNCIL,http://statistics.data.gov.uk/id/local-authority/00EU,Children & Young People,CHL,Other Grant Income,32418,Payment of Grants,470050,26-Sep-13,1900128865,"5,607.00",University Academy Warrington,111431
WARRINGTON BOROUGH COUNCIL,http://statistics.data.gov.uk/id/local-authority/00EU,Children & Young People,CHL,Other Grant Income,32418,Payment of Grants,470050,26-Sep-13,1900128865,"3,167.00",University Academy Warrington,111431
WARRINGTON BOROUGH COUNCIL,http://statistics.data.gov.uk/id/local-authority/00EU,Assistant Chief Executive,CEX,Coroners Service,11100,Reimbursement for Deputy Coroner,440400,26-Sep-13,1900128866,"4,326.00",Redacted Personal Data,111176
WARRINGTON BOROUGH COUNCIL,http://statistics.data.gov.uk/id/local-authority/00EU,Assistant Chief Executive,CEX,Coroners Service,11100,Post Mortem Fees-Rep,440250,26-Sep-13,1900128874,"2,717.00",Dr Debdeep Dey,106869
WARRINGTON BOROUGH COUNCIL,http://statistics.data.gov.uk/id/local-authority/00EU,Assistant Chief Executive,CEX,Coroners Service,11100,Post Mortem Fees-Rep,440250,26-Sep-13,1900128876,976.00,Dr M S Al-Jafari,104464
WARRINGTON BOROUGH COUNCIL,http://statistics.data.gov.uk/id/local-authority/00EU,Assistant Chief Executive,CEX,Coroners Service,11100,Post Mortem Fees-Rep,440250,26-Sep-13,1900128877,596.00,Dr Matthew S Lyall,107881
WARRINGTON BOROUGH COUNCIL,http://statistics.data.gov.uk/id/local-authority/00EU,Assistant Chief Executive,CEX,Coroners Service,11100,Post Mortem Fees-Rep,440250,26-Sep-13,1900128878,592.00,Dr Matthew S Lyall,107881
WARRINGTON BOROUGH COUNCIL,http://statistics.data.gov.uk/id/local-authority/00EU,Assistant Chief Executive,CEX,Coroners Service,11100,Hire Of Mortuaries,220200,26-Sep-13,1900128881,"2,966.00",East Cheshire Nhs Trust,440130
WARRINGTON BOROUGH COUNCIL,http://statistics.data.gov.uk/id/local-authority/00EU,Children & Young People,CYP,Childrens Other,81004,Contract Works,492550,26-Sep-13,1900128882,"29,810.00",Complete Roofing Systems Ltd,112314
WARRINGTON BOROUGH COUNCIL,http://statistics.data.gov.uk/id/local-authority/00EU,Assistant Chief Executive,CEX,Coroners Service,11100,Post Mortem Fees-Rep,440250,26-Sep-13,1900128890,596.00,Dr J E Medcalf,112248
WARRINGTON BOROUGH COUNCIL,http://statistics.data.gov.uk/id/local-authority/00EU,Assistant Chief Executive,CEX,Coroners Service,11100,Analysts Fees,440300,26-Sep-13,1900128895,504.00,Roar Forensics Ltd,105295
WARRINGTON BOROUGH COUNCIL,http://statistics.data.gov.uk/id/local-authority/00EU,Neighbourhood & Community Services,NCS,Contracts - OM K & I Team,55950,External Printing,430100,26-Sep-13,1900128898,526.00,Thebigword Interpreting Services Lt,109484
WARRINGTON BOROUGH COUNCIL,http://statistics.data.gov.uk/id/local-authority/00EU,Neighbourhood & Community Services,NCS,Contracts - OM K & I Team,55950,External Printing,430100,26-Sep-13,1900128899,526.00,Thebigword Interpreting Services Lt,109484
WARRINGTON BOROUGH COUNCIL,http://statistics.data.gov.uk/id/local-authority/00EU,Neighbourhood & Community Services,NCS,Care Purchase Budget,54490,CP-LongStayExternal,441150,26-Sep-13,1900128916,"33,703.00",Bondcare St Andrews,109634
WARRINGTON BOROUGH COUNCIL,http://statistics.data.gov.uk/id/local-authority/00EU,Neighbourhood & Community Services,NCS,Care Purchase Budget,54490,CP-LongStayExternal,441150,26-Sep-13,1900128917,"21,600.00",CareConcepts (Appleton) Ltd,105804
WARRINGTON BOROUGH COUNCIL,http://statistics.data.gov.uk/id/local-authority/00EU,Neighbourhood & Community Services,NCS,Care Purchase Budget,54490,CP ExternalOther Exp,440800,26-Sep-13,1900128918,"21,267.00",Harbour Healthcare 1 Ltd,110527
WARRINGTON BOROUGH COUNCIL,http://statistics.data.gov.uk/id/local-authority/00EU,Neighbourhood & Community Services,NCS,Care Purchase Budget,54490,CP-LongStayExternal,441150,27-Sep-13,1900128919,"37,589.00",Leyton Healthcare Limited,108970
WARRINGTON BOROUGH COUNCIL,http://statistics.data.gov.uk/id/local-authority/00EU,Neighbourhood & Community Services,NCS,Care Purchase Budget,54490,CP-LongStayExternal,441150,27-Sep-13,1900128920,"1,920.00",Barchester Healthcare Cheshire Gran,111378
WARRINGTON BOROUGH COUNCIL,http://statistics.data.gov.uk/id/local-authority/00EU,Neighbourhood & Community Services,NCS,Care Purchase Budget,54490,CP-LongStayExternal,441150,27-Sep-13,1900128921,"27,811.00",Heathside Elderly Persons Home,104777
WARRINGTON BOROUGH COUNCIL,http://statistics.data.gov.uk/id/local-authority/00EU,Neighbourhood & Community Services,NCS,Care Purchase Budget,54490,CP ExternalOther Exp,440800,27-Sep-13,1900128922,"16,903.00",Cls Care Services Ltd,104615
WARRINGTON BOROUGH COUNCIL,http://statistics.data.gov.uk/id/local-authority/00EU,Neighbourhood & Community Services,NCS,Care Purchase Budget,54490,CP-LongStayExternal,441150,27-Sep-13,1900128923,"11,806.00",Rosevilla Residential Home,105084
WARRINGTON BOROUGH COUNCIL,http://statistics.data.gov.uk/id/local-authority/00EU,Neighbourhood & Community Services,NCS,Care Purchase Budget,54490,CP-LongStayExternal,441150,27-Sep-13,1900128924,"16,754.00",European Care (Uk) Ltd,100320
WARRINGTON BOROUGH COUNCIL,http://statistics.data.gov.uk/id/local-authority/00EU,Neighbourhood & Community Services,NCS,Care Purchase Budget,54490,CP-LongStayExternal,441150,27-Sep-13,1900128925,"25,023.00",Keate House Residential Home,104849
WARRINGTON BOROUGH COUNCIL,http://statistics.data.gov.uk/id/local-authority/00EU,Neighbourhood & Community Services,NCS,Care Purchase Budget,54490,CP-LongStayExternal,441150,27-Sep-13,1900128926,"27,509.00",London & Manchester Healthcare Ltd,109185
WARRINGTON BOROUGH COUNCIL,http://statistics.data.gov.uk/id/local-authority/00EU,Neighbourhood & Community Services,NCS,Care Purchase Budget,54490,CP-LongStayExternal,441150,27-Sep-13,1900128927,"5,623.00",St Marys Care Centre,101503
WARRINGTON BOROUGH COUNCIL,http://statistics.data.gov.uk/id/local-authority/00EU,Neighbourhood & Community Services,NCS,Care Purchase Budget,54490,CP-LongStayExternal,441150,27-Sep-13,1900128928,"29,979.00",Four Seasons ta St Oswalds Care Hom,109422
WARRINGTON BOROUGH COUNCIL,http://statistics.data.gov.uk/id/local-authority/00EU,Neighbourhood & Community Services,NCS,Care Purchase Budget,54490,CP-LongStayExternal,441150,27-Sep-13,1900128929,"14,291.00",Arlington House,104491
WARRINGTON BOROUGH COUNCIL,http://statistics.data.gov.uk/id/local-authority/00EU,Neighbourhood & Community Services,NCS,Care Purchase Budget,54490,CP-LongStayExternal,441150,27-Sep-13,1900128930,"52,331.00",HC-One Limited Callands,109640
WARRINGTON BOROUGH COUNCIL,http://statistics.data.gov.uk/id/local-authority/00EU,Neighbourhood & Community Services,NCS,Care Purchase Budget,54490,CP-LongStayExternal,441150,27-Sep-13,1900128931,"9,537.00",Heathfield Residental Home,100059
WARRINGTON BOROUGH COUNCIL,http://statistics.data.gov.uk/id/local-authority/00EU,Neighbourhood & Community Services,NCS,Care Purchase Budget,54490,CP-LongStayExternal,441150,27-Sep-13,1900128932,"16,149.00",Wcl - Heathside Mews,101742
WARRINGTON BOROUGH COUNCIL,http://statistics.data.gov.uk/id/local-authority/00EU,Neighbourhood & Community Services,NCS,Care Purchase Budget,54490,CP-LongStayExternal,441150,27-Sep-13,1900128933,"21,629.00",Summerville Nursing Home -Private C,105162
WARRINGTON BOROUGH COUNCIL,http://statistics.data.gov.uk/id/local-authority/00EU,Neighbourhood & Community Services,NCS,Care Purchase Budget,54490,CP-LongStayExternal,441150,27-Sep-13,1900128934,"30,069.00",Ashberry Healthcare Ltd,101061
WARRINGTON BOROUGH COUNCIL,http://statistics.data.gov.uk/id/local-authority/00EU,Neighbourhood & Community Services,NCS,Care Purchase Budget,54490,CP-LongStayExternal,441150,27-Sep-13,1900128935,"7,051.00",Old Rectory Private Nursing Home,104990
WARRINGTON BOROUGH COUNCIL,http://statistics.data.gov.uk/id/local-authority/00EU,Neighbourhood & Community Services,NCS,Care Purchase Budget,54490,CP-LongStayExternal,441150,27-Sep-13,1900128936,"11,526.00",Thelwall Grange Nursing Home,105174
WARRINGTON BOROUGH COUNCIL,http://statistics.data.gov.uk/id/local-authority/00EU,Neighbourhood & Community Services,NCS,Care Purchase Budget,54490,CP-LongStayExternal,441150,27-Sep-13,1900128937,"21,971.00",Barchester Homes Westvale House,105246
WARRINGTON BOROUGH COUNCIL,http://statistics.data.gov.uk/id/local-authority/00EU,Neighbourhood & Community Services,NCS,Care Purchase Budget,54490,CP-LongStayExternal,441150,27-Sep-13,1900128938,"5,183.00",Barchester Healthcare Brookfield,104548
WARRINGTON BOROUGH COUNCIL,http://statistics.data.gov.uk/id/local-authority/00EU,Neighbourhood & Community Services,NCS,Care Purchase Budget,54490,CP-LongStayExternal,441150,27-Sep-13,1900128939,"14,371.00",W H Investments Ltd,111422
WARRINGTON BOROUGH COUNCIL,http://statistics.data.gov.uk/id/local-authority/00EU,Neighbourhood & Community Services,NCS,Care Purchase Budget,54490,CP ExternalOther Exp,440800,27-Sep-13,1900128940,"24,160.00",Cls Care Services Ltd,104615
WARRINGTON BOROUGH COUNCIL,http://statistics.data.gov.uk/id/local-authority/00EU,Neighbourhood & Community Services,NCS,Care Purchase Budget,54490,CP-LongStayExternal,441150,27-Sep-13,1900128941,"33,651.00",Minster Care Management Ltd,105179
WARRINGTON BOROUGH COUNCIL,http://statistics.data.gov.uk/id/local-authority/00EU,Neighbourhood & Community Services,NCS,Care Purchase Budget,54490,CP-LongStayExternal,441150,27-Sep-13,1900128942,"69,943.00",Bupa Care Homes,104572
WARRINGTON BOROUGH COUNCIL,http://statistics.data.gov.uk/id/local-authority/00EU,Neighbourhood & Community Services,NCS,Care Purchase Budget,54490,CP-LongStayExternal,441150,27-Sep-13,1900128943,"67,497.00",Leyton Healthcare,102517
WARRINGTON BOROUGH COUNCIL,http://statistics.data.gov.uk/id/local-authority/00EU,Neighbourhood & Community Services,NCS,Care Purchase Budget,54490,CP-LongStayExternal,441150,27-Sep-13,1900128945,"62,343.00",Ashberry Healthcare Ltd,104776
WARRINGTON BOROUGH COUNCIL,http://statistics.data.gov.uk/id/local-authority/00EU,Environment & Regeneration,ENO,Housing Projects,82008,Disabled Persons Grant 1996,554000,27-Sep-13,1900128954,"11,441.00",Cpec Ltd,109834
WARRINGTON BOROUGH COUNCIL,http://statistics.data.gov.uk/id/local-authority/00EU,Neighbourhood & Community Services,NCS,Neighbourhood Co-o Central,51309,Payment of Grants,470050,27-Sep-13,1900128955,700.00,Oasis Warrington,112316
WARRINGTON BOROUGH COUNCIL,http://statistics.data.gov.uk/id/local-authority/00EU,Neighbourhood & Community Services,NCS,Care Purchase - Learning Disability,54450,CP-Day Care-External,441100,27-Sep-13,1900128956,910.00,Macintyre Care,104907
WARRINGTON BOROUGH COUNCIL,http://statistics.data.gov.uk/id/local-authority/00EU,Neighbourhood & Community Services,NCS,Care Purchase - Learning Disability,54450,CP-Day Care-External,441100,27-Sep-13,1900128958,"3,375.00",Macintyre Care,104907
WARRINGTON BOROUGH COUNCIL,http://statistics.data.gov.uk/id/local-authority/00EU,Neighbourhood & Community Services,NCS,Care Purchase - Learning Disability,54450,CP-Day Care-External,441100,27-Sep-13,1900128960,910.00,Macintyre Care,104907
WARRINGTON BOROUGH COUNCIL,http://statistics.data.gov.uk/id/local-authority/00EU,Neighbourhood & Community Services,NCS,Care Purchase - Learning Disability,54450,CP-Domicil.External,440950,27-Sep-13,1900128962,"5,654.00",Autism Initiatives,104503
WARRINGTON BOROUGH COUNCIL,http://statistics.data.gov.uk/id/local-authority/00EU,Neighbourhood & Community Services,NCS,Care Purchase - Learning Disability,54450,CP-Domicil.External,440950,27-Sep-13,1900128963,"6,926.00",Autism Initiatives,104503
WARRINGTON BOROUGH COUNCIL,http://statistics.data.gov.uk/id/local-authority/00EU,Neighbourhood & Community Services,NCS,Care Purchase - Mental Health Team 1,54230,CP-LongStayExternal,441150,27-Sep-13,1900128964,"6,381.00",HWCGS Care Ltd,108619
WARRINGTON BOROUGH COUNCIL,http://statistics.data.gov.uk/id/local-authority/00EU,Neighbourhood & Community Services,NCS,Care Purchase - Learning Disability,54450,CP-LongStayExternal,441150,27-Sep-13,1900128965,"6,649.00",HWCGS Care Ltd,108619
WARRINGTON BOROUGH COUNCIL,http://statistics.data.gov.uk/id/local-authority/00EU,Neighbourhood & Community Services,NCS,Care Purchase - PD,54440,CP-Domicil.External,440950,27-Sep-13,1900128968,"3,746.00",Homelife Leeds Ltd,101794
WARRINGTON BOROUGH COUNCIL,http://statistics.data.gov.uk/id/local-authority/00EU,Neighbourhood & Community Services,NCS,Care Purchase Budget,54490,CP - Cont Care - External,441350,27-Sep-13,1900128969,"3,960.00",St Marys Care Centre,101503
WARRINGTON BOROUGH COUNCIL,http://statistics.data.gov.uk/id/local-authority/00EU,Environment & Regeneration,ER0,Homelessness,43650,B.& B.Allowances,525050,27-Sep-13,1900128971,720.00,Mr K Willams Adelphi Vaults,110456
WARRINGTON BOROUGH COUNCIL,http://statistics.data.gov.uk/id/local-authority/00EU,Children & Young People,CHL,Foster Allowances,31106,Fostering Allowance,550050,27-Sep-13,1900128974,"1,914.00",Redacted Personal Data,106283
WARRINGTON BOROUGH COUNCIL,http://statistics.data.gov.uk/id/local-authority/00EU,Assistant Chief Executive,CEX,Coroners Service,11100,Reimbursement for Deputy Coroner,440400,27-Sep-13,1900128976,981.00,Redacted Personal Data,111284
WARRINGTON BOROUGH COUNCIL,http://statistics.data.gov.uk/id/local-authority/00EU,Children & Young People,CHL,Local Safeguarding Children Board,31201,Works Contract Paymt,442500,27-Sep-13,1900128980,"3,120.00",Tri X,109234
WARRINGTON BOROUGH COUNCIL,http://statistics.data.gov.uk/id/local-authority/00EU,Children & Young People,CHL,Local Safeguarding Children Board,31201,Works Contract Paymt,442500,27-Sep-13,1900128981,"2,244.00",Tri X,109234
WARRINGTON BOROUGH COUNCIL,http://statistics.data.gov.uk/id/local-authority/00EU,Neighbourhood & Community Services,NCS,Care Purchase - Learning Disability,54450,CP-Domicil.External,440950,27-Sep-13,1900128998,"68,739.00",Alternative Futures Group,104468
WARRINGTON BOROUGH COUNCIL,http://statistics.data.gov.uk/id/local-authority/00EU,Neighbourhood & Community Services,NCS,Care Purchase - Learning Disability,54450,Supporting People - External,441250,27-Sep-13,1900128998,"7,300.00",Alternative Futures Group,104468
WARRINGTON BOROUGH COUNCIL,http://statistics.data.gov.uk/id/local-authority/00EU,Neighbourhood & Community Services,NCS,Care Purchase - Learning Disability,54450,CP-Domicil.External,440950,27-Sep-13,1900128999,"68,739.00",Alternative Futures Group,104468
WARRINGTON BOROUGH COUNCIL,http://statistics.data.gov.uk/id/local-authority/00EU,Neighbourhood & Community Services,NCS,Care Purchase - Learning Disability,54450,Supporting People - External,441250,27-Sep-13,1900128999,"7,300.00",Alternative Futures Group,104468
WARRINGTON BOROUGH COUNCIL,http://statistics.data.gov.uk/id/local-authority/00EU,Neighbourhood & Community Services,NCS,Care Purchase - Learning Disability,54450,CP-Domicil.External,440950,27-Sep-13,1900129000,"2,118.00",Premier Care Cheshire Ltd,105142
WARRINGTON BOROUGH COUNCIL,http://statistics.data.gov.uk/id/local-authority/00EU,Neighbourhood & Community Services,NCS,Care Purchase - Mental Health Team 2,54240,CP-Domicil.External,440950,27-Sep-13,1900129000,"1,791.00",Premier Care Cheshire Ltd,105142
WARRINGTON BOROUGH COUNCIL,http://statistics.data.gov.uk/id/local-authority/00EU,Neighbourhood & Community Services,NCS,Care Purchase - Mental Health Team 1,54230,CP-Domicil.External,440950,27-Sep-13,1900129000,"1,166.00",Premier Care Cheshire Ltd,105142
WARRINGTON BOROUGH COUNCIL,http://statistics.data.gov.uk/id/local-authority/00EU,Neighbourhood & Community Services,NCS,Care Purchase - OP & OT West,54470,CP-Domicil.External,440950,27-Sep-13,1900129000,"16,998.00",Premier Care Cheshire Ltd,105142
WARRINGTON BOROUGH COUNCIL,http://statistics.data.gov.uk/id/local-authority/00EU,Neighbourhood & Community Services,NCS,Care Purchase -OP & OT East,54430,CP-Domicil.External,440950,27-Sep-13,1900129000,"15,037.00",Premier Care Cheshire Ltd,105142
WARRINGTON BOROUGH COUNCIL,http://statistics.data.gov.uk/id/local-authority/00EU,Neighbourhood & Community Services,NCS,Care Purchase - OP & OT Central,54420,CP-Domicil.External,440950,27-Sep-13,1900129000,"12,622.00",Premier Care Cheshire Ltd,105142
WARRINGTON BOROUGH COUNCIL,http://statistics.data.gov.uk/id/local-authority/00EU,Neighbourhood & Community Services,NCS,Care Purchase - OP & OT South,54480,CP-Domicil.External,440950,27-Sep-13,1900129000,"8,527.00",Premier Care Cheshire Ltd,105142
WARRINGTON BOROUGH COUNCIL,http://statistics.data.gov.uk/id/local-authority/00EU,Neighbourhood & Community Services,NCS,Care Purchase - PD,54440,CP-Domicil.External,440950,27-Sep-13,1900129000,"7,560.00",Premier Care Cheshire Ltd,105142
WARRINGTON BOROUGH COUNCIL,http://statistics.data.gov.uk/id/local-authority/00EU,Neighbourhood & Community Services,NCS,Care Purchase Budget,54490,CP - Cont Care - External,441350,27-Sep-13,1900129000,"2,469.00",Premier Care Cheshire Ltd,105142
WARRINGTON BOROUGH COUNCIL,http://statistics.data.gov.uk/id/local-authority/00EU,Neighbourhood & Community Services,NCS,Care Purchase - Mental Health Team 2,54240,CP-Domicil.External,440950,27-Sep-13,1900129001,"1,089.00",Bluebird Care Warrington,104094
WARRINGTON BOROUGH COUNCIL,http://statistics.data.gov.uk/id/local-authority/00EU,Neighbourhood & Community Services,NCS,Care Purchase - Mental Health Team 1,54230,CP-Domicil.External,440950,27-Sep-13,1900129001,866.00,Bluebird Care Warrington,104094
WARRINGTON BOROUGH COUNCIL,http://statistics.data.gov.uk/id/local-authority/00EU,Neighbourhood & Community Services,NCS,Care Purchase - OP & OT South,54480,CP-Domicil.External,440950,27-Sep-13,1900129001,"14,502.00",Bluebird Care Warrington,104094
WARRINGTON BOROUGH COUNCIL,http://statistics.data.gov.uk/id/local-authority/00EU,Neighbourhood & Community Services,NCS,Care Purchase -OP & OT East,54430,CP-Domicil.External,440950,27-Sep-13,1900129001,"13,853.00",Bluebird Care Warrington,104094
WARRINGTON BOROUGH COUNCIL,http://statistics.data.gov.uk/id/local-authority/00EU,Neighbourhood & Community Services,NCS,Care Purchase - OP & OT West,54470,CP-Domicil.External,440950,27-Sep-13,1900129001,"10,077.00",Bluebird Care Warrington,104094
WARRINGTON BOROUGH COUNCIL,http://statistics.data.gov.uk/id/local-authority/00EU,Neighbourhood & Community Services,NCS,Care Purchase - OP & OT Central,54420,CP-Domicil.External,440950,27-Sep-13,1900129001,"3,362.00",Bluebird Care Warrington,104094
WARRINGTON BOROUGH COUNCIL,http://statistics.data.gov.uk/id/local-authority/00EU,Neighbourhood & Community Services,NCS,Care Purchase - PD,54440,CP-Domicil.External,440950,27-Sep-13,1900129001,"13,052.00",Bluebird Care Warrington,104094
WARRINGTON BOROUGH COUNCIL,http://statistics.data.gov.uk/id/local-authority/00EU,Neighbourhood & Community Services,NCS,Care Purchase - PD,54440,Supporting People - External,441250,27-Sep-13,1900129001,"1,347.00",Bluebird Care Warrington,104094
WARRINGTON BOROUGH COUNCIL,http://statistics.data.gov.uk/id/local-authority/00EU,Neighbourhood & Community Services,NCS,Care Purchase Budget,54490,CP - Cont Care - External,441350,27-Sep-13,1900129001,"1,571.00",Bluebird Care Warrington,104094
WARRINGTON BOROUGH COUNCIL,http://statistics.data.gov.uk/id/local-authority/00EU,Environment & Regeneration,ENO,Housing Projects,82008,Disabled Persons Grant 1996,554000,27-Sep-13,1900129002,531.00,A A Moving Solutions,100287
WARRINGTON BOROUGH COUNCIL,http://statistics.data.gov.uk/id/local-authority/00EU,Environment & Regeneration,ENO,Housing Projects,82008,Disabled Persons Grant 1996,554000,27-Sep-13,1900129004,"13,450.00",Metro Developments,106845
WARRINGTON BOROUGH COUNCIL,http://statistics.data.gov.uk/id/local-authority/00EU,Environment & Regeneration,ENO,Housing Projects,82008,Disabled Persons Grant 1996,554000,27-Sep-13,1900129005,"1,846.00",ThyssenKrupp Encasa Ltd,105382
WARRINGTON BOROUGH COUNCIL,http://statistics.data.gov.uk/id/local-authority/00EU,Assistant Chief Executive,CEX,Chief Exec's Office,14000,Corporate Initiative,491000,27-Sep-13,1900129006,"3,150.00",Manchester City Council,410005
WARRINGTON BOROUGH COUNCIL,http://statistics.data.gov.uk/id/local-authority/00EU,Environment & Regeneration,ER0,Atlantic Gateway,42150,Consult.& Prof. Serv,440000,27-Sep-13,1900129014,"13,750.00",Langtree Group Plc,110599
WARRINGTON BOROUGH COUNCIL,http://statistics.data.gov.uk/id/local-authority/00EU,Environment & Regeneration,ENO,Housing Projects,82008,Safe & Secure Energy House Assistance,554100,27-Sep-13,1900129015,"1,706.00",Acorn Building Projects Ltd,105557
WARRINGTON BOROUGH COUNCIL,http://statistics.data.gov.uk/id/local-authority/00EU,Children & Young People,CYP,Primary,81001,ICT Comms - Equipment Purchase,450100,27-Sep-13,1900129017,"8,582.00",CDEC Limited,109195
WARRINGTON BOROUGH COUNCIL,http://statistics.data.gov.uk/id/local-authority/00EU,Environment & Regeneration,ENO,Housing Projects,82008,Disabled Persons Grant 1996,554000,27-Sep-13,1900129019,"1,519.00",Dorma Uk Ltd,102330
WARRINGTON BOROUGH COUNCIL,http://statistics.data.gov.uk/id/local-authority/00EU,Environment & Regeneration,ENO,Housing Projects,82008,Disabled Persons Grant 1996,554000,27-Sep-13,1900129020,"3,257.00",Redacted Personal Data,102051
WARRINGTON BOROUGH COUNCIL,http://statistics.data.gov.uk/id/local-authority/00EU,Holding Accounts,HOL,Single Billing Holding Account,91130,Non BMP General Repairs,200050,27-Sep-13,1900129024,"51,450.00",Manchester Working Limited,105646
WARRINGTON BOROUGH COUNCIL,http://statistics.data.gov.uk/id/local-authority/00EU,Holding Accounts,HOL,Single Billing Holding Account,91130,Specific Work,200200,27-Sep-13,1900129025,"46,151.00",Manchester Working Limited,105646
WARRINGTON BOROUGH COUNCIL,http://statistics.data.gov.uk/id/local-authority/00EU,Environment & Regeneration,ENO,Housing Projects,82008,Disabled Persons Grant 1996,554000,27-Sep-13,1900129028,"3,416.00",Total Plumbing Solutions,102587
WARRINGTON BOROUGH COUNCIL,http://statistics.data.gov.uk/id/local-authority/00EU,Environment & Regeneration,ER0,Industrial Estates,43570,NNDR Vacant Properties,230050,27-Sep-13,1900129029,552.00,Warrington Borough Council,440006
WARRINGTON BOROUGH COUNCIL,http://statistics.data.gov.uk/id/local-authority/00EU,Environment & Regeneration,ER0,Printing & Graphics,23040,Equipment Purchase & Contract,400000,27-Sep-13,1900129031,"2,241.00",Xerox Finance,105255
WARRINGTON BOROUGH COUNCIL,http://statistics.data.gov.uk/id/local-authority/00EU,Neighbourhood & Community Services,NCS,Supporting People Grant Payments,53260,Sheltd/Xtra Care Hsing and Comm Alarms,535050,30-Sep-13,1900129036,"1,802.00",Anchor Ha,100886
WARRINGTON BOROUGH COUNCIL,http://statistics.data.gov.uk/id/local-authority/00EU,Neighbourhood & Community Services,NCS,Supporting People Grant Payments,53260,Sheltd/Xtra Care Hsing and Comm Alarms,535050,30-Sep-13,1900129037,"18,484.00",Arena Housing,102199
WARRINGTON BOROUGH COUNCIL,http://statistics.data.gov.uk/id/local-authority/00EU,Neighbourhood & Community Services,NCS,Supporting People Grant Payments,53260,People with Mental Health Problems,535200,30-Sep-13,1900129038,"3,542.00",Redacted Personal Data,100735
WARRINGTON BOROUGH COUNCIL,http://statistics.data.gov.uk/id/local-authority/00EU,Environment & Regeneration,ENO,Housing Projects,82008,Disabled Persons Grant 1996,554000,30-Sep-13,1900129040,558.00,Warrington Housing Current Acc,101208
WARRINGTON BOROUGH COUNCIL,http://statistics.data.gov.uk/id/local-authority/00EU,Neighbourhood & Community Services,NCS,Supporting People Grant Payments,53260,Sheltd/Xtra Care Hsing and Comm Alarms,535050,30-Sep-13,1900129041,"2,918.00",Muir Housing Association Ltd,100053
WARRINGTON BOROUGH COUNCIL,http://statistics.data.gov.uk/id/local-authority/00EU,Corporate Financing,COR,Car Leasing Scheme - Salary Sacrifice,52126,Car Leasing Charges,350000,30-Sep-13,1900129042,"3,278.00",NHC NHS Foundation Trust,110359
WARRINGTON BOROUGH COUNCIL,http://statistics.data.gov.uk/id/local-authority/00EU,Corporate Financing,COR,Car Leasing Scheme - Salary Sacrifice,52126,Car Leasing Charges,350000,30-Sep-13,1900129042,670.00,NHC NHS Foundation Trust,110359
WARRINGTON BOROUGH COUNCIL,http://statistics.data.gov.uk/id/local-authority/00EU,Neighbourhood & Community Services,NCS,Supporting People Grant Payments,53260,Sheltd/Xtra Care Hsing and Comm Alarms,535050,30-Sep-13,1900129043,"1,108.00",St Vincents Housing Association,100756
WARRINGTON BOROUGH COUNCIL,http://statistics.data.gov.uk/id/local-authority/00EU,Neighbourhood & Community Services,NCS,Contracts - SM Commissioning Team 1,55910,Public Health Contract Payments,540000,30-Sep-13,1900129046,"10,292.00",Warrington And Halton Nhs Ft,440132
WARRINGTON BOROUGH COUNCIL,http://statistics.data.gov.uk/id/local-authority/00EU,Neighbourhood & Community Services,NCS,Supporting People Grant Payments,53260,Sheltd/Xtra Care Hsing and Comm Alarms,535050,30-Sep-13,1900129047,"4,514.00",Warrington Housing Current Acc,101208
WARRINGTON BOROUGH COUNCIL,http://statistics.data.gov.uk/id/local-authority/00EU,Environment & Regeneration,ENO,Housing Projects,82008,Disabled Persons Grant 1996,554000,30-Sep-13,1900129048,"9,981.00",Ehlen Construction,108366
WARRINGTON BOROUGH COUNCIL,http://statistics.data.gov.uk/id/local-authority/00EU,Neighbourhood & Community Services,NCS,Care Purchase - PD,54440,CP-LongStayExternal,441150,30-Sep-13,1900129050,"6,895.00",The David Lewis Centre,104879
WARRINGTON BOROUGH COUNCIL,http://statistics.data.gov.uk/id/local-authority/00EU,Environment & Regeneration,ER0,Industrial Estates,43570,NNDR Vacant Properties,230050,30-Sep-13,1900129051,"2,491.00",Warrington Borough Council,440006
WARRINGTON BOROUGH COUNCIL,http://statistics.data.gov.uk/id/local-authority/00EU,Corporate Financing,COR,Car Leasing Scheme - Salary Sacrifice,52126,Car Leasing Charges,350000,30-Sep-13,1900129052,"2,955.00",NHC NHS Foundation Trust,110359
WARRINGTON BOROUGH COUNCIL,http://statistics.data.gov.uk/id/local-authority/00EU,Corporate Financing,COR,Car Leasing Scheme - Salary Sacrifice,52126,Car Leasing Charges,350000,30-Sep-13,1900129052,739.00,NHC NHS Foundation Trust,110359
WARRINGTON BOROUGH COUNCIL,http://statistics.data.gov.uk/id/local-authority/00EU,Children & Young People,CYP,Childrens Other,81004,Contract Works,492550,30-Sep-13,1900129053,"1,973.00",Alfred Bagnall & Sons (North west),112334
WARRINGTON BOROUGH COUNCIL,http://statistics.data.gov.uk/id/local-authority/00EU,Children & Young People,CYP,Childrens Other,81004,Contract Works,492550,30-Sep-13,1900129054,"6,350.00",Alfred Bagnall & Sons (North west),112334
WARRINGTON BOROUGH COUNCIL,http://statistics.data.gov.uk/id/local-authority/00EU,Neighbourhood & Community Services,NCS,Supporting People Grant Payments,53260,Sheltd/Xtra Care Hsing and Comm Alarms,535050,30-Sep-13,1900129055,"18,569.00",Frontis Homes,101685
WARRINGTON BOROUGH COUNCIL,http://statistics.data.gov.uk/id/local-authority/00EU,Neighbourhood & Community Services,NCS,Care Purchase -OP & OT East,54430,CP-Nursing Care-External,441200,30-Sep-13,1900129062,"1,765.00",Nazareth Care Charitable Trust,112227
WARRINGTON BOROUGH COUNCIL,http://statistics.data.gov.uk/id/local-authority/00EU,Neighbourhood & Community Services,NCS,Care Purchase - Learning Disability,54450,CP-LongStayExternal,441150,30-Sep-13,1900129064,"2,880.00",Thornton Manor,107806
WARRINGTON BOROUGH COUNCIL,http://statistics.data.gov.uk/id/local-authority/00EU,Neighbourhood & Community Services,NCS,Care Purchase - Learning Disability,54450,CP-Nursing Care-External,441200,30-Sep-13,1900129065,"2,445.00",Thornton Manor,107806
WARRINGTON BOROUGH COUNCIL,http://statistics.data.gov.uk/id/local-authority/00EU,Neighbourhood & Community Services,NCS,Care Purchase - Learning Disability,54450,CP-LongStayExternal,441150,30-Sep-13,1900129066,"10,471.00",Pendleton Care Limited,101213
WARRINGTON BOROUGH COUNCIL,http://statistics.data.gov.uk/id/local-authority/00EU,Neighbourhood & Community Services,NCS,Care Purchase - OP & OT South,54480,CP-Nursing Care-External,441200,30-Sep-13,1900129071,"1,816.00",Barchester Healthcare Cheshire Gran,111378
WARRINGTON BOROUGH COUNCIL,http://statistics.data.gov.uk/id/local-authority/00EU,Neighbourhood & Community Services,NCS,Care Purchase Budget,54490,CP - Cont Care - External,441350,30-Sep-13,1900129072,"2,560.00",Barchester Healthcare Cheshire Gran,111378
WARRINGTON BOROUGH COUNCIL,http://statistics.data.gov.uk/id/local-authority/00EU,Neighbourhood & Community Services,NCS,Care Purchase Budget,54490,CP - Cont Care - External,441350,30-Sep-13,1900129073,"2,560.00",Barchester Healthcare Cheshire Gran,111378
WARRINGTON BOROUGH COUNCIL,http://statistics.data.gov.uk/id/local-authority/00EU,Neighbourhood & Community Services,NCS,Care Purchase - OP & OT South,54480,CP-LongStayExternal,441150,30-Sep-13,1900129074,"1,772.00",Barchester Healthcare Cheshire Gran,111378
WARRINGTON BOROUGH COUNCIL,http://statistics.data.gov.uk/id/local-authority/00EU,Neighbourhood & Community Services,NCS,Care Purchase - Learning Disability,54450,CP-Domicil.External,440950,30-Sep-13,1900129075,"2,453.00",Icare Service Limited,110435
WARRINGTON BOROUGH COUNCIL,http://statistics.data.gov.uk/id/local-authority/00EU,Neighbourhood & Community Services,NCS,Care Purchase -OP & OT East,54430,CP-Domicil.External,440950,11-Sep-13,1900127672,"1,316.00",Castlerock Recruitment Group,105279
WARRINGTON BOROUGH COUNCIL,http://statistics.data.gov.uk/id/local-authority/00EU,Neighbourhood & Community Services,NCS,Care Purchase - OP & OT South,54480,CP-Domicil.External,440950,11-Sep-13,1900127672,"1,185.00",Castlerock Recruitment Group,105279
WARRINGTON BOROUGH COUNCIL,http://statistics.data.gov.uk/id/local-authority/00EU,Neighbourhood & Community Services,NCS,Care Purchase - PD,54440,CP-Domicil.External,440950,11-Sep-13,1900127672,"1,534.00",Castlerock Recruitment Group,105279
WARRINGTON BOROUGH COUNCIL,http://statistics.data.gov.uk/id/local-authority/00EU,Neighbourhood & Community Services,NCS,Care Purchase - OP & OT Central,54420,CP-Domicil.External,440950,11-Sep-13,1900127673,"3,840.00",Castlerock Recruitment Group,105279
WARRINGTON BOROUGH COUNCIL,http://statistics.data.gov.uk/id/local-authority/00EU,Neighbourhood & Community Services,NCS,Care Purchase - OP & OT South,54480,CP-Domicil.External,440950,11-Sep-13,1900127673,"1,384.00",Castlerock Recruitment Group,105279
WARRINGTON BOROUGH COUNCIL,http://statistics.data.gov.uk/id/local-authority/00EU,Neighbourhood & Community Services,NCS,Care Purchase -OP & OT East,54430,CP-Domicil.External,440950,11-Sep-13,1900127673,"1,215.00",Castlerock Recruitment Group,105279
WARRINGTON BOROUGH COUNCIL,http://statistics.data.gov.uk/id/local-authority/00EU,Neighbourhood & Community Services,NCS,Care Purchase - PD,54440,CP-Domicil.External,440950,11-Sep-13,1900127673,"1,382.00",Castlerock Recruitment Group,105279
WARRINGTON BOROUGH COUNCIL,http://statistics.data.gov.uk/id/local-authority/00EU,Neighbourhood & Community Services,NCS,Care Purchase - Learning Disability,54450,CP-Domicil.External,440950,11-Sep-13,1900127674,"5,678.00",Independent Living Alliance,100726
WARRINGTON BOROUGH COUNCIL,http://statistics.data.gov.uk/id/local-authority/00EU,Neighbourhood & Community Services,NCS,Care Purchase - Mental Health Team 1,54230,CP-Domicil.External,440950,11-Sep-13,1900127674,"4,806.00",Independent Living Alliance,100726
WARRINGTON BOROUGH COUNCIL,http://statistics.data.gov.uk/id/local-authority/00EU,Neighbourhood & Community Services,NCS,Care Purchase - Mental Health Team 2,54240,CP-Domicil.External,440950,11-Sep-13,1900127674,"4,299.00",Independent Living Alliance,100726
WARRINGTON BOROUGH COUNCIL,http://statistics.data.gov.uk/id/local-authority/00EU,Neighbourhood & Community Services,NCS,Care Purchase - ABI,54260,CP-Domicil.External,440950,11-Sep-13,1900127674,"2,357.00",Independent Living Alliance,100726
WARRINGTON BOROUGH COUNCIL,http://statistics.data.gov.uk/id/local-authority/00EU,Neighbourhood & Community Services,NCS,Care Purchase Budget,54490,CP - Cont Care - External,441350,11-Sep-13,1900127674,"8,702.00",Independent Living Alliance,100726
WARRINGTON BOROUGH COUNCIL,http://statistics.data.gov.uk/id/local-authority/00EU,Neighbourhood & Community Services,NCS,Care Purchase - Mental Health Team 1,54230,CP-Domicil.External,440950,11-Sep-13,1900127675,"6,488.00",Independent Living Alliance,100726
WARRINGTON BOROUGH COUNCIL,http://statistics.data.gov.uk/id/local-authority/00EU,Neighbourhood & Community Services,NCS,Care Purchase - Mental Health Team 2,54240,CP-Domicil.External,440950,11-Sep-13,1900127675,"1,751.00",Independent Living Alliance,100726
WARRINGTON BOROUGH COUNCIL,http://statistics.data.gov.uk/id/local-authority/00EU,Neighbourhood & Community Services,NCS,Care Purchase - Mental Health Team 1,54230,Supporting People - External,441250,11-Sep-13,1900127675,"3,553.00",Independent Living Alliance,100726
WARRINGTON BOROUGH COUNCIL,http://statistics.data.gov.uk/id/local-authority/00EU,Neighbourhood & Community Services,NCS,Care Purchase - Mental Health Team 2,54240,Supporting People - External,441250,11-Sep-13,1900127675,888.00,Independent Living Alliance,100726
WARRINGTON BOROUGH COUNCIL,http://statistics.data.gov.uk/id/local-authority/00EU,Neighbourhood & Community Services,NCS,Care Purchase - Learning Disability,54450,CP-Domicil.External,440950,11-Sep-13,1900127676,"4,538.00",Independent Living Alliance,100726
WARRINGTON BOROUGH COUNCIL,http://statistics.data.gov.uk/id/local-authority/00EU,Neighbourhood & Community Services,NCS,Care Purchase - Mental Health Team 1,54230,CP-Domicil.External,440950,11-Sep-13,1900127677,"9,712.00",Independent Living Alliance,100726
WARRINGTON BOROUGH COUNCIL,http://statistics.data.gov.uk/id/local-authority/00EU,Neighbourhood & Community Services,NCS,Care Purchase - Mental Health Team 3,54250,CP-Domicil.External,440950,11-Sep-13,1900127677,"2,296.00",Independent Living Alliance,100726
WARRINGTON BOROUGH COUNCIL,http://statistics.data.gov.uk/id/local-authority/00EU,Neighbourhood & Community Services,NCS,Care Purchase - ABI,54260,CP-Domicil.External,440950,11-Sep-13,1900127677,"1,605.00",Independent Living Alliance,100726
WARRINGTON BOROUGH COUNCIL,http://statistics.data.gov.uk/id/local-authority/00EU,Neighbourhood & Community Services,NCS,Care Purchase - Mental Health Team 1,54230,CP-Domicil.External,440950,11-Sep-13,1900127678,"9,605.00",Independent Living Alliance,100726
WARRINGTON BOROUGH COUNCIL,http://statistics.data.gov.uk/id/local-authority/00EU,Neighbourhood & Community Services,NCS,Care Purchase - Mental Health Team 2,54240,CP-Domicil.External,440950,11-Sep-13,1900127678,"6,051.00",Independent Living Alliance,100726
WARRINGTON BOROUGH COUNCIL,http://statistics.data.gov.uk/id/local-authority/00EU,Neighbourhood & Community Services,NCS,Care Purchase - Mental Health Team 1,54230,Supporting People - External,441250,11-Sep-13,1900127678,"1,853.00",Independent Living Alliance,100726
WARRINGTON BOROUGH COUNCIL,http://statistics.data.gov.uk/id/local-authority/00EU,Neighbourhood & Community Services,NCS,Care Purchase - Mental Health Team 2,54240,Supporting People - External,441250,11-Sep-13,1900127678,618.00,Independent Living Alliance,100726
WARRINGTON BOROUGH COUNCIL,http://statistics.data.gov.uk/id/local-authority/00EU,Assistant Chief Executive,CEX,Housing Benefit,10340,Subscriptions,470000,11-Sep-13,1900127680,650.00,ACS Consulting,107759
WARRINGTON BOROUGH COUNCIL,http://statistics.data.gov.uk/id/local-authority/00EU,Children & Young People,CHL,Child Disability,32212,Transport SLA,300400,11-Sep-13,1900127683,650.00,Regal Travel,102002
WARRINGTON BOROUGH COUNCIL,http://statistics.data.gov.uk/id/local-authority/00EU,Neighbourhood & Community Services,NCS,Winter Pressures,53400,Gen. Personal Needs,490850,11-Sep-13,1900127688,"5,600.00",Phoenix Health Warrington Ltd,112095
WARRINGTON BOROUGH COUNCIL,http://statistics.data.gov.uk/id/local-authority/00EU,Neighbourhood & Community Services,NCS,Winter Pressures,53400,Gen. Personal Needs,490850,11-Sep-13,1900127690,"3,000.00",Phoenix Health Warrington Ltd,112095
WARRINGTON BOROUGH COUNCIL,http://statistics.data.gov.uk/id/local-authority/00EU,Holding Accounts,HOL,Insurance Fund,91100,Insurance Claims,443400,12-Sep-13,1900127694,"6,377.00",Gallagher Bassett International Ltd,104739
WARRINGTON BOROUGH COUNCIL,http://statistics.data.gov.uk/id/local-authority/00EU,Neighbourhood & Community Services,NCS,Administration,51010,Gen. Personal Needs,490850,12-Sep-13,1900127695,"1,500.00",Mills & Reeve LLP,110846
WARRINGTON BOROUGH COUNCIL,http://statistics.data.gov.uk/id/local-authority/00EU,Children & Young People,CYP,Childrens Other,81004,Contract Works,492550,12-Sep-13,1900127697,"4,040.00",Redacted Personal Data,111347
WARRINGTON BOROUGH COUNCIL,http://statistics.data.gov.uk/id/local-authority/00EU,Children & Young People,CYP,Childrens Other,81004,Contract Works,492550,12-Sep-13,1900127703,752.00,SGS Interiors Ltd,110876
WARRINGTON BOROUGH COUNCIL,http://statistics.data.gov.uk/id/local-authority/00EU,Children & Young People,CYP,Childrens Other,81004,Contract Works,492550,12-Sep-13,1900127706,"2,100.00",Entrance Technology Services Ltd,105354
WARRINGTON BOROUGH COUNCIL,http://statistics.data.gov.uk/id/local-authority/00EU,Children & Young People,CYP,Childrens Other,81004,Contract Works,492550,12-Sep-13,1900127708,"2,100.00",Entrance Technology Services Ltd,105354
WARRINGTON BOROUGH COUNCIL,http://statistics.data.gov.uk/id/local-authority/00EU,Holding Accounts,HOL,Insurance Fund,91100,Insurance Claims,443400,12-Sep-13,1900127709,"9,943.00",Zurich Insurance Company,105263
WARRINGTON BOROUGH COUNCIL,http://statistics.data.gov.uk/id/local-authority/00EU,Neighbourhood & Community Services,NCS,Care Purchase -OP & OT East,54430,CP-Nursing Care-External,441200,12-Sep-13,1900127710,"3,026.00",Nazareth Care Charitable Trust,112227
WARRINGTON BOROUGH COUNCIL,http://statistics.data.gov.uk/id/local-authority/00EU,Children & Young People,CYP,Childrens Other,81004,ICT Comms - Line Rental,450200,12-Sep-13,1900127711,"3,852.00",General Telecom & Data UK Ltd,112258
WARRINGTON BOROUGH COUNCIL,http://statistics.data.gov.uk/id/local-authority/00EU,Children & Young People,CYP,Childrens Other,81004,ICT Comms - Equipment Purchase,450100,12-Sep-13,1900127712,"2,529.00",Abtec Computer Solutions Ltd,107132
WARRINGTON BOROUGH COUNCIL,http://statistics.data.gov.uk/id/local-authority/00EU,Children & Young People,CYP,Childrens Other,81004,ICT Comms - Equipment Purchase,450100,12-Sep-13,1900127713,"3,831.00",Stone Computers Ltd,109020
WARRINGTON BOROUGH COUNCIL,http://statistics.data.gov.uk/id/local-authority/00EU,Children & Young People,CYP,Childrens Other,81004,ICT Comms - Equipment Purchase,450100,12-Sep-13,1900127715,"5,795.00",Stone Computers Ltd,109020
WARRINGTON BOROUGH COUNCIL,http://statistics.data.gov.uk/id/local-authority/00EU,Children & Young People,CYP,Primary,81001,Contract Works,492550,12-Sep-13,1900127716,"4,597.00",W A P Lawton & Son Ltd,105431
WARRINGTON BOROUGH COUNCIL,http://statistics.data.gov.uk/id/local-authority/00EU,Corporate Financing,COR,Car Leasing Scheme - Salary Sacrifice,52126,Car Leasing Charges,350000,12-Sep-13,1900127718,"2,479.00",NHC NHS Foundation Trust,110359
WARRINGTON BOROUGH COUNCIL,http://statistics.data.gov.uk/id/local-authority/00EU,Corporate Financing,COR,Car Leasing Scheme - Salary Sacrifice,52126,Car Leasing Charges,350000,12-Sep-13,1900127718,595.00,NHC NHS Foundation Trust,110359
WARRINGTON BOROUGH COUNCIL,http://statistics.data.gov.uk/id/local-authority/00EU,Corporate Financing,COR,Car Leasing Scheme - Salary Sacrifice,52126,Car Leasing Charges,350000,12-Sep-13,1900127719,"3,540.00",NHC NHS Foundation Trust,110359
WARRINGTON BOROUGH COUNCIL,http://statistics.data.gov.uk/id/local-authority/00EU,Corporate Financing,COR,Car Leasing Scheme - Salary Sacrifice,52126,Car Leasing Charges,350000,12-Sep-13,1900127719,595.00,NHC NHS Foundation Trust,110359
WARRINGTON BOROUGH COUNCIL,http://statistics.data.gov.uk/id/local-authority/00EU,Corporate Financing,COR,Car Leasing Scheme - Salary Sacrifice,52126,Car Leasing Charges,350000,12-Sep-13,1900127720,"3,078.00",NHC NHS Foundation Trust,110359
WARRINGTON BOROUGH COUNCIL,http://statistics.data.gov.uk/id/local-authority/00EU,Corporate Financing,COR,Car Leasing Scheme - Salary Sacrifice,52126,Car Leasing Charges,350000,12-Sep-13,1900127720,595.00,NHC NHS Foundation Trust,110359
WARRINGTON BOROUGH COUNCIL,http://statistics.data.gov.uk/id/local-authority/00EU,Corporate Financing,COR,Car Leasing Scheme - Salary Sacrifice,52126,Car Leasing Charges,350000,12-Sep-13,1900127721,"3,964.00",NHC NHS Foundation Trust,110359
WARRINGTON BOROUGH COUNCIL,http://statistics.data.gov.uk/id/local-authority/00EU,Corporate Financing,COR,Car Leasing Scheme - Salary Sacrifice,52126,Car Leasing Charges,350000,12-Sep-13,1900127721,595.00,NHC NHS Foundation Trust,110359
WARRINGTON BOROUGH COUNCIL,http://statistics.data.gov.uk/id/local-authority/00EU,Corporate Financing,COR,Car Leasing Scheme - Salary Sacrifice,52126,Car Leasing Charges,350000,12-Sep-13,1900127722,"3,576.00",NHC NHS Foundation Trust,110359
WARRINGTON BOROUGH COUNCIL,http://statistics.data.gov.uk/id/local-authority/00EU,Corporate Financing,COR,Car Leasing Scheme - Salary Sacrifice,52126,Car Leasing Charges,350000,12-Sep-13,1900127722,670.00,NHC NHS Foundation Trust,110359
WARRINGTON BOROUGH COUNCIL,http://statistics.data.gov.uk/id/local-authority/00EU,Corporate Financing,COR,Car Leasing Scheme - Salary Sacrifice,52126,Car Leasing Charges,350000,12-Sep-13,1900127723,"2,415.00",NHC NHS Foundation Trust,110359
WARRINGTON BOROUGH COUNCIL,http://statistics.data.gov.uk/id/local-authority/00EU,Corporate Financing,COR,Car Leasing Scheme - Salary Sacrifice,52126,Car Leasing Charges,350000,12-Sep-13,1900127723,595.00,NHC NHS Foundation Trust,110359
WARRINGTON BOROUGH COUNCIL,http://statistics.data.gov.uk/id/local-authority/00EU,Corporate Financing,COR,Car Leasing Scheme - Salary Sacrifice,52126,Car Leasing Charges,350000,12-Sep-13,1900127725,"3,487.00",NHC NHS Foundation Trust,110359
WARRINGTON BOROUGH COUNCIL,http://statistics.data.gov.uk/id/local-authority/00EU,Corporate Financing,COR,Car Leasing Scheme - Salary Sacrifice,52126,Car Leasing Charges,350000,12-Sep-13,1900127725,670.00,NHC NHS Foundation Trust,110359
WARRINGTON BOROUGH COUNCIL,http://statistics.data.gov.uk/id/local-authority/00EU,Corporate Financing,COR,Car Leasing Scheme - Salary Sacrifice,52126,Car Leasing Charges,350000,12-Sep-13,1900127726,"3,372.00",NHC NHS Foundation Trust,110359
WARRINGTON BOROUGH COUNCIL,http://statistics.data.gov.uk/id/local-authority/00EU,Corporate Financing,COR,Car Leasing Scheme - Salary Sacrifice,52126,Car Leasing Charges,350000,12-Sep-13,1900127726,670.00,NHC NHS Foundation Trust,110359
WARRINGTON BOROUGH COUNCIL,http://statistics.data.gov.uk/id/local-authority/00EU,Corporate Financing,COR,Car Leasing Scheme - Salary Sacrifice,52126,Car Leasing Charges,350000,12-Sep-13,1900127727,"3,536.00",NHC NHS Foundation Trust,110359
WARRINGTON BOROUGH COUNCIL,http://statistics.data.gov.uk/id/local-authority/00EU,Corporate Financing,COR,Car Leasing Scheme - Salary Sacrifice,52126,Car Leasing Charges,350000,12-Sep-13,1900127727,595.00,NHC NHS Foundation Trust,110359
WARRINGTON BOROUGH COUNCIL,http://statistics.data.gov.uk/id/local-authority/00EU,Corporate Financing,COR,Car Leasing Scheme - Salary Sacrifice,52126,Car Leasing Charges,350000,12-Sep-13,1900127728,"1,884.00",NHC NHS Foundation Trust,110359
WARRINGTON BOROUGH COUNCIL,http://statistics.data.gov.uk/id/local-authority/00EU,Corporate Financing,COR,Car Leasing Scheme - Salary Sacrifice,52126,Car Leasing Charges,350000,12-Sep-13,1900127728,670.00,NHC NHS Foundation Trust,110359
WARRINGTON BOROUGH COUNCIL,http://statistics.data.gov.uk/id/local-authority/00EU,Assistant Chief Executive,CEX,Housing Benefit,10340,"Campaigns,  Projects and Events",491950,12-Sep-13,1900127729,"6,000.00",Stockport M B C,105160
WARRINGTON BOROUGH COUNCIL,http://statistics.data.gov.uk/id/local-authority/00EU,Children & Young People,CHL,Commissioning,33001,Payment of Grants,470050,12-Sep-13,1900127730,828.00,Kids Planet Day Nursery Lymm,102992
WARRINGTON BOROUGH COUNCIL,http://statistics.data.gov.uk/id/local-authority/00EU,Corporate Financing,COR,Car Leasing Scheme - Salary Sacrifice,52126,Car Leasing Charges,350000,12-Sep-13,1900127732,"5,743.00",NHC NHS Foundation Trust,110359
WARRINGTON BOROUGH COUNCIL,http://statistics.data.gov.uk/id/local-authority/00EU,Corporate Financing,COR,Car Leasing Scheme - Salary Sacrifice,52126,Car Leasing Charges,350000,12-Sep-13,1900127732,595.00,NHC NHS Foundation Trust,110359
WARRINGTON BOROUGH COUNCIL,http://statistics.data.gov.uk/id/local-authority/00EU,Neighbourhood & Community Services,NCS,Care Purchase - Learning Disability,54450,CP-Day Care-External,441100,30-Sep-13,1900129075,"3,850.00",Icare Service Limited,110435
WARRINGTON BOROUGH COUNCIL,http://statistics.data.gov.uk/id/local-authority/00EU,Neighbourhood & Community Services,NCS,Care Purchase - Learning Disability,54450,Supporting People - External,441250,30-Sep-13,1900129081,"6,280.00",Warrington Mencap,102670
WARRINGTON BOROUGH COUNCIL,http://statistics.data.gov.uk/id/local-authority/00EU,Neighbourhood & Community Services,NCS,Care Purchase - Learning Disability,54450,Supporting People - External,441250,30-Sep-13,1900129082,"4,263.00",Warrington Mencap,102670
WARRINGTON BOROUGH COUNCIL,http://statistics.data.gov.uk/id/local-authority/00EU,Neighbourhood & Community Services,NCS,Care Purchase - Learning Disability,54450,CP-Domicil.External,440950,30-Sep-13,1900129085,"4,974.00",Warrington Mencap,102670
WARRINGTON BOROUGH COUNCIL,http://statistics.data.gov.uk/id/local-authority/00EU,Children & Young People,CHL,Foster Allowances,31106,Fostering Allowance,550050,30-Sep-13,1900129088,850.00,Redacted Personal Data,460145
WARRINGTON BOROUGH COUNCIL,http://statistics.data.gov.uk/id/local-authority/00EU,Children & Young People,CHL,Foster Allowances,31106,Volunteer Travel Expenses,460200,30-Sep-13,1900129090,650.00,Redacted Personal Data,107397
WARRINGTON BOROUGH COUNCIL,http://statistics.data.gov.uk/id/local-authority/00EU,Children & Young People,CHL,Child Disability,32212,Direct Payments,552000,27-Sep-13,1900129180,"1,560.00",Redacted Personal Data,460456
WARRINGTON BOROUGH COUNCIL,http://statistics.data.gov.uk/id/local-authority/00EU,Corporate Financing,COR,Car Leasing Scheme - Salary Sacrifice,52126,Car Leasing Charges,350000,12-Sep-13,1900127732,574.00,NHC NHS Foundation Trust,110359
WARRINGTON BOROUGH COUNCIL,http://statistics.data.gov.uk/id/local-authority/00EU,Corporate Financing,COR,Car Leasing Scheme - Salary Sacrifice,52126,Car Leasing Charges,350000,12-Sep-13,1900127734,"1,921.00",NHC NHS Foundation Trust,110359
WARRINGTON BOROUGH COUNCIL,http://statistics.data.gov.uk/id/local-authority/00EU,Corporate Financing,COR,Car Leasing Scheme - Salary Sacrifice,52126,Car Leasing Charges,350000,12-Sep-13,1900127734,670.00,NHC NHS Foundation Trust,110359
WARRINGTON BOROUGH COUNCIL,http://statistics.data.gov.uk/id/local-authority/00EU,Corporate Financing,COR,Car Leasing Scheme - Salary Sacrifice,52126,Car Leasing Charges,350000,12-Sep-13,1900127735,"3,358.00",NHC NHS Foundation Trust,110359
WARRINGTON BOROUGH COUNCIL,http://statistics.data.gov.uk/id/local-authority/00EU,Corporate Financing,COR,Car Leasing Scheme - Salary Sacrifice,52126,Car Leasing Charges,350000,12-Sep-13,1900127735,670.00,NHC NHS Foundation Trust,110359
WARRINGTON BOROUGH COUNCIL,http://statistics.data.gov.uk/id/local-authority/00EU,Corporate Financing,COR,Car Leasing Scheme - Salary Sacrifice,52126,Car Leasing Charges,350000,12-Sep-13,1900127737,"3,352.00",NHC NHS Foundation Trust,110359
WARRINGTON BOROUGH COUNCIL,http://statistics.data.gov.uk/id/local-authority/00EU,Corporate Financing,COR,Car Leasing Scheme - Salary Sacrifice,52126,Car Leasing Charges,350000,12-Sep-13,1900127737,670.00,NHC NHS Foundation Trust,110359
WARRINGTON BOROUGH COUNCIL,http://statistics.data.gov.uk/id/local-authority/00EU,Corporate Financing,COR,Car Leasing Scheme - Salary Sacrifice,52126,Car Leasing Charges,350000,12-Sep-13,1900127738,"2,528.00",NHC NHS Foundation Trust,110359
